{"text_format":"1","workbook":"xlsx","n_sheets":3,"sheets":["بيانات","بينات التلاميد","التقرير اليومي"],"not_rendered":{"charts":0,"images":0,"macros":1,"external_links":1,"defined_names":50,"comments":0,"pivot_tables":0},"unopened":[],"bounds":{"document_bytes":16777216,"sheet_cells":100000,"rows_first":2000,"rows_last":500,"rows_between":2000,"halvings":0,"cell_chars":16384,"cell_head_chars":4096},"cells_cut":0,"cells_raw":0,"read":"whole","date_system":"1900"}

{"sheet":"بيانات","index":0,"n_rows":149,"n_cols":74,"rows_kept":149,"cut":false,"hidden":false,"merged":[[2,30,2,37],[2,42,2,49],[2,54,2,61],[2,66,2,73],[0,16,1,73],[3,4,18,4],[45,4,60,4],[23,4,42,4],[113,1,120,1],[2,18,2,25],[121,1,128,1],[129,1,132,1],[133,1,140,1],[141,1,148,1],[64,3,64,10]]}
[null,null,null,null,null,null,null,null,null,null,null,null,null,null,null,null,"التوقيـــــــــــــــــــت     الأسبـــــــــــــــــوعي"]
[]
[null,"الاساتذة ",null,"المواد",null,"الأقسام",null,"الأيام",null,"مشرفي التربية ",null,"الرتب ",null,"التبريرات",null,null,null,null,"الأحــــد",null,null,null,null,null,null,null,null,null,null,null,"الإثنيــن",null,null,null,null,null,null,null,null,null,null,null,"الثلاثاء",null,null,null,null,null,null,null,null,null,null,null,"الأربعـاء",null,null,null,null,null,null,null,null,null,null,null,"الخميــس"]
[null,"أ.الرياضيات",null,"فرنسية ",null,"3ت ر",null,"الأحــــد",null,null,null,"مستشار ت",null,"إضراب",null,null,null,null,"08ـ09","09ـ10","10ـ11","11ـ12","14½-13½","15½-14½","16½-15½","17½-16½",null,null,null,null,"08ـ09","09ـ10","10ـ11","11ـ12","14½-13½","15½-14½","16½-15½","17½-16½",null,null,null,null,"08ـ09","09ـ10","10ـ11","11ـ12","14½-13½","15½-14½","16½-15½","17½-16½",null,null,null,null,"08ـ09","09ـ10","10ـ11","11ـ12","14½-13½","15½-14½","16½-15½","17½-16½",null,null,null,null,"08ـ09","09ـ10","10ـ11","11ـ12","14½-13½","15½-14½","16½-15½","17½-16½"]
[null,"أ.ناسي",null,"أدب عربي",null,"3ع ت1",null,"الإثنيــن",null,"اوحساين مجاهد",null,"مشرف ت",null,"عطلة مرضية ",null,1,"أ.ناسي","أ.الرياضيات","2ت ر","3ت ر","3ت ر",null,null,null,null,"1ع1",null,1,"أ.ناسي","أ.الرياضيات","2ت ر","3ت ر","3ت ر",null,null,null,null,"1ع1",null,1,"أ.ناسي","أ.الرياضيات",null,null,"3ت ر",null,null,null,null,"1ع1",null,1,"أ.ناسي","أ.الرياضيات","2ت ر","3ت ر","3ت ر",null,null,null,null,"1ع1",null,1,"أ.ناسي","أ.الرياضيات",null,null,null,null,"2ت ر","3ت ر","3ت ر","1ع1"]
[null,"أ.بوطوبة ",null,"ع اسلامية",null,"3ع ت2",null,"الثلاثاء",null,"بوزيدي محمد",null,null,null,"عطلة أمومة",null,2,"أ.بوطوبة ","أ.الرياضيات",null,null,null,null,null,null,null,null,null,2,"أ.بوطوبة ","أ.الرياضيات",null,null,null,null,null,null,null,null,null,2,"أ.بوطوبة ","أ.الرياضيات",null,null,null,null,null,null,null,null,null,2,"أ.بوطوبة ","أ.الرياضيات",null,null,null,null,null,null,null,null,null,2,"أ.بوطوبة ","أ.الرياضيات",null,null,"2أ ف","1ع4"]
[null,"أ.بوعريشة ",null,"ع طبيعية",null,"3ت إ",null,"الأربعـاء",null,"عبد المالك منور",null,null,null,"شهادة طبية ",null,3,"أ.بوعريشة ","أ.الرياضيات",null,null,null,null,null,null,null,null,null,3,"أ.بوعريشة ","أ.الرياضيات",null,null,null,null,null,null,null,null,null,3,"أ.بوعريشة ","أ.الرياضيات",null,null,null,null,null,null,null,null,null,3,"أ.بوعريشة ","أ.الرياضيات",null,null,null,null,null,null,null,null,null,3,"أ.بوعريشة ","أ.الرياضيات"]
[null,"أ.قبلي",null,"اجتماعيات",null,"3أ ف",null,"الخميــس",null,"حجاز محمد",null,null,null,"ندوة خارجية ",null,4,"أ.قبلي","أ.الرياضيات",null,null,null,null,null,null,null,null,null,4,"أ.قبلي","أ.الرياضيات",null,null,null,null,null,null,null,null,null,4,"أ.قبلي","أ.الرياضيات",null,null,null,null,null,null,null,null,null,4,"أ.قبلي","أ.الرياضيات",null,null,null,null,null,null,null,null,null,4,"أ.قبلي","أ.الرياضيات"]
[null,"أ.ديب",null,"تكنولوجيا",null,"3لغات",null,null,null,"يوسف حسناء",null,null,null,"ملتقى ",null,5,"أ.ديب","أ.الرياضيات",null,null,null,null,null,null,null,null,null,5,"أ.ديب","أ.الرياضيات",null,null,null,null,null,null,null,null,null,5,"أ.ديب","أ.الرياضيات",null,null,null,null,null,null,null,null,null,5,"أ.ديب","أ.الرياضيات",null,null,null,null,null,null,null,null,null,5,"أ.ديب","أ.الرياضيات"]
[null,null,null,"اقتصاد",null,null,null,null,null,"سيفي عبد القادر",null,null,null,"امتحان تثبيت",null,6,"أ.عشماوي","أ.الفيزياء",null,null,null,null,null,null,null,null,null,6,"أ.عشماوي","أ.الفيزياء",null,null,null,null,null,null,null,null,null,6,"أ.عشماوي","أ.الفيزياء",null,null,null,null,null,null,null,null,null,6,"أ.عشماوي","أ.الفيزياء",null,null,null,null,null,null,null,null,null,6,"أ.عشماوي","أ.الفيزياء"]
[null,null,null,"انجليزية",null,null,null,null,null,"كاملي نبيلة ",null,null,null,"اجتماع مرخص",null,7,"أ.حاجب","أ.الفيزياء",null,null,null,null,null,null,null,null,null,7,"أ.حاجب","أ.الفيزياء",null,null,null,null,null,null,null,null,null,7,"أ.حاجب","أ.الفيزياء",null,null,null,null,null,null,null,null,null,7,"أ.حاجب","أ.الفيزياء",null,null,null,null,null,null,null,null,null,7,"أ.حاجب","أ.الفيزياء"]
[null,"أ.الفيزياء",null,"رياضة",null,"2ت ر",null,null,null,null,null,null,null,"وفاة الأقارب",null,8,"قوراري","أ.الفيزياء",null,null,null,null,null,null,null,null,null,8,"قوراري","أ.الفيزياء",null,null,null,null,null,null,null,null,null,8,"قوراري","أ.الفيزياء",null,null,null,null,null,null,null,null,null,8,"قوراري","أ.الفيزياء",null,null,null,null,null,null,null,null,null,8,"قوراري","أ.الفيزياء"]
[null,"أ.عشماوي",null,"فلسفة",null,"2ع ت1",null,null,null,null,null,null,null,"احتجاج",null,9,"أ.ناضور","أ.الفيزياء",null,null,null,null,null,null,null,null,null,9,"أ.ناضور","أ.الفيزياء",null,null,null,null,null,null,null,null,null,9,"أ.ناضور","أ.الفيزياء",null,null,null,null,null,null,null,null,null,9,"أ.ناضور","أ.الفيزياء",null,null,null,null,null,null,null,null,null,9,"أ.ناضور","أ.الفيزياء"]
[null,"أ.حاجب",null,"فيزياء",null,"2ع ت2",null,null,null,null,null,null,null,"مع التعويض",null,10,"أ.زرار","أ.الفيزياء",null,null,null,null,null,null,null,null,null,10,"أ.زرار","أ.الفيزياء",null,null,null,null,null,null,null,null,null,10,"أ.زرار","أ.الفيزياء",null,null,null,null,null,null,null,null,null,10,"أ.زرار","أ.الفيزياء",null,null,null,null,null,null,null,null,null,10,"أ.زرار","أ.الفيزياء"]
[null,"قوراري",null,"رياضيات",null,"2ت إ",null,null,null,null,null,null,null,"مرض مفاجئ",null,11,"أ.براهمي","أ.ع الطبيعية",null,null,null,null,null,null,null,null,null,11,"أ.براهمي","أ.ع الطبيعية",null,null,null,null,null,null,null,null,null,11,"أ.براهمي","أ.ع الطبيعية",null,null,null,null,null,null,null,null,null,11,"أ.براهمي","أ.ع الطبيعية",null,null,null,null,null,null,null,null,null,11,"أ.براهمي","أ.ع الطبيعية"]
[null,"أ.ناضور",null,"إسبانية",null,"2أ ف",null,null,null,null,null,null,null,"مرض ",null,12,"أ.لعشب","أ.ع الطبيعية",null,null,null,null,null,null,null,null,null,12,"أ.لعشب","أ.ع الطبيعية",null,null,null,null,null,null,null,null,null,12,"أ.لعشب","أ.ع الطبيعية",null,null,null,null,null,null,null,null,null,12,"أ.لعشب","أ.ع الطبيعية",null,null,null,null,null,null,null,null,null,12,"أ.لعشب","أ.ع الطبيعية"]
[null,"أ.زرار",null,"معلوماتية ",null,"2لغات",null,null,null,null,null,null,null,null,null,13,"أ.درني","أ.ع الطبيعية",null,null,null,null,null,null,null,null,null,13,"أ.درني","أ.ع الطبيعية",null,null,null,null,null,null,null,null,null,13,"أ.درني","أ.ع الطبيعية",null,null,null,null,null,null,null,null,null,13,"أ.درني","أ.ع الطبيعية",null,null,null,null,null,null,null,null,null,13,"أ.درني","أ.ع الطبيعية"]
[null,null,null,null,null,"1ع1",null,null,null,null,null,null,null,null,null,14,"أ.فراج","أ.ع الطبيعية",null,null,null,null,null,null,null,null,null,14,"أ.فراج","أ.ع الطبيعية",null,null,null,null,null,null,null,null,null,14,"أ.فراج","أ.ع الطبيعية",null,null,null,null,null,null,null,null,null,14,"أ.فراج","أ.ع الطبيعية",null,null,null,null,null,null,null,null,null,14,"أ.فراج","أ.ع الطبيعية"]
[null,"أ.ع الطبيعية",null,null,null,"1ع2",null,null,null,null,null,null,null,null,null,15,"أ.كريب ","أ,الأدب العربي",null,null,null,null,null,null,null,null,null,15,"أ.كريب ","أ,الأدب العربي",null,null,null,null,null,null,null,null,null,15,"أ.كريب ","أ,الأدب العربي",null,null,null,null,null,null,null,null,null,15,"أ.كريب ","أ,الأدب العربي",null,null,null,null,null,null,null,null,null,15,"أ.كريب ","أ,الأدب العربي"]
[null,"أ.براهمي",null,null,null,"1ع3",null,null,null,null,null,null,null,null,null,16,"أ.صبيان","أ,الأدب العربي",null,null,null,null,null,null,null,null,null,16,"أ.صبيان","أ,الأدب العربي",null,null,null,null,null,null,null,null,null,16,"أ.صبيان","أ,الأدب العربي",null,null,null,null,null,null,null,null,null,16,"أ.صبيان","أ,الأدب العربي",null,null,null,null,null,null,null,null,null,16,"أ.صبيان","أ,الأدب العربي"]
[null,"أ.لعشب",null,null,null,"1ع4",null,null,null,null,null,null,null,null,null,17,"أ.قادري","أ,الأدب العربي",null,null,null,null,null,null,null,null,null,17,"أ.قادري","أ,الأدب العربي",null,null,null,null,null,null,null,null,null,17,"أ.قادري","أ,الأدب العربي",null,null,null,null,null,null,null,null,null,17,"أ.قادري","أ,الأدب العربي",null,null,null,null,null,null,null,null,null,17,"أ.قادري","أ,الأدب العربي"]
[null,"أ.درني",null,null,null,"1ع5",null,null,null,null,null,null,null,null,null,18,"أ.أعطا الله","أ,الأدب العربي",null,null,null,null,null,null,null,null,null,18,"أ.أعطا الله","أ,الأدب العربي",null,null,null,null,null,null,null,null,null,18,"أ.أعطا الله","أ,الأدب العربي",null,null,null,null,null,null,null,null,null,18,"أ.أعطا الله","أ,الأدب العربي",null,null,null,null,null,null,null,null,null,18,"أ.أعطا الله","أ,الأدب العربي"]
[null,"أ.فراج",null,null,null,"1أ1",null,null,null,null,null,null,null,null,null,19,"أ.قعاد","أ,الأدب العربي",null,null,null,null,null,null,null,null,null,19,"أ.قعاد","أ,الأدب العربي",null,null,null,null,null,null,null,null,null,19,"أ.قعاد","أ,الأدب العربي",null,null,null,null,null,null,null,null,null,19,"أ.قعاد","أ,الأدب العربي",null,null,null,null,null,null,null,null,null,19,"أ.قعاد","أ,الأدب العربي"]
[null,null,null,null,null,"1أ2",null,null,null,null,null,null,null,null,null,20,"أ.قان ","أ.الاجتماعيات",null,null,null,null,null,null,null,null,null,20,"أ.قان ","أ.الاجتماعيات",null,null,null,null,null,null,null,null,null,20,"أ.قان ","أ.الاجتماعيات",null,null,null,null,null,null,null,null,null,20,"أ.قان ","أ.الاجتماعيات",null,null,null,null,null,null,null,null,null,20,"أ.قان ","أ.الاجتماعيات"]
[null,null,null,null,null,null,null,null,null,null,null,null,null,null,null,21,"أ.سواريت ","أ.الاجتماعيات",null,null,null,null,null,null,null,null,null,21,"أ.سواريت ","أ.الاجتماعيات",null,null,null,null,null,null,null,null,null,21,"أ.سواريت ","أ.الاجتماعيات",null,null,null,null,null,null,null,null,null,21,"أ.سواريت ","أ.الاجتماعيات",null,null,null,null,null,null,null,null,null,21,"أ.سواريت ","أ.الاجتماعيات"]
[null,"أ,الأدب العربي",null,null,null,null,null,null,null,null,null,null,null,null,null,22,"أ.صفراوي","أ.الاجتماعيات",null,null,null,null,null,null,null,null,null,22,"أ.صفراوي","أ.الاجتماعيات",null,null,null,null,null,null,null,null,null,22,"أ.صفراوي","أ.الاجتماعيات",null,null,null,null,null,null,null,null,null,22,"أ.صفراوي","أ.الاجتماعيات",null,null,null,null,null,null,null,null,null,22,"أ.صفراوي","أ.الاجتماعيات"]
[null,"أ.كريب ",null,null,null,null,null,null,null,null,null,null,null,null,null,23,"أ.أجد","أ.الاجتماعيات",null,null,null,null,null,null,null,null,null,23,"أ.أجد","أ.الاجتماعيات",null,null,null,null,null,null,null,null,null,23,"أ.أجد","أ.الاجتماعيات",null,null,null,null,null,null,null,null,null,23,"أ.أجد","أ.الاجتماعيات",null,null,null,null,null,null,null,null,null,23,"أ.أجد","أ.الاجتماعيات"]
[null,"أ.سعيداني",null,null,null,null,null,null,null,null,null,null,null,null,null,24,"أ.بوحاجب/و","أ.ع الإسلامية",null,null,null,null,null,null,null,null,null,24,"أ.بوحاجب/و","أ.ع الإسلامية",null,null,null,null,null,null,null,null,null,24,"أ.بوحاجب/و","أ.ع الإسلامية",null,null,null,null,null,null,null,null,null,24,"أ.بوحاجب/و","أ.ع الإسلامية",null,null,null,null,null,null,null,null,null,24,"أ.بوحاجب/و","أ.ع الإسلامية"]
[null,"أ.قادري",null,null,null,null,null,null,null,null,null,null,null,null,null,25,"أ.بوزياني","أ.ع الإسلامية",null,null,null,null,null,null,null,null,null,25,"أ.بوزياني","أ.ع الإسلامية",null,null,null,null,null,null,null,null,null,25,"أ.بوزياني","أ.ع الإسلامية",null,null,null,null,null,null,null,null,null,25,"أ.بوزياني","أ.ع الإسلامية",null,null,null,null,null,null,null,null,null,25,"أ.بوزياني","أ.ع الإسلامية"]
[null,"أ.أعطا الله",null,null,null,null,null,null,null,null,null,null,null,null,null,26,"أ.عزيز","أ.الفلسفة",null,null,null,null,null,null,null,null,null,26,"أ.عزيز","أ.الفلسفة",null,null,null,null,null,null,null,null,null,26,"أ.عزيز","أ.الفلسفة",null,null,null,null,null,null,null,null,null,26,"أ.عزيز","أ.الفلسفة",null,null,null,null,null,null,null,null,null,26,"أ.عزيز","أ.الفلسفة"]
[null,"أ.قعاد",null,null,null,null,null,null,null,null,null,null,null,null,null,27,"أ.زقاي","أ.الفلسفة",null,null,null,null,null,null,null,null,null,27,"أ.زقاي","أ.الفلسفة",null,null,null,null,null,null,null,null,null,27,"أ.زقاي","أ.الفلسفة",null,null,null,null,null,null,null,null,null,27,"أ.زقاي","أ.الفلسفة",null,null,null,null,null,null,null,null,null,27,"أ.زقاي","أ.الفلسفة"]
[null,"أ.صبيان",null,null,null,null,null,null,null,null,null,null,null,null,null,28,"أ.رابحي","أ.الفرنسية ",null,null,null,null,null,null,null,null,null,28,"أ.رابحي","أ.الفرنسية ",null,null,null,null,null,null,null,null,null,28,"أ.رابحي","أ.الفرنسية ",null,null,null,null,null,null,null,null,null,28,"أ.رابحي","أ.الفرنسية ",null,null,null,null,null,null,null,null,null,28,"أ.رابحي","أ.الفرنسية "]
[null,null,null,null,null,null,null,null,null,null,null,null,null,null,null,29,"أ.كوليلي","أ.الفرنسية ",null,null,null,null,null,null,null,null,null,29,"أ.كوليلي","أ.الفرنسية ",null,null,null,null,null,null,null,null,null,29,"أ.كوليلي","أ.الفرنسية ",null,null,null,null,null,null,null,null,null,29,"أ.كوليلي","أ.الفرنسية ",null,null,null,null,null,null,null,null,null,29,"أ.كوليلي","أ.الفرنسية "]
[null,"أ.الاجتماعيات",null,null,null,null,null,null,null,null,null,null,null,null,null,30,"أ.بومانة ","أ.الفرنسية ",null,null,null,null,null,null,null,null,null,30,"أ.بومانة ","أ.الفرنسية ",null,null,null,null,null,null,null,null,null,30,"أ.بومانة ","أ.الفرنسية ",null,null,null,null,null,null,null,null,null,30,"أ.بومانة ","أ.الفرنسية ",null,null,null,null,null,null,null,null,null,30,"أ.بومانة ","أ.الفرنسية "]
[null,"أ.قان ",null,null,null,null,null,null,null,null,null,null,null,null,null,31,"أ.عباد","أ.الفرنسية ",null,null,null,null,null,null,null,null,null,31,"أ.عباد","أ.الفرنسية ",null,null,null,null,null,null,null,null,null,31,"أ.عباد","أ.الفرنسية ",null,null,null,null,null,null,null,null,null,31,"أ.عباد","أ.الفرنسية ",null,null,null,null,null,null,null,null,null,31,"أ.عباد","أ.الفرنسية "]
[null,"أ.سواريت ",null,null,null,null,null,null,null,null,null,null,null,null,null,32,"أ.العرباوي","أ.الانجليزية",null,null,null,null,null,null,null,null,null,32,"أ.العرباوي","أ.الانجليزية",null,null,null,null,null,null,null,null,null,32,"أ.العرباوي","أ.الانجليزية",null,null,null,null,null,null,null,null,null,32,"أ.العرباوي","أ.الانجليزية",null,null,null,null,null,null,null,null,null,32,"أ.العرباوي","أ.الانجليزية"]
[null,"أ.صفراوي",null,null,null,null,null,null,null,null,null,null,null,null,null,33,"أ.معزوز","أ.الانجليزية",null,null,null,null,null,null,null,null,null,33,"أ.معزوز","أ.الانجليزية",null,null,null,null,null,null,null,null,null,33,"أ.معزوز","أ.الانجليزية",null,null,null,null,null,null,null,null,null,33,"أ.معزوز","أ.الانجليزية",null,null,null,null,null,null,null,null,null,33,"أ.معزوز","أ.الانجليزية"]
[null,"أ.أجد",null,null,null,null,null,null,null,null,null,null,null,null,null,34,"أ.مزاري","أ.الانجليزية",null,null,null,null,null,null,null,null,null,34,"أ.مزاري","أ.الانجليزية",null,null,null,null,null,null,null,null,null,34,"أ.مزاري","أ.الانجليزية",null,null,null,null,null,null,null,null,null,34,"أ.مزاري","أ.الانجليزية",null,null,null,null,null,null,null,null,null,34,"أ.مزاري","أ.الانجليزية"]
[null,null,null,null,null,null,null,null,null,null,null,null,null,null,null,35,"أ.شنتوف","أ.الانجليزية",null,null,null,null,null,null,null,null,null,35,"أ.شنتوف","أ.الانجليزية",null,null,null,null,null,null,null,null,null,35,"أ.شنتوف","أ.الانجليزية",null,null,null,null,null,null,null,null,null,35,"أ.شنتوف","أ.الانجليزية",null,null,null,null,null,null,null,null,null,35,"أ.شنتوف","أ.الانجليزية"]
[null,null,null,null,null,null,null,null,null,null,null,null,null,null,null,36,"أ.سيفاني","أ.الاسبانية",null,null,null,null,null,null,null,null,null,36,"أ.سيفاني","أ.الاسبانية",null,null,null,null,null,null,null,null,null,36,"أ.سيفاني","أ.الاسبانية",null,null,null,null,null,null,null,null,null,36,"أ.سيفاني","أ.الاسبانية",null,null,null,null,null,null,null,null,null,36,"أ.سيفاني","أ.الاسبانية"]
[null,"أ.ع الإسلامية",null,null,null,null,null,null,null,null,null,null,null,null,null,37,"أ.زغودي","أ.التكنولوجيا",null,null,null,null,null,null,null,null,null,37,"أ.زغودي","أ.التكنولوجيا",null,null,null,null,null,null,null,null,null,37,"أ.زغودي","أ.التكنولوجيا",null,null,null,null,null,null,null,null,null,37,"أ.زغودي","أ.التكنولوجيا",null,null,null,null,null,null,null,null,null,37,"أ.زغودي","أ.التكنولوجيا"]
[null,"أ.بوحاجب/و",null,null,null,null,null,null,null,null,null,null,null,null,null,38,"أ.موس","أ.التكنولوجيا",null,null,null,null,null,null,null,null,null,38,"أ.موس","أ.التكنولوجيا",null,null,null,null,null,null,null,null,null,38,"أ.موس","أ.التكنولوجيا",null,null,null,null,null,null,null,null,null,38,"أ.موس","أ.التكنولوجيا",null,null,null,null,null,null,null,null,null,38,"أ.موس","أ.التكنولوجيا"]
[null,"أ.بوزياني",null,null,null,null,null,null,null,null,null,null,null,null,null,39,"أ.بوهنة","أ.التكنولوجيا",null,null,null,null,null,null,null,null,null,39,"أ.بوهنة","أ.التكنولوجيا",null,null,null,null,null,null,null,null,null,39,"أ.بوهنة","أ.التكنولوجيا",null,null,null,null,null,null,null,null,null,39,"أ.بوهنة","أ.التكنولوجيا",null,null,null,null,null,null,null,null,null,39,"أ.بوهنة","أ.التكنولوجيا"]
[null,null,null,null,null,null,null,null,null,null,null,null,null,null,null,40,"أ.نوار","أ.المعلوماتية",null,null,null,null,null,null,null,null,null,40,"أ.نوار","أ.المعلوماتية",null,null,null,null,null,null,null,null,null,40,"أ.نوار","أ.المعلوماتية",null,null,null,null,null,null,null,null,null,40,"أ.نوار","أ.المعلوماتية",null,null,null,null,null,null,null,null,null,40,"أ.نوار","أ.المعلوماتية"]
[null,"أ.الفلسفة",null,null,null,null,null,null,null,null,null,null,null,null,null,41,"أ.بوشيخي","أ.الاقتصاد",null,null,null,null,null,null,null,null,null,41,"أ.بوشيخي","أ.الاقتصاد",null,null,null,null,null,null,null,null,null,41,"أ.بوشيخي","أ.الاقتصاد",null,null,null,null,null,null,null,null,null,41,"أ.بوشيخي","أ.الاقتصاد",null,null,null,null,null,null,null,null,null,41,"أ.بوشيخي","أ.الاقتصاد"]
[null,"أ.عزيز",null,null,null,null,null,null,null,null,null,null,null,null,null,42,"أ.فارس","أ.الاقتصاد",null,null,null,null,null,null,null,null,null,42,"أ.فارس","أ.الاقتصاد",null,null,null,null,null,null,null,null,null,42,"أ.فارس","أ.الاقتصاد",null,null,null,null,null,null,null,null,null,42,"أ.فارس","أ.الاقتصاد",null,null,null,null,null,null,null,null,null,42,"أ.فارس","أ.الاقتصاد"]
[null,"أ.زقاي",null,null,null,null,null,null,null,null,null,null,null,null,null,43,"أ.لقبوري","أ.الرياضة",null,null,null,null,null,null,null,null,null,43,"أ.لقبوري","أ.الرياضة",null,null,null,null,null,null,null,null,null,43,"أ.لقبوري","أ.الرياضة",null,null,null,null,null,null,null,null,null,43,"أ.لقبوري","أ.الرياضة",null,null,null,null,null,null,null,null,null,43,"أ.لقبوري","أ.الرياضة"]
[null,null,null,null,null,null,null,null,null,null,null,null,null,null,null,44,"أ.تربش","أ.الرياضة",null,null,null,null,null,null,null,null,null,44,"أ.تربش","أ.الرياضة",null,null,null,null,null,null,null,null,null,44,"أ.تربش","أ.الرياضة",null,null,null,null,null,null,null,null,null,44,"أ.تربش","أ.الرياضة",null,null,null,null,null,null,null,null,null,44,"أ.تربش","أ.الرياضة"]
[null,null,null,null,null,null,null,null,null,null,null,null,null,null,null,45,"أ.كحلون","أ.الرياضة",null,null,null,null,null,null,null,null,null,45,"أ.كحلون","أ.الرياضة",null,null,null,null,null,null,null,null,null,45,"أ.كحلون","أ.الرياضة",null,null,null,null,null,null,null,null,null,45,"أ.كحلون","أ.الرياضة",null,null,null,null,null,null,null,null,null,45,"أ.كحلون","أ.الرياضة"]
[null,"أ.الفرنسية "]
[null,"أ.رابحي"]
[null,"أ.كوليلي"]
[null,"أ.بوعبان"]
[null,"أ.عباد"]
[null,"أ.بومانة "]
[]
[null,"أ.الانجليزية"]
[null,"أ.العرباوي"]
[null,"أ.معزوز"]
[null,"أ.مزاري"]
[null,"أ.شنتوف"]
[]
[]
[null,"أ.الاسبانية"]
[null,"أ.سيفاني",null,"التوقيــــــــــــت"]
[null,"أ.التكنولوجيا"]
[null,"أ.زغودي"]
[null,"أ.موس"]
[null,"أ.بوهنة",null,"08ـ09"]
[null,null,null,"09ـ10"]
[null,null,null,"10ـ11"]
[null,"أ.المعلوماتية",null,"11ـ12"]
[null,"أ.نوار",null,"14½-13½"]
[null,null,null,"15½-14½"]
[null,"أ.الاقتصاد",null,"16½-15½"]
[null,"أ.بوشيخي",null,"17½-16½"]
[null,"أ.فارس"]
[]
[null,"أ.الرياضة"]
[null,"أ.لقبوري"]
[null,"أ.تربش"]
[null,"أ.كحلون"]
[]
[]
[null,"منصب شاغر"]
[]
[]
[]
[]
[]
[null,null,null,"بن يحي محمد","رياضيات"]
[null,null,null,"شويرف نسمة"]
[null,null,null,"طالبي حفيظة"]
[null,null,null,"بناصرمحمد"]
[null,null,null,"بن عبد الله هدى"]
[null,null,null,"بن علي فاطمة "]
[]
[]
[]
[]
[]
[]
[]
[]
[]
[]
[]
[]
[]
[null,null,null,1,2,3,3,5,6,7,8,9,10,11,12,13,14,15,16,17,18,19,20,21,22,23,24,25,26,27,28,29,30,31,32,33,34,35,36,37,38,39,40,41,42,43,44,45,46,47,48,49,50,51,52,53,54]
[null,null,null,"بن يحي محمد","لعراجي احمد",null,null,null,null,null,"بن خلفون محمد","فيلالي سهام","قطبي مرا د","حوالف شرف الدين","جديد رشيد","جنان نعيمة","حماد معمر","بطهري نريمان ايمان","حسيني محمد","سي بشير محمد","وافي حليمة","قرمودي عبد الرحيم","برمضان ليلى","قوال فاطمة الزهرة","مهاجي سعاد","بادة وفاء","عاشورة نريمان","برابح امينة","بلعربي يوسف","عباس عبد الله","عتبي احمد","زغودي محمد","فريد حار امينة","سحنون نرجس","مسعود وفاء","مزوار محمد","درنوح محمد","اوزليفي ليلى","يوسف اكرام","بلعباسي سمرة","أحمد أمينة","اوسدي حسين","قناد عبد الخالق","كنزي خيرالدين"]
[null,null,null,null,"رياضيات","رياضيات","رياضيات","رياضيات","هـ كهربائية","هـ كهربائية","هـ ميكانيكية","فيزياء","فيزياء","فيزياء","فيزياء","ع طبيعية","ع طبيعية","ع طبيعية","ع طبيعية","عربية","عربية","عربية","عربية","عربية","ع اجتماعية","ع اجتماعية","ع اجتماعية","فلسفة","فلسفة","ع اسلامية","ع اسلامية","ت اقتصاد","ت اقتصاد","فرنسية","فرنسية","فرنسية","فرنسية","انجليزية","انجليزية","انجليزية","انجليزية","اسبانية","ت بدنية","ت بدنية"]
[]
[null,"الأحــد","09-08",null,null,"3ت ر",null,null,null,null,null,null,null,"2ع ت","ج م ع1","ج م ع1",null,null,"2ع ت",null,"3آف","ج م ع4","ج م ع1",null,"ج م ع2",null,"3ع ت 1","2آف 2",null,null,"ج م آ2",null,"3ت إ",null,"2ل أ",null,"2ت ر","3ع ت2","3ل أ",null,"ج م ع3"]
[null,null,"10-09",null,null,"3ت ر",null,null,null,null,null,null,null,"2ع ت","ج م ع1","ج م ع1",null,null,"2ع ت",null,"3آف","ج م ع3","ج م ع1",null,"ج م آ2",null,"2ت إ","2آف 2",null,null,"3ع ت2",null,"3ت إ","ج م ع2","3ع ت 1",null,"2آف 1","2ت ر","3ل أ",null,"ج م ع4","2ل أ"]
[null,null,"11-10",null,null,"2ت ر",null,"ج م ع4",null,null,null,null,null,"2ع ت","ج م ع1","ج م ع1",null,null,"2ع ت",null,"3ع ت 1",null,"ج م ع2",null,"ج م آ1",null,"2آف 1","3ع ت2",null,null,"ج م ع2",null,null,"3آف","3ت إ",null,null,"3ت ر",null,"2آف 2","2ت إ","3ل أ","ج م ع3","2ل أ"]
[null,null,"12-11",null,null,"2ت ر",null,"ج م ع4",null,null,null,null,null,"2ع ت","ج م ع1","ج م ع1",null,null,"2ع ت",null,"2آف 1",null,"ج م ع2",null,"3ت إ",null,"3ع ت2","3ع ت2",null,null,null,null,null,"3ت ر","2ت إ",null,"ج م آ1",null,"3آف","ج م ع2",null,"3ل أ","ج م ع3","2ل أ"]
[null,null,"14-13","2آف 2","ج م ع1",null,"2ع ت","ج م آ1","ج م ع3","ج م ع3","ج م ع3","2آف 1","3ت ر",null,null,"ج م ع3","3ع ت2","2آف 1",null,"ج م ع2",null,null,null,null,null,"2ل أ",null,null,"3آف","3ت إ","3ع ت 1","2ت إ",null,"3ل أ",null,"ج م ع4",null,"2ت ر",null,null,"ج م آ2"]
[null,null,"15-14","2ل أ","3ل أ",null,"3ع ت 1","ج م ع2","ج م ع3","ج م ع3","ج م ع3","2آف 1","3ت ر",null,null,"ج م ع3","3ع ت2","2آف 1",null,"3ت إ",null,"2آف 2",null,null,null,"2ت ر",null,null,"3آف","3ع ت 1","ج م ع4","2ت إ",null,"ج م ع1",null,"ج م آ2",null,null,null,null,"ج م آ1"]
[null,null,"16-15","2آف 1","3آف",null,"3ع ت2",null,null,"ج م ع2","ج م ع2",null,"ج م آ2",null,null,"ج م ع2","ج م آ2","ج م ع4",null,"ج م ع1",null,"2ع ت",null,"2ل أ",null,"2آف 2",null,null,"3ل أ","2ت ر",null,"ج م ع2",null,null,null,"ج م ع3",null,"2ع ت",null,null,null,"ج م ع2","ج م آ1","3ت ر"]
[null,null,"17-16",null,null,null,null,null,null,"ج م ع2","ج م ع2",null,"ج م آ2",null,null,"ج م ع2","ج م آ2",null,null,"3ل أ",null,null,null,"3ع ت2",null,"3آف",null,null,null,null,null,"ج م ع2",null,null,null,"2ع ت",null,null,null,null,null,"ج م ع2","ج م آ1","3ت ر"]
[null,"الإثنين","09-08","ج م ع3","ج م ع1","3ت ر",null,"ج م ع4","2ت ر",null,"2ت ر",null,"ج م ع2",null,"3ع ت 1","3ع ت 1","ج م آ1","ج م ع2",null,null,null,null,null,"2ت إ",null,"2ع ت",null,"2آف 2","3آف","2آف 1","3ع ت2","3ت إ",null,null,"2ل أ",null,null,null,"3ل أ"]
[null,null,"10-09","ج م ع3","ج م ع1","2ت إ",null,"ج م آ1","2ت ر",null,"2ت ر",null,"ج م ع2",null,"3ع ت 1","3ع ت 1","ج م آ2","ج م ع2",null,null,null,"2ع ت",null,"3ع ت2",null,"2ل أ",null,"3ت ر","3آف","2آف 2","3ل أ",null,null,null,"3ت إ","ج م ع4",null,null,"2آف 1"]
[null,null,"11-10","2آف 1","3ت إ","2ت ر",null,null,"3ت ر",null,"3ت ر","ج م ع3","ج م ع2",null,"3ع ت 1","3ع ت 1",null,"ج م ع2",null,null,null,"2آف 2",null,"2ل أ","ج م ع4",null,null,null,"3ل أ",null,"ج م آ1","2ت إ",null,null,"3ع ت2","ج م آ2",null,null,"3آف",null,null,null,"ج م ع1","3ع ت 1"]
[null,null,"12-11","ج م آ2",null,"2ت ر",null,null,"3ت ر",null,"3ت ر","ج م ع4","ج م ع2",null,"3ع ت 1","3ع ت 1","3ع ت2","ج م ع2",null,null,null,null,null,"2ل أ","ج م آ1","2آف 2",null,"3ت إ","2آف 1",null,null,"2ت إ",null,null,null,"ج م ع3",null,null,"3آف",null,null,null,"ج م ع1","3ع ت 1"]
[null,null,"14-13",null,null,null,"3ع ت2",null,"ج م ع4","ج م ع4","ج م ع4","2آف 2",null,"2ت ر",null,null,"ج م ع4",null,"2آف 2","ج م ع1","2آف 1",null,"3ت ر",null,"ج م آ2",null,"3ل أ",null,null,"3آف","ج م ع3",null,"3ت إ","ج م ع2",null,null,"ج م آ1","3ع ت 1",null,null,"2ت إ","2ل أ"]
[null,null,"15-14",null,null,null,"3ع ت 1",null,"ج م ع4","ج م ع4","ج م ع4","2آف 2",null,"2ت ر",null,null,"ج م ع4",null,"2آف 2","ج م ع2","3ع ت 1","ج م ع3","ج م آ2",null,"ج م ع1",null,"2ت إ",null,null,"2ل أ","3ت ر",null,"3ت إ","3آف",null,null,"2آف 1","3ع ت2","2ع ت",null,"ج م آ1","3ل أ"]
[null,null,"16-15",null,null,null,"3ع ت 1",null,"ج م ع1",null,"ج م ع1",null,null,"3ع ت2",null,null,"ج م ع1",null,"2ع ت","3ل أ","3آف","ج م ع4","ج م آ1",null,"ج م ع3",null,"2آف 1",null,null,null,null,null,"ج م ع1","3ت ر",null,null,"2آف 2","3ت إ",null,null,null,"ج م ع2","ج م آ2","2ت ر"]
[null,null,"17-16",null,null,null,null,null,"ج م ع1",null,"ج م ع1",null,null,null,null,null,"ج م ع1",null,"ج م ع3",null,"3آف",null,"ج م ع1",null,null,null,null,null,null,null,null,null,"ج م ع1",null,null,null,null,null,null,null,null,null,"ج م آ2","2ت ر"]
[null,"الثلاثاء","09-08",null,null,null,null,"ج م ع2","2ت ر","ج م ع4","2ت ر","2آف 1","3ت ر","2ع ت","ج م آ1",null,null,null,null,"3ل أ",null,null,null,null,null,"3آف","2ت إ","3ع ت2",null,null,null,null,"3ت إ","ج م ع1","3ع ت 1","ج م آ2","2آف 2",null,null,"2ل أ","ج م ع3"]
[null,null,"10-09",null,"ج م ع1",null,"2ع ت","ج م ع2","2ت ر","ج م ع3","2ت ر","ج م ع4","3ت ر","3ع ت2","3ع ت 1",null,null,null,null,"3ل أ",null,null,null,null,null,"3آف",null,"2آف 2",null,null,null,null,"3ت إ",null,"2ت إ","ج م آ2","2آف 1",null,null,"2ل أ","ج م آ1"]
[null,null,"11-10","2ل أ","3آف",null,"3ع ت 1",null,"3ت ر","ج م آ2","3ت ر",null,"ج م ع2","2ت ر","ج م ع1",null,null,"2آف 1",null,"3ت إ",null,null,null,null,null,"2ع ت","3ع ت2",null,null,null,null,null,"2ت إ","3ل أ",null,"ج م ع3","ج م آ1",null,null,"2آف 1","ج م ع4"]
[null,null,"12-11","ج م ع3","3ت إ",null,"3ع ت2","ج م ع4","3ت ر","ج م آ1","3ت ر",null,null,"2ت ر",null,null,null,"ج م ع2",null,null,null,null,null,null,null,"2آف 2","2آف 1","3ع ت 1",null,null,null,null,"2ت إ","2آف 1","2ل أ","2ع ت",null,null,null,"ج م ع1","ج م آ2"]
[null,"الأربعاء","09-08",null,null,null,"3ع ت2","ج م آ1",null,null,null,"ج م ع3",null,null,null,null,null,null,"ج م ع3","3ت إ","3آف",null,"ج م آ2",null,null,null,null,"3ع ت 1",null,"2ع ت","ج م ع1","2ت إ",null,"3ت ر",null,"ج م ع4","2آف 2","2ت ر","2آف 1","ج م ع2",null,"3ل أ"]
[null,null,"10-09",null,null,null,"3ع ت2","ج م ع4",null,null,null,"ج م ع3",null,null,null,null,null,null,"ج م ع3","ج م ع2","3آف",null,"ج م آ2",null,"3ت إ",null,null,"3ت ر",null,"2آف 2","ج م آ1","2ت إ",null,"3ل أ",null,"2ع ت","2ت ر","3ع ت 1","2آف 1","ج م ع1",null,"2ل أ"]
[null,null,"11-10",null,null,null,"3ع ت 1","ج م ع2",null,null,null,"ج م ع3",null,null,null,null,null,null,"ج م ع3","3ل أ","2آف 1",null,"3ت ر","2ت ر","ج م آ1",null,null,"3ع ت2",null,"3آف","ج م آ2",null,null,"ج م ع1","2ت إ",null,null,"3ت إ","2ع ت","2ل أ",null,null,"ج م ع4","2آف 2"]
[null,null,"12-11",null,null,null,"3ع ت 1","ج م ع2",null,null,null,"ج م ع3",null,null,null,null,null,null,"ج م ع3","ج م ع1",null,null,"ج م آ1","2ت إ",null,null,null,"3ت إ",null,"2ع ت",null,null,null,"3آف","3ع ت2","ج م آ2","2آف 1","3ت ر","3ل أ","2ل أ",null,null,"ج م ع4","2آف 2"]
[null,null,"14-13","ج م ع3","ج م ع1","2ت ر",null,null,"3ت ر","ج م آ1","3ت ر",null,null,null,null,"3ع ت 1",null,"ج م ع4",null,null,null,"2آف 2","ج م آ1","3ع ت2","ج م آ2","2ل أ",null,null,"3آف","2ت إ",null,null,null,"3ل أ","3ت إ",null,null,null,null,"ج م ع2"]
[null,null,"15-14","ج م ع3","3ت إ","2ت إ",null,null,"3ت ر","ج م آ1","3ت ر",null,null,null,null,"ج م ع1",null,"ج م ع2",null,null,null,"2ع ت","ج م آ1","2ل أ","ج م ع4","2ت ر","3ل أ",null,"2آف 1",null,null,null,null,null,"3ع ت 1",null,null,null,null,"2آف 2","ج م آ2",null,"3آف","3ع ت2"]
[null,null,"16-15","ج م آ2",null,"3ت ر",null,null,"ج م ع3",null,"ج م ع3",null,null,null,null,"ج م ع3",null,null,null,null,null,"ج م ع4",null,"2ت ر","3ت إ","2ع ت","3ع ت 1",null,"3ل أ","2آف 1",null,null,null,"ج م ع2","2ل أ",null,null,null,null,null,"2ت إ",null,"3آف","ج م ع2"]
[null,null,"17-16",null,null,null,null,null,"ج م ع1",null,"ج م ع1",null,null,null,null,null,null,null,null,null,null,"ج م ع3",null,null,null,null,"3ت ر",null,null,null,null,null,null,null,null,null,null,null,null,null,"ج م ع4"]
[null,"الخميس","09-08",null,"3ت إ","3ت ر","2ع ت",null,null,null,null,"ج م ع4","ج م آ2","3ع ت2","3ع ت 1","ج م ع1","3ع ت2","ج م ع4","ج م ع3",null,null,null,null,null,"ج م ع2","2ت ر",null,null,"2آف 1",null,"3ل أ","2ت إ",null,null,null,null,"2آف 2",null,null,null,"ج م آ1","2ل أ"]
[null,null,"10-09","ج م ع3","3ل أ","3ت ر","2ع ت",null,null,null,null,"ج م ع4","ج م ع3","3ع ت2","ج م ع1",null,"3ع ت2","ج م ع4","2آف 2",null,null,null,null,"2ت إ","ج م آ1","3آف",null,null,"2آف 1",null,"3ع ت 1","3ت إ",null,null,null,null,"2ت ر",null,null,null,"ج م آ2","2ل أ"]
[null,null,"11-10","ج م آ2","ج م ع1","2ت ر",null,null,null,null,null,"ج م ع4","3ت ر","3ع ت2",null,"3ع ت 1","3ع ت2","ج م ع4","2ع ت",null,null,null,null,"2ل أ","ج م ع3","2آف 2","2ت إ",null,"3آف",null,null,null,"3ت إ",null,null,null,"ج م ع1",null,null,null,null,"3ل أ","ج م ع2","2آف 1"]
[null,null,"12-11","2آف 2",null,"2ت إ",null,null,null,null,null,"ج م ع4",null,"3ع ت2",null,"3ع ت 1","3ع ت2","ج م ع4","2ع ت",null,null,null,null,"2ت ر","ج م آ2","2ل أ","3ل أ",null,"3آف",null,"3ت ر",null,"3ت إ",null,null,null,"ج م ع1",null,null,null,"ج م ع3",null,"ج م ع2","2آف 1"]
[null,null,"14-13",null,null,null,null,"ج م ع4","2ت ر","ج م آ2","2ت ر","2آف 2",null,null,"ج م آ1",null,"ج م آ1",null,null,"ج م ع2","3ع ت 1","ج م ع3","ج م آ2",null,"3ت إ",null,"2آف 1",null,null,"2ل أ",null,"2ت إ",null,null,"3ع ت2",null,null,"3ت ر","3آف","ج م ع1",null,null,"3ل أ"]
[null,null,"15-14",null,null,null,null,"ج م ع2","2ت ر","ج م آ2","2ت ر","ج م ع3",null,"2ع ت","ج م آ1",null,"ج م آ1",null,null,"ج م ع1","3آف","ج م ع4","ج م آ2",null,null,null,"3ت ر",null,null,"3ت إ",null,"2ت إ",null,null,"2ل أ",null,null,"3ع ت2","2آف 1","2آف 2",null,null,"3ل أ","3ع ت 1"]
[null,null,"16-15",null,null,null,null,null,"ج م ع4","ج م ع2","ج م ع4",null,null,"2ت ر",null,"ج م ع2","ج م ع2/4",null,null,null,"2آف 1","2آف 2","3ت ر",null,"ج م ع1",null,null,null,null,"2ت إ",null,"ج م ع 2",null,null,null,null,null,"3ت ر","3ع ت 1","2ل أ",null,null,null,"3ع ت 1"]
[null,null,"17-16"]

{"sheet":"بينات التلاميد","index":1,"n_rows":708,"n_cols":16,"rows_kept":708,"cut":false,"hidden":false,"merged":[[2,12,3,12],[2,13,3,13],[2,14,2,15],[2,6,3,6],[2,7,3,7],[2,8,3,8],[2,9,3,9],[2,10,3,10],[2,11,3,11],[2,0,3,0],[2,1,3,1],[2,2,3,2],[2,3,3,3],[2,4,3,4],[2,5,3,5]]}
[]
[]
["رقم التسجيل","اللقب و الاســم","تاريخ الميلاد","مكان الميلاد","الجنس","الصفة","القسم","إسم الولي","مهنة الولي","العنوان","القسم بالاحرف","ر ت ","تاريخ الخروج","تاريخ الدخول","أكتوبر"]
[null,null,null,null,null,null,null,null,null,null,null,null,null,null,"دخول","خروج"]
[2,"امحمدي بشرى","2000-05-04","مغنية","أ","م2","3ت.ر01","امحمدي الشيخ",null,"قرية عقيد عباس","السنة الثالثة ثانوي تقني رياضي",2,"//////"]
[1,"أوكيلي دنيا","2000-08-30","مغنية","أ","م2","3ت.ر01","أوكيلي ميلود",null,"حي الركيزة حمام بوغرارة 13320","السنة الثالثة ثانوي تقني رياضي",1,"//////",null,"د ن1"]
[3,"برودي بشرى","2000-07-06","مغنية","أ","م2","3ت.ر01","برودي عبد القادر",null,"قرية البخاتة مغنية","السنة الثالثة ثانوي تقني رياضي",3,"//////"]
[5,"بلميمون ابتسام","2000-07-25","مغنية","أ","خ2","3ت.ر01","بلميمون عبد القادر",null,"شارع01 رقم 34 حي الشهداء ـ مغنية ","السنة الثالثة ثانوي تقني رياضي",5,"//////"]
[6,"بوعناني أيمن","2001-12-10","مغنية","ذ","خ1","3ت.ر01","بوعناني غياث",null,"عمارة A06  حي القاضي - مغنية ","السنة الثالثة ثانوي تقني رياضي",6,"//////"]
[7,"تابتي فاطنة","1999-01-13","مغنية","أ","م2","3ت.ر01","تابتي محمد",null,"الطريق الوطني رقم 35 الكفاف ـ مغنية ","السنة الثالثة ثانوي تقني رياضي",7,"//////"]
[9,"حمادي أمحمد عماد","1999-09-02","مغنية","ذ","خ1","3ت.ر01","حمادي يوسف","ع1","حي الشهداء ـ مغنية ","السنة الثالثة ثانوي تقني رياضي",9,"//////"]
[10,"دخيسي عثمان","2000-02-07","مغنية","ذ","م1","3ت.ر01","دخيسي محمد",null,"قرية اولاد الشارف ـ مغنية ","السنة الثالثة ثانوي تقني رياضي",10]
[11,"زناقي شريفة","2000-04-04","مغنية","أ","م2","3ت.ر01","زناقي عمر",null,"قرية بوسدرة البخاتة ، مغنية ","السنة الثالثة ثانوي تقني رياضي",11,"//////",null,"ص ن1","ص خ خ1"]
[13,"طوالة بهاء الدين","2000-05-08","مغنية","ذ","م1","3ت.ر01","طوالة الهبري",null,"قرية المصامدة ، مغنية ","السنة الثالثة ثانوي تقني رياضي",13,"//////"]
[14,"قادري رابح صغير أمين","1999-09-30","الغزوات","ذ","خ1","3ت.ر01","قادري عبد العزيز","ع1","حي الشهداء ـ مغنية ","السنة الثالثة ثانوي تقني رياضي",14,"//////"]
[15,"مرغاد إلياس","1997-07-08","مغنية","ذ","خ1","3ت.ر01","مرغاد عبد الرزاق","ع1","حي الشهداء ـ مغنية ","السنة الثالثة ثانوي تقني رياضي",15,"//////"]
[16,"مزاري أيمن","2000-05-02","مغنية","ذ","م1","3ت.ر01","مزاري العيد",null,"حي الركيزة حمام بوغرارة 13320","السنة الثالثة ثانوي تقني رياضي",16,"//////"]
[18,"منصور إيمان دينا زاد","2000-07-27","مغنية","أ","م2","3ت.ر01","منصور محمد",null,"قرية المصامدة  ، مغنية ","السنة الثالثة ثانوي تقني رياضي",18,"//////"]
[19,"منصوري المهدي","1997-04-09","مغنية","ذ","ن1","3ت.ر01","منصوري محمد","ع1","حمام بوغرارة 13320","السنة الثالثة ثانوي علوم تجريبية ",19,"//////"]
[16]
[17]
[18]
[19]
[4,"بلعالية محمد الأمين","2000-04-28","مغنية","ذ","م1","3ت.ر01","بلعالية محمد",null,"قرية العقيد عباس ـ مغنية ","السنة الثالثة ثانوي تقني رياضي",4,"//////"]
[8,"حماد محمد الأمين","1997-04-06","مغنية","ذ","ن1","3ت.ر01","حماد دريوش","ع1","حمام بوغرارة 13320","السنة الثالثة ثانوي تقني رياضي",8,"//////"]
[12,"سكران عبد الهادي","2000-04-12","مغنية","ذ","م1","3ت.ر01","سكران مصطفي",null,"قرية لكفاف","السنة الثالثة ثانوي تقني رياضي",12,"//////"]
[17,"مزاري عبد الله","2000-11-16","مغنية","ذ","م1","3ت.ر01","مزاري بلخير",null,"حمام بوغرارة","السنة الثالثة ثانوي تقني رياضي",17,"//////"]
[20,"موسى أيوب","1999-03-03","مغنية","ذ","خ1","3ت.ر01","موسى محمد","ع1","حي الشهداء حي جابر رقم 17 مغنية ","السنة الثالثة ثانوي علوم تجريبية ",20,"//////"]
[21,"هداجي أمير يونس","2000-07-30","مغنية","ذ","م1","3ت.ر01","هداجي عبد الجليل",null,"قرية اولاد الشارف مغنية","السنة الثالثة ثانوي علوم تجريبية ",21,"//////"]
[22,"وادفل سارة","2000-02-19","مغنية","أ","خ2","3ت.ر01","وادفل بن يونس",null,"حي الشهداء رقم 10","السنة الثالثة ثانوي علوم تجريبية ",22,"//////"]
[27]
[28]
[29]
[30]
[23,"برحيل وداد","2000-08-28","مغنية","أ","م2","3ع.تج01","برحيل عبد الرحمن",null,"قرية المصامدة ـ مغنية ","السنة الثالثة ثانوي علوم تجريبية ",23,"//////"]
[24,"بعوش مريم","1998-01-28","مغنية","أ","م2","3ع.تج01","بعوش لحسن",null,"قرية العقيد عباس ، مغنية ","السنة الثالثة ثانوي علوم تجريبية ",24,"//////"]
[25,"بلحسن حسين","2000-03-01","مغنية","ذ","م1","3ع.تج01","بلحسن عبد الرزاق",null,"مزرعة الشرقاي العيد ، مغنية ","السنة الثالثة ثانوي علوم تجريبية ",25,"//////"]
[26,"بوزيان بلال","1998-11-08","مغنية","ذ","خ1","3ع.تج01","بوزيان أحمد","ع1","حي الشهداء ، مغنية ","السنة الثالثة ثانوي علوم تجريبية ",26,"//////"]
[27,"تابتي لخضر","1998-04-12","مغنية","ذ","م1","3ع.تج01","تابتي لخضر",null,"الطريق الوطني رقم 35 الكفاف ، مغنية ","السنة الثالثة ثانوي علوم تجريبية ",27,"//////"]
[28,"تواتي نادية","2000-01-15","مغنية","أ","م2","3ع.تج01","تواتي عبد القادر",null,"قرية أولاد الشارف ، مغنية ","السنة الثالثة ثانوي علوم تجريبية ",28,"//////"]
[29,"جزيري محمد","1999-06-26","مغنية","ذ","م1","3ع.تج01","جزيري علي",null,"قرية بوسدرة البخاتة ـ مغنية ","السنة الثالثة ثانوي علوم تجريبية ",29,"//////"]
[30,"حميدي أسية","2000-04-24","مغنية","أ","م2","3ع.تج01","حميدي موسى",null,"حي الباطوار شارع 17 الباب 06 مغنية ","السنة الثالثة ثانوي علوم تجريبية ",30,"//////"]
[31,"خاطر منال","1999-11-03","مغنية","أ","ن2","3ع.تج01","خاطر أحمد","ع2","قرية بوسدرة البخاتة ، مغنية ","السنة الثالثة ثانوي علوم تجريبية ",31,"//////"]
[32,"خروبي فاطنة","2000-06-04","مغنية","أ","م2","3ع.تج01","خروبي امعمر",null,"العقيد عباس","السنة الثالثة ثانوي علوم تجريبية ",32,"//////"]
[33,"داود رامي كمال الدين","1999-08-08","عين الترك","ذ","ن1","3ع.تج01","الطيب","ع1","حي أولاد بن صابر ، مغنية ","السنة الثالثة ثانوي علوم تجريبية ",33,"//////"]
[34,"دمامن محمد","2000-05-28","مغنية","ذ","م1","3ع.تج01","دمامن خالد",null,"قرية لكفاف مغنية","السنة الثالثة ثانوي علوم تجريبية ",34,"//////"]
[35,"زيني محمد بلال","2000-08-31","مغنية","ذ","م1","3ع.تج01","زيني واسيني",null,"اولاد الشارف مغنية تلمسان","السنة الثالثة ثانوي علوم تجريبية ",35,"//////"]
[36,"صدوقي صالح","2000-02-24","مغنية","ذ","م1","3ع.تج01","صدوقي يماني",null,"قرية العقيد لطيفي L4 B2  مغنية ","السنة الثالثة ثانوي علوم تجريبية ",36,"//////"]
[37,"ضيف الله محمد الشريف","1999-08-31","مغنية","ذ","خ1","3ع.تج01","ضيف الله علي","ع1","شارع 25 حي الشهداء ـ مغنية ","السنة الثالثة ثانوي علوم تجريبية ",37,"//////"]
[38,"طاهي نهال فاطمة الزهراء","2000-04-11","مغنية","أ","خ2","3ع.تج01","طاهي فتحي",null,"حي بلال  العمارة رقم04 الطابق3","السنة الثالثة ثانوي علوم تجريبية ",38,"//////"]
[39,"عبد النبي زكية","1999-10-12","أولاد ميمون","أ","ن2","3ع.تج01","عبد النبي عبد القادر","ع2","الطريق الوطني رقم 35 الكفاف ، مغنية ","السنة الثالثة ثانوي علوم تجريبية ",39,"//////"]
[40,"عرقوب عبد اللطيف","1999-04-21","بشار","ذ","ن1","3ع.تج01","عرقوب جمال","ع1","قرية المصامدة ـ مغنية ","السنة الثالثة ثانوي علوم تجريبية ",40,"//////"]
[41,"عميرات وليد","2000-06-18","مغنية","ذ","خ1","3ع.تج01","محمد",null,"","السنة الثالثة ثانوي علوم تجريبية ",41,"//////"]
[42,"قاشور محمد شعيب","1999-03-28","مغنية","ذ","خ1","3ع.تج01","قاشور محمد","ع1","رقم 16 شارع محطة القطار ، مغنية ","السنة الثالثة ثانوي علوم تجريبية ",42,"//////"]
[43,"كلاليش منال","2000-11-14","حسين داي","أ","خ2","3ع.تج01","كلاليش سعيد",null,"27حي 240 مسكن حي الغابات مغنية","السنة الثالثة ثانوي علوم تجريبية ",43,"//////"]
[44,"لكحل عماد","2000-06-06","مغنية","ذ","م1","3ع.تج01","لكحل مصطفي",null,"اولاد قدور الصغار مغنية","السنة الثالثة ثانوي علوم تجريبية ",44,"//////"]
[45,"مزاري دنيا زاد","2000-03-16","مغنية","أ","م2","3ع.تج01","مزاري واسيني",null,"قرية البخاتة بوسدرة","السنة الثالثة ثانوي علوم تجريبية ",45,"//////"]
[46,"مزيان يسرى نورالهدى","2000-08-16","مغنية","أ","خ2","3ع.تج01","مزيان ميلود",null,"حي الشهداء رقم39","السنة الثالثة ثانوي علوم تجريبية ",46,"//////"]
[47,"هاملي سماح","1997-10-16","مغنية","أ","خ2","3ع.تج01","هاملي عبد العزيز",null,"حي بلال رقم 41 ، مغنية ","السنة الثالثة ثانوي علوم تجريبية ",47,"//////"]
[]
[]
[]
[]
[]
[]
[]
[]
[48,"العرباوي محمد عبد الإله","1997-10-10","مغنية","ذ","ن1","3ع.تج02","العرباوي أحمد",null,"05 الحي السكني ، مغنية ","السنة الثالثة ثانوي علوم تجريبية ",48,"//////"]
[49,"القرمة محمد رياض","2000-05-19","مغنية","ذ","م1","3ع.تج02","القرمة ميلود",null,"اولاد الشارف","السنة الثالثة ثانوي علوم تجريبية ",49,"//////"]
[50,"بطيوي فرح","2000-05-04","مغنية","أ","م2","3ع.تج02","بطيوي محمد",null,"مزرعة جابر حي الشهداء","السنة الثالثة ثانوي علوم تجريبية ",50,"//////"]
[51,"بن براهيم شهرزاد","2000-06-24","مغنية","أ","م2","3ع.تج02","بن براهيم محمد",null,"قرية ","السنة الثالثة ثانوي علوم تجريبية ",51,"//////"]
[52,"بن زغادي مروى","2000-09-23","مغنية","أ","م2","3ع.تج02","",null,"","السنة الثالثة ثانوي علوم تجريبية ",52,"//////"]
[53,"بن زغادي هديل","2000-03-06","مغنية","أ","خ2","3ع.تج02","ين زغادي بن أعمر","ع2","حي الشهداء ـ مغنية ","السنة الثالثة ثانوي علوم تجريبية ",53,"//////"]
[54,"بن سالم نجوى","2000-12-24","مغنية","أ","خ2","3ع.تج02","بن سالم  علي",null,"حي الشهداء","السنة الثالثة ثانوي علوم تجريبية ",54,"//////"]
[55,"بن علي نور الايمان","2000-11-18","ندرومة","أ","خ2","3ع.تج02","لحسن ناصر محمد",null,"قباضة الضرائب حي بن رشد ","السنة الثالثة ثانوي علوم تجريبية ",55,"//////"]
[56,"بوزي فتحي","2000-06-07","مغنية","ذ","خ1","3ع.تج02","بوزي رمضان",null,"رقم 25 حي الشهداء ، مغنية ","السنة الثالثة ثانوي علوم تجريبية ",56,"//////"]
[57,"حجيمي شروق","2000-09-25","غفرون","أ","ن2","3ع.تج02","حجيمي علي",null,"حي الشرطة 70مسكن عمارة 35 ","السنة الثالثة ثانوي علوم تجريبية ",57,"//////"]
[58,"زيتوني محمد الأمين","1997-10-30","مغنية","ذ","م1","3ع.تج02","زيتوني محمد",null,"قرية المصامدة ـ مغنية","السنة الثالثة ثانوي علوم تجريبية ",58,"//////"]
[59,"سبيع الواسيني","1999-08-03","مغنية","ذ","ن1","3ع.تج02","سبيع نورالدين","ع1","عمارة P  قرية العقيد لطفي ـ مغنية ","السنة الثالثة ثانوي علوم تجريبية ",59,"//////"]
[60,"شارف شيماء","2000-08-16","مغنية","أ","خ2","3ع.تج02","محمد",null,"ثكنة الحماية المدنية حي بلال مغنية ","السنة الثالثة ثانوي علوم تجريبية ",60,"//////"]
[61,"شقرون مريم","2000-12-20","مغنية","أ","م2","3ع.تج02","شقرون لحسن",null,"حمام بوغرارة ","السنة الثالثة ثانوي علوم تجريبية ",61,"//////"]
[62,"شقرون هبة الرحمن","1999-03-10","مغنية","أ","خ2","3ع.تج02","شقرون محمد","ع2","شارع 01 منزل 25 حي الشهداء ، مغنية ","السنة الثالثة ثانوي علوم تجريبية ",62,"//////"]
[63,"عبد اللاهي حياة","1999-01-23","مغنية","أ","خ2","3ع.تج02","عبد اللاهي محمد","ع2","طريق المسبح رقم 01 حي الشهداء ـ مغنية ","السنة الثالثة ثانوي علوم تجريبية ",63,"//////"]
[64,"عبو محمد","1999-11-04","مغنية","ذ","م1","3ع.تج02","عبو بوزيان",null,"اولاد الشارف","السنة الثالثة ثانوي علوم تجريبية ",64,"//////"]
[65,"قزوي ياسين","1999-07-03","مغنية","ذ","ن1","3ع.تج02","قزوي عبد القادر","ع1","الحي السكني الجديد البريقي ـ مغنية ","السنة الثالثة ثانوي علوم تجريبية ",65,"//////"]
[66,"لزعر مروى","2000-10-25","مغنية","أ","خ2","3ع.تج02","لزعر زوبير",null,"درب 0 رقم 04 حي المقراني ـ مغنية ","السنة الثالثة ثانوي علوم تجريبية ",66,"//////"]
[67,"مزاري إبراهيم","2000-03-16","مغنية","ذ","م1","3ع.تج02","مزاري واسيني",null,"قرية بوسدرة","السنة الثالثة ثانوي علوم تجريبية ",67,"//////"]
[68,"مزاري خديجة","2000-04-08","مغنية","أ","م2","3ع.تج02","مزاري أحمد",null,"قرية بوسدرة البخاتة ، مغنية ","السنة الثالثة ثانوي علوم تجريبية ",68,"//////"]
[69,"منور فريال عبير","2000-09-19","مغنية","أ","م2","3ع.تج02","منور احمد",null,"قرية العقيد عباس","السنة الثالثة ثانوي علوم تجريبية ",69,"//////"]
[70,"هواري رجاء","1999-04-08","مغنية","أ","ن2","3ع.تج02","هواري عبد القادر","ع2","قرية المصامدة ، مغنية ","السنة الثالثة ثانوي علوم تجريبية ",70,"//////"]
[71,"واسطي أيمن","2000-06-10","مغنية","ذ","خ1","3ع.تج02","واسطي محمد",null,"حي الشهداء ـ مغنية","السنة الثالثة ثانوي علوم تجريبية ",71,"//////"]
[]
[]
[]
[]
[]
[]
[]
[]
[]
[]
[]
[]
[72,"أمبارك فايزة","2000-04-25","مغنية","أ","م2","3ت.إ01","أمبارك ميلود",null,"قرية العقيد عباس ","السنة الثالثة ثانوي علوم تجريبية ",72,"//////"]
[73,"أير مقران عائشة صبرينة","1999-08-16","مغنية","أ","م2","3ت.إ01","أير مقران محمد",null,"قرية المصامدة ، مغنية ","السنة الثالثة ثانوي علوم تجريبية ",73,"//////"]
[74,"العياطي إسلام","2000-09-10","مغنية","ذ","م1","3ت.إ01","العياطي تهامي",null,"حمام بوغرارة","السنة الثالثة ثانوي علوم تجريبية ",74,"//////"]
[75,"بسويعة صباح","1995-05-06","مغنية","أ","م2","3ت.إ01","مطهري عايدة",null,"ثانوية الخوارزمي ـ مغنية ","السنة الثالثة ثانوي علوم تجريبية ",75,"//////"]
[76,"بن زعتر محمد الواسيني","1999-07-24","سيدي بلعباس","ذ","م1","3ت.إ01","بن زعتر محمد",null,"قرية أولاد الشارف ، مغنية ","السنة الثالثة ثانوي علوم تجريبية ",76,"//////"]
[77,"بن ساحة جيلالي","1997-12-27","مغنية","ذ","خ1","3ت.إ01","بن ساحة أحمد",null,"قرية المصامدة ـ مغنية ","السنة الثالثة ثانوي علوم تجريبية ",77,"//////"]
[78,"بن عابد سارة","1997-06-24","مغنية","أ","م2","3ت.إ01","بن عابد بن أحمد",null,"قرية أولاد الشارف ، مغنية ","السنة الثالثة ثانوي علوم تجريبية ",78,"//////"]
[79,"بن موسى وردة","1999-04-14","مغنية","أ","م2","3ت.إ01","بن موسى لحسن",null,"قرية بوسدرة البخاتة ، مغنية ","السنة الثالثة ثانوي علوم تجريبية ",79,"//////"]
[80,"بوزاهري إكرام","1999-03-21","مغنية","أ","ن2","3ت.إ01","بوزاهري مصطفى",null,"قرية العقيد عباس ـ مغنية ","السنة الثالثة ثانوي علوم تجريبية ",80,"//////"]
[81,"بوشيخي شرف الدين","2000-09-26","مغنية","ذ","م1","3ت.إ01","بوشيخي محمد",null,"قرية المصامدة ، مغنية ","السنة الثالثة ثانوي علوم تجريبية ",81,"//////"]
[82,"بوماجر يوسف","2000-06-07","مغنية","ذ","م1","3ت.إ01","بوماجر أحمد",null,"محطة العقيد عباس ـ مغنية ","السنة الثالثة ثانوي علوم تجريبية ",82,"//////"]
[83,"ترنان شرف الدين","2000-12-21","مغنية","ذ","م1","3ت.إ01","ترنان واسيني",null,"حي بلال ، مغنية ","السنة الثالثة ثانوي علوم تجريبية ",83,"//////"]
[84,"حمادي عبد الجليل","1999-03-27","مغنية","ذ","م1","3ت.إ01","حمادي علي",null,"قرية المصامدة ـ مغنية ","السنة الثالثة ثانوي علوم تجريبية ",84,"//////"]
[85,"حمدوني إناس","1999-07-08","مغنية","أ","ن2","3ت.إ01","حمدوني عبد القادر",null,"حي الشهداء ، مغنية ","السنة الثالثة ثانوي علوم تجريبية ",85,"//////"]
[86,"خاليد هشام","1998-09-03","الغزوات","ذ","ن1","3ت.إ01","خاليد شريف",null,"حمام بوغرارة 13320","السنة الثالثة ثانوي علوم تجريبية ",86,"//////"]
[87,"خثير أمينة","1999-07-08","مغنية","أ","م2","3ت.إ01","خثير محمد",null,"اولاد الشارف","السنة الثالثة ثانوي علوم تجريبية ",87,"//////"]
[88,"خلوفي وليد","1998-08-11","مغنية","ذ","م1","3ت.إ01","خلوفي رابح",null,"حي الركيزة حمام بوغرارة ","السنة الثالثة ثانوي علوم تجريبية ",88,"//////"]
[89,"خليد هاجر","2000-05-25","حمام بوغرارة","أ","م2","3ت.إ01","خليد يحيى",null,"حمام بوغرارة 1333","السنة الثالثة ثانوي علوم تجريبية ",89,"//////"]
[90,"ديب أحمد طاع الله","1999-05-20","مغنية","ذ","ن1","3ت.إ01","ديب بومدين",null,"قرية أولاد الشارف ـ مغنية ","السنة الثالثة ثانوي علوم تجريبية ",90,"//////"]
[91,"راجعي يوسف","2000-03-04","مغنية","ذ","م1","3ت.إ01","راجعي عبد الحميد",null,"قرية أولاد الشارف ـ مغنية ","السنة الثالثة ثانوي علوم تجريبية ",91,"//////"]
[92,"زرقاني عبد الرحيم","1997-07-13","مغنية","ذ","م1","3ت.إ01","زرقاني عبد الغني",null,"قرية أولاد الشارف ، مغنية ","السنة الثالثة ثانوي علوم تجريبية ",92,"//////"]
[93,"ساعد نسرين","1998-05-13","مغنية","أ","خ2","3ت.إ01","ساعد حمزة",null,"قرية أولاد الشارف ـ  مغنية ","السنة الثالثة ثانوي علوم تجريبية ",93,"//////"]
[94,"شباب عبد الوهاب","1997-06-15","مغنية","ذ","م1","3ت.إ01","شباب مختار",null,"حمام بوغرارة 13320","السنة الثالثة ثانوي علوم تجريبية ",94,"//////"]
[95,"شقرون منال","2000-07-08","مغنية","أ","م2","3ت.إ01","شقرون عبد الفتاح",null,"حمام بوغرارة","السنة الثالثة ثانوي علوم تجريبية ",95,"//////"]
[96,"صديقي أمينة شيماء","1998-07-22","مغنية","أ","خ2","3ت.إ01","صديقي محمد",null,"رقم 42 شارع شعبان حمدون ـ مغنية ","السنة الثالثة ثانوي علوم تجريبية ",96,"//////"]
[97,"ضيف بن أعمر","2000-04-24","مغنية","ذ","م1","3ت.إ01","ضيف شيخ",null,"حمام بوغرارة 13320","السنة الثالثة ثانوي علوم تجريبية ",97,"//////"]
[98,"ضيف عماد الدين","1999-10-18","مغنية","ذ","م1","3ت.إ01","ضيف بن عمر",null,"حمام بوغرارة 13320","السنة الثالثة ثانوي علوم تجريبية ",98,"//////"]
[99,"عباس جواد","2000-07-06","مغنية","ذ","م1","3ت.إ01","محمد عباس",null,"حمام بوغرارة","السنة الثالثة ثانوي تسييــر و اقتصــاد",99,"//////"]
[100,"عبد المالك يوسف","1998-04-30","مغنية","ذ","م1","3ت.إ01","عبد المالك محمد",null,"قرية أولاد الشارف ، مغنية ","السنة الثالثة ثانوي تسييــر و اقتصــاد",100,"//////"]
[101,"علوش عبد الحكيم","1999-07-23","مغنية","ذ","ن1","3ت.إ01","علوش محمد",null,"قرية بوسدرة البخاتة ، مغنية ","السنة الثالثة ثانوي تسييــر و اقتصــاد",101,"//////"]
[102,"عمراوي شيماء","1999-09-02","مغنية","أ","ن2","3ت.إ01","عمراوي عبد الحفيظ",null,"قرية العقيد عباس ـ مغنية ","السنة الثالثة ثانوي تسييــر و اقتصــاد",102,"//////"]
[103,"قزوي محمد حبيب","1998-01-31","مغنية","ذ","ن1","3ت.إ01","قزوي فوزي",null,"قرية العقيد عباس ، مغنية ","السنة الثالثة ثانوي تسييــر و اقتصــاد",103,"//////"]
[104,"قعاد جميلة","2000-03-12","مغنية","أ","م2","3ت.إ01","قعاد عبد القادر",null,"قرية المصامدة مغنية عند التاجر بوعزة القندوز","السنة الثالثة ثانوي تسييــر و اقتصــاد",104,"//////"]
[105,"قنشي أحلام","2000-07-26","مغنية","أ","خ2","3ت.إ01","قنشي فوزي",null,"حي الشهداء منزل02 شارع02","السنة الثالثة ثانوي تسييــر و اقتصــاد",105,"//////"]
[106,"كاملين معمر","1998-04-25","مغنية","ذ","م1","3ت.إ01","كاملين صالح",null,"قرية المصامدة ـ مغنية ","السنة الثالثة ثانوي تسييــر و اقتصــاد",106,"//////"]
[107,"لياني مروان","1999-08-12","مغنية","ذ","ن1","3ت.إ01","لياني محمد",null,"حمام بوغرارة 13320","السنة الثالثة ثانوي تسييــر و اقتصــاد",107,"//////"]
[108,"نميش صفاء حفيظة","1999-10-16","مغنية","أ","خ2","3ت.إ01","نميش محمد",null,"حي الشهداء","السنة الثالثة ثانوي تسييــر و اقتصــاد",108,"//////"]
[109,"ولد علي أمينة","2000-08-30","مغنية","أ","م2","3ت.إ01","ولد علي بومدين",null,"حمام بوغرارة","السنة الثالثة ثانوي تسييــر و اقتصــاد",109,"//////"]
[]
[]
[]
[]
[]
[]
[]
[]
[110,"أمحمدي جهان","1998-11-21","مغنية","أ","ن2","3آ.فل01","أمحمدي محمد",null,"قرية أولاد قدور ـ مغنية ","السنة الثالثة ثانوي تسييــر و اقتصــاد",110,"//////"]
[111,"بختي بشرى","1998-04-20","مغنية","أ","ن2","3آ.فل01","بختي عبد الله",null,"قرية بوسدرة البخاتة ـ مغنية ","السنة الثالثة ثانوي تسييــر و اقتصــاد",111,"//////"]
[112,"بداد أية فاطمة الزهراء","2000-09-23","سيدي بلعباس","أ","خ2","3آ.فل01","بداد احمد",null,"29 حي الشهداء","السنة الثالثة ثانوي تسييــر و اقتصــاد",112,"//////"]
[113,"بشلاغم سمية","1998-10-05","سبدو","أ","ن2","3آ.فل01","اوكيلي مصطفى",null,"قرية أولاد الشارف ـ مغنية ","السنة الثالثة ثانوي تسييــر و اقتصــاد",113,"//////"]
[114,"بن حامد فايزة","1997-11-04","مغنية","أ","خ2","3آ.فل01","بن حامد عبد الخفيظ",null,"حي الشهداء ـ مغنبة","السنة الثالثة ثانوي تسييــر و اقتصــاد",114,"//////"]
[115,"بن شقرة سارة","1998-08-08","مغنية","أ","ن2","3آ.فل01","بن شقرة عبد الكريم",null,"قرية المصامدة ـ مغنية ","السنة الثالثة ثانوي تسييــر و اقتصــاد",115,"//////"]
[116,"بوزيدي مريم","1999-04-07","مغنية","أ","م2","3آ.فل01","بوزيدي محمد",null,"ص.ب 512 مغنية","السنة الثالثة ثانوي تسييــر و اقتصــاد",116,"//////"]
[117,"توبردة مغنية","1998-11-23","مغنية","أ","ن2","3آ.فل01","توبردة بن يعقوب",null,"قرية المصامدة ـ مغنية ","السنة الثالثة ثانوي تسييــر و اقتصــاد",117,"//////"]
[118,"حابن اسمهان","1999-04-08","مغنية","أ","م2","3آ.فل01","حاين عبد الحميد",null,"قرية البخاتة بوسدرة","السنة الثالثة ثانوي تسييــر و اقتصــاد",118,"//////"]
[119,"حاجي مونية","1998-04-29","مغنية","أ","خ2","3آ.فل01","حاجي عبد الحكيم",null,"حمام  بوغرارة 13320","السنة الثالثة ثانوي تسييــر و اقتصــاد",119,"//////"]
[120,"حساين نبيلة","1999-07-01","مغنية","أ","م2","3آ.فل01","حساين احمد",null,"قرية البخاتة","السنة الثالثة ثانوي تسييــر و اقتصــاد",120,"//////"]
[121,"حمادي أمال","1998-04-20","مغنية","أ","م2","3آ.فل01","حمادي بن عمر",null,"محطة الأرصاد الجوية العقيد عباس ـ مغنية ","السنة الثالثة ثانوي تسييــر و اقتصــاد",121,"//////"]
[122,"حمادي الواسيني","1999-06-21","مغنية","ذ","م1","3آ.فل01","حمادي لخضر",null,"قرية بوسدرة البخاتة ","السنة الثالثة ثانوي تسييــر و اقتصــاد",122,"//////"]
[123,"حمادي مغنية","2000-04-12","مغنية","أ","م2","3آ.فل01","حمادي يحيى",null,"قرية بوسدرة البخاتة ـ مغنية ","السنة الثالثة ثانوي تسييــر و اقتصــاد",123,"//////"]
[124,"دخيسي أحلام","2000-12-07","مغنية","أ","م2","3آ.فل01","دخيسي حسين",null,"قرية بوسدرة البخاتة",null,124,"//////"]
[125,"دعنون منال","1998-11-13","مغنية","أ","م2","3آ.فل01","دعنون محمد",null,"باب العسة","السنة الثالثة ثانوي تسييــر و اقتصــاد",125,"//////"]
[126,"زرعي يامنة","2000-08-11","مغنية","أ","خ2","3آ.فل01","زرعي سيدي محمد",null,"حي بلال ","السنة الثالثة ثانوي أداب و فلســـــفة",126,"//////"]
[127,"زقاي شهيناز","1997-08-01","مغنية","أ","خ2","3آ.فل01","زقاي محمد",null,"شارع 71 رقم 05 حي المدرجات ـ مغنية ","السنة الثالثة ثانوي أداب و فلســـــفة",127,"//////"]
[128,"سلطاني سارة","1998-04-28","مغنية","أ","خ2","3آ.فل01","سلطاني بن ثابت",null,"درب 16 رقم 35 حي الشهداء ، مغنية ","السنة الثالثة ثانوي أداب و فلســـــفة",128,"//////"]
[129,"شرقي ليلى","1996-10-27","مغنية","أ","ن2","3آ.فل01","شرقي محمد",null,"قرية أولاد قدور الكبار ـ مغنية ","السنة الثالثة ثانوي أداب و فلســـــفة",129,"//////"]
[130,"صحراوي لمياء","1998-10-09","مغنية","أ","م2","3آ.فل01","صحراوي حميد",null,"قرية بوسدرة البخاتة ـ مغنية ","السنة الثالثة ثانوي أداب و فلســـــفة",130,"//////"]
[131,"عايشي عربية فاطمة الزهراء","1999-05-14","تلمسان","أ","م2","3آ.فل01","عايشي شوقي",null,"قرية البخاتة بوسدرة","السنة الثالثة ثانوي أداب و فلســـــفة",131,"//////"]
[132,"عبد المالك جنات","1999-05-15","مغنية","أ","م2","3آ.فل01","عبد المالك بن عمر",null,"قرية بوسدرة البخاتة مغنية","السنة الثالثة ثانوي أداب و فلســـــفة",132,"//////"]
[133,"عبد المالك فاطمة الزهراء","2000-11-03","مغنية","أ","خ2","3آ.فل01","عبد المالك واسيني",null,"حي الشهداء شارع 22 رقم46","السنة الثالثة ثانوي أداب و فلســـــفة",133,"//////"]
[134,"علوان مروى","1998-11-07","مغنية","أ","خ2","3آ.فل01","علوان بشير",null,"قرية بوسدرة البخاتة ـ مغنية ","السنة الثالثة ثانوي أداب و فلســـــفة",134,"//////"]
[135,"فوقي نور الهدى","1998-10-04","مغنية","أ","ن2","3آ.فل01","فوقي بشير",null,"قرية أولاد الشارف ـ مغنية ","السنة الثالثة ثانوي أداب و فلســـــفة",135,"//////"]
[136,"لعشب شيماء","2000-03-23","مغنية","أ","خ2","3آ.فل01","لعشب احمد",null,"مسجد الامام البخاري حي الشهداء ","السنة الثالثة ثانوي أداب و فلســـــفة",136,"//////"]
[137,"محياوي خديجة","2000-02-05","مغنية","أ","م2","3آ.فل01","محياوي محمد",null,"قرية بوسدرة البخاتة","السنة الثالثة ثانوي أداب و فلســـــفة",137,"//////"]
[138,"مخفي باية","1999-09-10","مغنية","أ","خ2","3آ.فل01","مخفي عبد الحكيم",null,"حي الشهداء ","السنة الثالثة ثانوي أداب و فلســـــفة",138,"//////"]
[139,"مسارقي زينب","1998-09-02","مغنية","أ","م2","3آ.فل01","مسارقي محمود",null,"درب 22 رقم 02 حي الشهداء ، مغنية ","السنة الثالثة ثانوي أداب و فلســـــفة",139,"//////"]
[140,"مصار منال","2000-01-27","مغنية","أ","م2","3آ.فل01","مصار محمد",null,"اولاد الشارف","السنة الثالثة ثانوي أداب و فلســـــفة",140,"//////"]
[141,"مقدم جميلة","1999-07-15","مغنية","أ","م2","3آ.فل01","الحاج قدور",null,"قرية العقيد عباس اولاد قدور","السنة الثالثة ثانوي أداب و فلســـــفة",141,"//////"]
[142,"موساتي نادية","2000-11-29","مغنية","أ","م2","3آ.فل01","موساتي ابن عمر",null,"قرية البخاتة","السنة الثالثة ثانوي أداب و فلســـــفة",142,"//////"]
[]
[]
[]
[]
[]
[]
[]
[]
[]
[143,"أجد زينب","1997-05-04","مغنية","أ","م2","3لغ أج01","أجد محمد",null,"سيدي مبارك ، بني بوسعيد ","السنة الثالثة ثانوي أداب و فلســـــفة",143,"//////"]
[144,"أمبارك الهاشمي","1998-08-17","مغنية","ذ","م1","3لغ أج01","امبارك رشيد",null,"دوار اولاد قدور","السنة الثالثة ثانوي أداب و فلســـــفة",144,"//////"]
[145,"العابد يسرى","2000-05-13","مغنية","أ","خ2","3لغ أج01","العابد بن عمر",null,"الدرب الاول رقم16 حي بلال","السنة الثالثة ثانوي أداب و فلســـــفة",145,"//////"]
[146,"المسعود محمد سيف","2000-05-25","مغنية","ذ","م1","3لغ أج01","المسعود مصطفي",null,"اولاد الشارف مغنية","السنة الثالثة ثانوي أداب و فلســـــفة",146,"//////"]
[147,"بلخوان نهاد","1999-03-24","مغنية","أ","خ2","3لغ أج01","بلخوان محمد",null,"قرية أولاد الشارف ، مغنية ","السنة الثالثة ثانوي أداب و فلســـــفة",147,"//////"]
[148,"بلغري آية","2000-07-17","مغنية","أ","خ2","3لغ أج01","حسين",null,"حي المطمر","السنة الثالثة ثانوي أداب و فلســـــفة",148,"//////"]
[149,"بن اعمر رانيا","1998-07-21","مغنية","أ","ن2","3لغ أج01","بن أعمر فوزي",null,"حي الركيزة ـ حمام بوغرارة","السنة الثالثة ثانوي أداب و فلســـــفة",149,"//////"]
[150,"بن عيسي وئام","2000-05-12","مغنية","أ","م2","3لغ أج01","بن عيسي حميدي",null,"حي بوغزال عمارة أ البريقي","السنة الثالثة ثانوي أداب و فلســـــفة",150,"//////"]
[151,"بناصر خلود هديل","2000-02-24","مغنية","أ","خ2","3لغ أج01","بناصر مجاهد",null,"حي الباطاوار ","السنة الثالثة ثانوي أداب و فلســـــفة",151,"//////"]
[152,"بوشكري عبير","2000-06-26","مغنية","أ","م2","3لغ أج01","بوشكري محمد",null,"قرية العقيد عباس","السنة الثالثة ثانوي أداب و فلســـــفة",152,"//////"]
[153,"تبحريتي إبراهيم","1999-08-25","مغنية","ذ","خ1","3لغ أج01","بحريتي عزالدين",null,"حي الباطوار ، مغنية ","السنة الثالثة ثانوي أداب و فلســـــفة",153,"//////"]
[154,"جباري وسيلة","1999-03-01","مغنية","أ","م2","3لغ أج01","جبار ي الواسيني",null,"حي الركيزة ، حمام بوغرارة 13320","السنة الثالثة ثانوي أداب و فلســـــفة",154,"//////"]
[155,"جوادي خديجة شيماء","1998-06-26","بني صاف","أ","خ2","3لغ أج01","جوادي عبد الحميد",null,"حي بلال رقم 25 ، مغنية ","السنة الثالثة ثانوي أداب و فلســـــفة",155,"//////"]
[156,"حفص نورية إيمان","2000-01-15","مغنية","أ","م2","3لغ أج01","حفص احمد",null,"اولاد الشارف","السنة الثالثة ثانوي أداب و فلســـــفة",156,"//////"]
[157,"حوحو محمد عبد الحق","2001-01-07","مغنية","ذ","م1","3لغ أج01","حوحو عقبة",null,"قرية اولاد الشارف شارع07","السنة الثالثة ثانوي أداب و فلســـــفة",157,"//////"]
[158,"خش أميرة","2000-08-13","مغنية","أ","م2","3لغ أج01","خش عبد الرزاق",null,"حمام بوغرارة","السنة الثالثة ثانوي أداب و فلســـــفة",158,"//////"]
[159,"دار أعمر حنان","2000-08-17","مغنية","أ","م2","3لغ أج01","دار أعمر بومدين",null,"حمام بوغرارة الركيزة","السنة الثالثة ثانوي أداب و فلســـــفة",159,"//////"]
[160,"ديب أسية","2001-01-02","مغنية","أ","خ2","3لغ أج01","ديب عبد الحميد",null,"شارع رقم 16 منزل رقم09 حي الشهداء","السنة الثالثة ثانوي أداب و فلســـــفة",160,"//////"]
[161,"راشدي رضوان","2000-02-23","مغنية","ذ","م1","3لغ أج01","راشدي علي",null,"قرية أولاد الشارف ، مغنية ","السنة الثالثة ثانوي أداب و فلســـــفة",161,"//////"]
[162,"زار رانيا","1998-06-27","مغنية","أ","خ2","3لغ أج01","زار ميلود",null,"رقم 160 شارع تلمسان حي بلال ، مغنية ","السنة الثالثة ثانوي أداب و فلســـــفة",162,"//////"]
[163,"زاوي أسماء","2000-11-13","مغنية","أ","خ2","3لغ أج01","زاوي محمد",null,"حي الشهداء متوسطة عقبة بن نافع","السنة الثالثة ثانوي أداب و فلســـــفة",163,"//////"]
[164,"زموري صفاء","2000-10-07","مغنية","أ","خ2","3لغ أج01","زموري بن عومر",null,"حي بلال محطة القطار","السنة الثالثة ثانوي أداب و فلســـــفة",164,"//////"]
[165,"شراك زينب","1998-03-31","مغنية","أ","خ2","3لغ أج01","شراك يحيى",null,"حي بلال رقم 03 ، مغنية ","السنة الثالثة ثانوي أداب و فلســـــفة",165,"//////"]
[166,"عفاني حسام","2000-01-11","مغنية","ذ","م1","3لغ أج01","عفاني فؤاد",null,"قرية بوسدرة البخاتة ، مغنية ","السنة الثالثة ثانوي أداب و فلســـــفة",166,"//////"]
[167,"غربي نجلاء سارة","2000-11-12","مغنية","أ","خ2","3لغ أج01","غربي عمر",null,"حي الشهداء مغنية منزل رقم57","السنة الثالثة ثانوي أداب و فلســـــفة",167,"//////"]
[168,"فراج جواد","1998-08-05","مغنية","ذ","ن1","3لغ أج01","فراج بومدين",null,"حي 04 سكنات ، حمام بوغرارة 13320","السنة الثالثة ثانوي أداب و فلســـــفة",168,"//////"]
[169,"قاشور سليمة","1999-03-07","مغنية","أ","خ2","3لغ أج01","قاشور إدريس",null,"16 شارع محطة القطار ، مغنية ","السنة الثالثة ثانوي أداب و فلســـــفة",169,"//////"]
[170,"كردوسي جمال الدين","2000-11-17","مغنية","ذ","خ1","3لغ أج01","عبد اللطيف",null,"حي مزوار رقم05 مغنية","السنة الثالثة ثانوي أداب و فلســـــفة",170,"//////"]
[171,"مزاري إكرام","1998-08-28","مغنية","أ","ن2","3لغ أج01","مزاري الطيب",null,"قرية بوسدرة البخاتة ، مغنية ","السنة الثالثة ثانوي أداب و فلســـــفة",171,"//////"]
[172,"موسليم أمينة","2001-01-02","مغنية","أ","خ2","3لغ أج01","موسليم حسين",null,"حي الشهداء مغنية","السنة الثالثة ثانوي أداب و فلســـــفة",172,"//////"]
[173,"واسطي عبد السميع","1999-07-05","مغنية","ذ","خ1","3لغ أج01","واسطي مصطفي",null,"درب 11 منزل14 الشهداء","السنة الثالثة ثانوي أداب و فلســـــفة",173,"//////"]
[]
[]
[]
[]
[]
[]
[]
[]
["1","بن هدي مروة","1999-07-30","مغنية","أ","م2","2ت.ر01","بن هدي احمد",null,"قرية بوسدرة البخاتة","السنة الثالثة ثانوي لغــــــــات أجنبية",175,"//////"]
["2","بوسوماح شيماء","2001-02-04","مغنية","أ","م2","2ت.ر01","عبد العزيز",null,"قرية العقيد عباس ، مغنية ","السنة الثالثة ثانوي لغــــــــات أجنبية",177,"//////"]
["3","حدوشي محمد","2001-05-22","بني بوسعيد","ذ","م1","2ت.ر01","احمد",null,"قرية المصامدة مغنية","السنة الثالثة ثانوي لغــــــــات أجنبية",178,"//////"]
["4","راجعي محمد","2001-09-16","مغنية","ذ","م1","2ت.ر01","عبد الحاكم",null,"اولاد الشارف رواجعية","السنة الثالثة ثانوي لغــــــــات أجنبية",180,"//////"]
["5","رجالة منال","2001-06-03","الغزوات","أ","م2","2ت.ر01","لباس",null,"اولاد الشارف مغنية","السنة الثالثة ثانوي لغــــــــات أجنبية",181,"//////"]
["6","شارف نور الهدى","2001-03-08","مغنية","أ","م2","2ت.ر01","سيب",null,"اولاد الشارف","السنة الثالثة ثانوي لغــــــــات أجنبية",183,"//////"]
["7","عبوين أسماء","2000-07-18","مغنية","أ","م2","2ت.ر01","يحي",null,"اولاد الشارف","السنة الثالثة ثانوي لغــــــــات أجنبية",184,"//////"]
["8","لهباب رزق الله","2001-10-12","مغنية","ذ","ن1","2ت.ر01","عز الدين",null,"شارع15 ر04 حي القاضي","السنة الثالثة ثانوي لغــــــــات أجنبية",187,"//////"]
["9"]
["10"]
["11"]
["12"]
[174,"بلخروف عبد النور","2002-09-29","مغنية","ذ","م1","2ت.ر01","صالح",null,"حي النصر ، مغنية ","السنة الثالثة ثانوي أداب و فلســـــفة",174,"//////"]
[176,"بوزار حمزة","2001-08-28","مغنية","ذ","م1","2ت.ر01","بوزار نعيمة ",null,"قرية راس عصفور المصامدة","السنة الثالثة ثانوي لغــــــــات أجنبية",176,"//////"]
[179,"دربال محمد عبد الاله","2002-01-19","مغنية","ذ","خ1","2ت.ر01","سعيد",null,"حي بلال","السنة الثالثة ثانوي لغــــــــات أجنبية",179,"//////"]
[182,"زغودي صليحة","2000-07-27","مغنية","أ","م2","2ت.ر01","غوتي",null,"المصامدة","السنة الثالثة ثانوي لغــــــــات أجنبية",182,"//////"]
[185,"عرقوب أصالة","2001-10-17","مشرية","أ","م2","2ت.ر01","جمال",null,"المصامدة","السنة الثالثة ثانوي لغــــــــات أجنبية",185,"//////"]
[186,"غرفاتي خيرالدين","1999-03-13","مغنية","ذ","خ1","2ت.ر01","غرفاتي العيد",null,"حي الشهداء","السنة الثالثة ثانوي لغــــــــات أجنبية",186,"//////"]
[]
[]
[]
[]
[188,"الشيخ فرح","2001-11-15","مغنية","أ","م2","2ع.تج01","طيب",null,"قرية العقيد عباس","السنة الثالثة ثانوي لغــــــــات أجنبية",188,"//////"]
[189,"امحمدي بشرى","2000-05-04","مغنية","أ","ن2","2ع.تج01","امحمدي الشيخ",null,"قرية عقيد عباس","السنة الثالثة ثانوي لغــــــــات أجنبية",189,"//////"]
[190,"بختاوي نور شيماء","2001-10-03","مغنية","أ","خ2","2ع.تج01","عبد الحفيظ",null,"حي جابر رقم30 ","السنة الثالثة ثانوي لغــــــــات أجنبية",190,"//////"]
[191,"بربيط سلاف","2001-08-17","مغنية","أ","م2","2ع.تج01","محمد",null,"قرية أولاد الشارف ، مغنية ","السنة الثالثة ثانوي لغــــــــات أجنبية",191,"//////"]
[192,"بشير ليلى","2000-01-21","مغنية","أ","م2","2ع.تج01","محمد",null,"اولاد الشارف","السنة الثالثة ثانوي لغــــــــات أجنبية",192,"//////"]
[193,"بن عبد الله وسيلة","2001-06-08","مغنية","أ","م2","2ع.تج01","امحمد",null,"قرية المصامدة","السنة الثالثة ثانوي لغــــــــات أجنبية",193,"//////"]
[194,"بن موسى نبية","2000-10-31","مغنية","أ","م2","2ع.تج01","أحمد",null,"قرية البخاتة بوسدرة ـ مغنية ","السنة الثالثة ثانوي لغــــــــات أجنبية",194,"//////"]
[195,"بوجلول شيماء","2001-06-30","مغنية","أ","م2","2ع.تج01","بلقاسم",null,"اولاد الشارف","السنة الثالثة ثانوي لغــــــــات أجنبية",195,"//////"]
[196,"بوعواد روفيدة أمنة","2001-06-09","سيدي بلعباس","أ","م2","2ع.تج01","احمد",null,"اولاد الشارف","السنة الثالثة ثانوي لغــــــــات أجنبية",196,"//////"]
[197,"حاج علي سهام","2000-09-04","مغنية","أ","ن2","2ع.تج01","حاج علي بن اعمر",null,"قرية المصامدة","السنة الثالثة ثانوي لغــــــــات أجنبية",197,"//////"]
[198,"حساني إسلام عبد القادر","2001-01-24","مغنية","ذ","م1","2ع.تج01","يحي",null,"ص ب 193 العزوني مغنية","السنة الثالثة ثانوي لغــــــــات أجنبية",198,"//////"]
[199,"حقاوي إيمان","1999-12-09","مغنية","أ","م2","2ع.تج01","عبد القادر",null,"قرية بوسدرة","السنة الثالثة ثانوي لغــــــــات أجنبية",199,"//////"]
[200,"دريسي ميلود","2001-10-29","مغنية","ذ","خ1","2ع.تج01","بكاي",null,"02شارع شعبان حمدون","السنة الثالثة ثانوي لغــــــــات أجنبية",200,"//////"]
[201,"دكالي شيماء","2000-04-10","مغنية","أ","م2","2ع.تج01","عبد القادر",null,"قرية المصامدة","السنة الثالثة ثانوي لغــــــــات أجنبية",201,"//////"]
[202,"زكري اسماء","1999-05-22","مغنية","أ","م2","2ع.تج01","زكري حسين",null,"قرية البخاتة","السنة الثالثة ثانوي لغــــــــات أجنبية",202,"//////"]
[203,"شارف أسماء","2001-02-21","مغنية","أ","م2","2ع.تج01","مصطفي",null,"اولاد الشارف","السنة الثالثة ثانوي لغــــــــات أجنبية",203,"//////"]
[204,"شيبي إكرام","2002-06-28","مغنية","أ","خ2","2ع.تج01","اعمر",null,"شارع 15 رقم06","السنة الثالثة ثانوي لغــــــــات أجنبية",204,"//////"]
[205,"طماشة صهيب","1999-12-16","مغنية","ذ","خ1","2ع.تج01","طماشة بوتليليس",null,"رقم 18 حي الشهداء ـ مغنية ","السنة الثالثة ثانوي لغــــــــات أجنبية",205,"//////"]
[206,"كرومي فاطمة الزهراء","2001-08-19","مغنية","أ","م2","2ع.تج01","بن أعمر",null,"قرية بوسدرة البخاتة ، مغنية ","السنة الثالثة ثانوي لغــــــــات أجنبية",206,"//////"]
[207,"ليبدري أصيلة","2001-06-09","مغنية","أ","م2","2ع.تج01","محمد",null,"اولاد الشارف","السنة الثالثة ثانوي لغــــــــات أجنبية",207,"//////"]
[208,"محلة سيدي أحمد","2000-08-07","مغنية","ذ","خ1","2ع.تج01","محمد",null,"ثانوية الخوارزمي","السنة الثالثة ثانوي لغــــــــات أجنبية",208,"//////"]
[209,"مقنافي فاطمة الزهراء","2001-08-06","معنية","أ","م2","2ع.تج01","معمر",null,"مغنية","السنة الثانية ثانوي تقني رياضي",209,"//////"]
[210,"نجاري بلال","1999-06-06","مغنية","ذ","ن1","2ع.تج01","نجاري لخضر",null,"قرية لكفاف","السنة الثانية ثانوي تقني رياضي",210,"//////"]
[]
[]
[]
[]
[]
[]
[]
[]
[]
[]
[]
[]
[211,"أوشريف امين عبد الرزاق","2001-11-03","مغنية","ذ","خ1","2ع.تج02","احمد",null,"منزل17 حي27بطوار مغنية","السنة الثانية ثانوي تقني رياضي",211,"//////"]
[212,"بكاوي ميلود","2000-11-21","مغنية","ذ","ن1","2ع.تج02","بكاوي محمد",null,"قرية المصامدة ، مغنية ","السنة الثانية ثانوي تقني رياضي",212,"//////"]
[213,"بن سالم سناء","2001-07-21","مغنية","أ","م2","2ع.تج02","محمد",null,"اولاد قدور الكبار","السنة الثانية ثانوي تقني رياضي",213,"//////"]
[214,"بن قطاي فتيحة","2001-09-08","مغنية","أ","خ2","2ع.تج02","ميلود",null,"شارع حواس","السنة الثانية ثانوي تقني رياضي",214,"//////"]
[215,"بن كامل سارة","2001-03-27","مغنية","أ","م2","2ع.تج02","محمد",null,"حي الغابات 70مسكن حي الشرطة","السنة الثانية ثانوي تقني رياضي",215,"//////"]
[216,"بوجمعة سمية","2001-03-30","مغنية","أ","خ2","2ع.تج02","احمد",null,"رقم 06 حي الشهداء","السنة الثانية ثانوي تقني رياضي",216,"//////"]
[217,"بودياب رانية","2001-06-01","صبرة","أ","م2","2ع.تج02","جمال عبد الناصر",null,"قرية العقيد لطفي","السنة الثانية ثانوي تقني رياضي",217,"//////"]
[218,"بوزاهري نجود","2001-05-20","مغنية","أ","م2","2ع.تج02","بوزاهري",null,"","السنة الثانية ثانوي تقني رياضي",218,"//////"]
[219,"حاج علي عمارية","2001-03-19","مغنية","أ","م2","2ع.تج02","محمد",null,"قرية المصامدة ، مغنية ","السنة الثانية ثانوي تقني رياضي",219,"//////"]
[220,"دمامن سناء","2001-10-01","مغنية","أ","خ2","2ع.تج02","احمد",null,"رقم12 حي الشهداء","السنة الثانية ثانوي تقني رياضي",220,"//////"]
[221,"زحزوح أماني جمعة","2001-11-01","مغنية","أ","م2","2ع.تج02","نور الدين",null,"قرية المصامدة ، مغنية ","السنة الثانية ثانوي تقني رياضي",221,"//////"]
[222,"زناقي رحيمة","2001-06-09","مغنية","أ","م2","2ع.تج02","محمد",null,"قرية بوسدرة لبخاتة مغنية","السنة الثانية ثانوي تقني رياضي",222,"//////"]
[223,"زيتوني زيتوني","2000-10-17","مغنية","ذ","م1","2ع.تج02","زيتوني محمد",null,"قرية المصامدة","السنة الثانية ثانوي تقني رياضي",223,"//////"]
[224,"سابق حليمة","1999-11-30","مغنية","أ","خ2","2ع.تج02","سابق سنوسي",null,"درب 11 رقم 82 حي البشهداء ، مغنية ","السنة الثانية ثانوي تقني رياضي",224,"//////"]
[225,"سويقي عبد النور","2000-06-19","مغنية","ذ","م1","2ع.تج02","سويقي عبد الله",null,"","السنة الثانية ثانوي تقني رياضي",225,"//////"]
[226,"طواع شيماء","2001-02-28","مغنية","أ","م2","2ع.تج02","احمد",null,"اولاد الشارف مغنية","السنة الثانية ثانوي تقني رياضي",226,"//////"]
[227,"فخيخر آمنة","2001-04-30","مغنية","أ","م2","2ع.تج02","احمد",null,"اولاد الشارف","السنة الثانية ثانوي تقني رياضي",227,"//////"]
[228,"قديم ساجية","2001-01-10","مغنية","أ","م2","2ع.تج02","محمد",null,"اولاد الشارف","السنة الثانية ثانوي تقني رياضي",228,"//////"]
[229,"قناد ربيعة نوال","2000-03-20","مغنية","أ","م2","2ع.تج02","بشير",null,"دوار المرازقة","السنة الثانية ثانوي علوم تجريبية",229,"//////"]
[230,"كبيب فتيحة","2001-11-19","مغنية","أ","م2","2ع.تج02","محمد",null,"اولاد الشارف","السنة الثانية ثانوي علوم تجريبية",230,"//////"]
[231,"محصر رانيا","2001-03-24","مغنية","أ","م2","2ع.تج02","ابنعمر",null,"حي الامير عبد القادر شارع107 منزل 06","السنة الثانية ثانوي علوم تجريبية",231,"//////"]
[232,"مصار يونس","1998-12-25","مغنية","ذ","م1","2ع.تج02","احمد",null,"قرية أولاد الشارف ـ مغنية ","السنة الثانية ثانوي علوم تجريبية",232,"//////"]
[233,"موساتي فتيحة","1999-03-02","مغنية","أ","ن2","2ع.تج02","موساتي موسي",null,"قرية المصامد","السنة الثانية ثانوي علوم تجريبية",233,"//////"]
[]
[]
[]
[]
[]
[]
[]
[]
[234,"أحمودي أيمن","2001-03-24","مغنية","ذ","م1","2ت.إ01","احمد",null,"قرية المصامدة","السنة الثانية ثانوي علوم تجريبية",234,"//////"]
[235,"بن براهيم شيماء نصيرة","2001-04-06","مغنية","أ","م2","2ت.إ01","عبد الوهاب",null,"قرية اولاد الشارف ـ مغنية ","السنة الثانية ثانوي علوم تجريبية",235,"//////"]
[236,"بن زمرة شيماء","2001-01-22","مغنية","أ","م2","2ت.إ01","بن يونس",null,"قرية المصامدة","السنة الثانية ثانوي علوم تجريبية",236,"//////"]
[237,"بن قطاي حنان","1998-11-21","تلمسان","أ","خ2","2ت.إ01","بن قطاي محمد الميلود",null,"حي الشهداء مغنية","السنة الثانية ثانوي علوم تجريبية",237,"//////"]
[238,"حساني رياض","2001-08-27","مغنية","ذ","م1","2ت.إ01","حسين",null,"قرية العقيد عباس","السنة الثانية ثانوي علوم تجريبية",238,"//////"]
[239,"حمادي حسين","1999-07-03","مغنية","ذ","م1","2ت.إ01","حمادي نصر الدين",null,"محطة قطار عقيد عباس مغنية","السنة الثانية ثانوي علوم تجريبية",239,"//////"]
[240,"ذياب جهان","1999-02-09","مغنية","أ","م1","2ت.إ01","حسان",null,"قرية أولاد الشارف ، مغنية ","السنة الثانية ثانوي علوم تجريبية",240,"//////"]
[241,"زرعي الشيخ","2001-09-02","مغنية","ذ","خ1","2ت.إ01","عمر",null,"حي بلال","السنة الثانية ثانوي علوم تجريبية",241,"//////"]
[242,"زرقاني سماح","2001-06-22","مغنية","أ","م2","2ت.إ01","عبدو",null,"بيت رقم 05 اولاد الشارف","السنة الثانية ثانوي علوم تجريبية",242,"//////"]
[243,"سربوت امال","2001-04-25","مغنية","أ","م2","2ت.إ01","عبد المالك",null,"حي عمر مختار","السنة الثانية ثانوي علوم تجريبية",243,"//////"]
[244,"سفرجلي يونس","1999-11-19","مغنية","ذ","م1","2ت.إ01","محمد",null,"البخاتة","السنة الثانية ثانوي علوم تجريبية",244,"//////"]
[245,"شلالي منال","2001-09-02","مغنية","أ","م2","2ت.إ01","لحبيب",null,"قرية العقيد عباس","السنة الثانية ثانوي علوم تجريبية",245,"//////"]
[246,"قيشع محمد بدر الدين","2001-09-08","مغنية","ذ","خ1","2ت.إ01","جمال",null,"درب03رقم22 حي الشهداء","السنة الثانية ثانوي علوم تجريبية",246,"//////"]
[247,"كبير عبد الرحيم","1998-01-28","مغنية","ذ","م1","2ت.إ01","كبير عبد الله",null,"بخاتة مغنية","السنة الثانية ثانوي علوم تجريبية",247,"//////"]
[248,"منور شهرالدين","2000-06-04","مغنية","ذ","م1","2ت.إ01","منور هواري",null,"قرية البخاتة","السنة الثانية ثانوي علوم تجريبية",248,"//////"]
[249,"نميش مروة أسماء","1999-10-16","مغنية","أ","خ2","2ت.إ01","نميش محمد",null,"حي الشهداء ، مغنية ","السنة الثانية ثانوي علوم تجريبية",249,"//////"]
[]
[]
[]
[]
[]
[]
[]
[]
[250,"أمبارك محمد أمين","2001-12-12","مغنية","ذ","م1","2أ.فل01","الواسيني",null,"قرية العقيد عباس ، مغنية ","السنة الثانية ثانوي علوم تجريبية",250,"//////"]
[251,"أولاجي إكرام","2000-09-10","مغنية","أ","م2","2أ.فل01","عبد الرحمان",null,"المصامدة المنزل رقم 7","السنة الثانية ثانوي علوم تجريبية",251,"//////"]
[252,"البهلول سناء","2001-09-20","مغنية","أ","خ2","2أ.فل01","محمد",null,"حي الشهداء قرب المسجد . مغنية ","السنة الثانية ثانوي علوم تجريبية",252,"//////"]
[253,"بحدادة فدوى","2000-06-04","مغنية","أ","خ2","2أ.فل01","بلحدادة علي",null,"شارع 01 رقم 09 حي بلال ، مغنية ","السنة الثانية ثانوي علوم تجريبية",253,"//////"]
[254,"بسويعة إيمان","1998-09-19","مغنية","أ","م2","2أ.فل01","مطهري عايدة",null,"قرية بوسدرة البخاتة ، مغنية ","السنة الثانية ثانوي علوم تجريبية",254,"//////"]
[255,"بلعمري بلال","1999-08-09","تلمسان","ذ","م1","2أ.فل01","عبد النور",null,"اولاد الشارف","السنة الثانية ثانوي علوم تجريبية",255,"//////"]
[256,"بلمختار خولة","1999-01-11","مغنية","أ","م2","2أ.فل01","محمد",null,"حمام بوغرارة","السنة الثانية ثانوي علوم تجريبية",256,"//////"]
[257,"بلمختار خيرة","2000-12-06","بوقيرات","أ","م2","2أ.فل01","صادق",null,"تافنة","السنة الثانية ثانوي علوم تجريبية",257,"//////"]
[258,"بن عبد الله منال","2001-11-23","مغنية","أ","م2","2أ.فل01","الجيلالي",null,"قرية المضامدة ـ مغنية ","السنة الثانية ثانوي علوم تجريبية",258,"//////"]
[259,"بن يعقوب شيماء","1998-12-28","مغنية","أ","خ2","2أ.فل01","حسين",null,"حي بلال","السنة الثانية ثانوي علوم تجريبية",259,"//////"]
[260,"بوجمعة زواوية","2001-02-13","مغنية","أ","م2","2أ.فل01","عبد القادر",null,"قرية أولاد الشارف ، مغنية ",null,260,"//////"]
[261,"بوعزة سمية","2001-01-06","مغنية","أ","م2","2أ.فل01","حسين",null,"قرية المصامدة","السنة الثانية ثانوي علوم تجريبية",261,"//////"]
[262,"بوعزة صابرينة","2000-03-08","مغنية","أ","م2","2أ.فل01","ميمون",null,"قرية المصامدة","السنة الثانية ثانوي علوم تجريبية",262,"//////"]
[263,"ثابتي إسماعيل","1999-12-12","مغنية","ذ","ن1","2أ.فل01","تابتي واسيني",null,"اولاد الشارف مغنية","السنة الثانية ثانوي علوم تجريبية",263,"//////"]
[264,"جملي أميمة","2001-08-12","مغنية","أ","م2","2أ.فل01","يحي",null,"المصامدة","السنة الثانية ثانوي علوم تجريبية",264,"//////"]
[265,"جوبير بشرى","2001-09-01","مغنية","أ","م2","2أ.فل01","عبد الرحمن",null,"اولاد الشارف","السنة الثانية ثانوي علوم تجريبية",265,"//////"]
[266,"خيري فاطمة الزهراء","2000-01-20","مغنية","أ","م2","2أ.فل01","احمد",null,"قرية المصامدة","السنة الثانية ثانوي علوم تجريبية",266,"//////"]
[267,"دراوي زكرياء","2001-02-05","مغنية","ذ","خ1","2أ.فل01","عكاشة",null,"73 شارع العربي التبسي","السنة الثانية ثانوي علوم تجريبية",267,"//////"]
[268,"ديب أمنة","2001-08-08","مغنية","أ","م2","2أ.فل01","سعيد",null,"اولاد الشارف","السنة الثانية ثانوي علوم تجريبية",268,"//////"]
[269,"ذيابي زينب","2001-10-29","مغنية","أ","م2","2أ.فل01","علي",null,"اولاد الشارف مغنية","السنة الثانية ثانوي علوم تجريبية",269,"//////"]
[270,"زناقي اسمهان","2000-07-10","مغنية","أ","خ2","2أ.فل01","الميلود",null,"حي الشهداء ، مغنية ","السنة الثانية ثانوي علوم تجريبية",270,"//////"]
[271,"عبد المالك نور الهدى","1999-12-29","تلمسان","أ","م2","2أ.فل01","بوعزة",null,"المصامدةا","السنة الثانية ثانوي علوم تجريبية",271,"//////"]
[272,"كرومي رانيا","1999-06-05","مغنية","أ","م2","2أ.فل01","بن اعمر",null,"بوسدرة","السنة الثانية ثانوي علوم تجريبية",272,"//////"]
[273,"لامي فاطمة","2000-05-03","مغنية","أ","م2","2أ.فل01","ميلود",null,"اولاد الشارف","السنة الثانية ثانوي علوم تجريبية",273,"//////"]
[274,"لعور بوعلام الجيلالي","1999-10-08","مغنية","ذ","م1","2أ.فل01","محمد",null,"قرية أولاد الشارف ، مغنية ","السنة الثانية ثانوي علوم تجريبية",274,"//////"]
[275,"ماحي بشرى","2000-01-03","مغنية","أ","م2","2أ.فل01","ميمون",null,"قرية البخاتة بوسدرة ـ مغنية ","السنة الثانية ثانوي علوم تجريبية",275,"//////"]
[276,"مزاري خير الدين","2000-01-12","مغنية","ذ","م1","2أ.فل01","ميلود",null,"البخاتة","السنة الثانية ثانوي علوم تجريبية",276,"//////"]
[277,"مزاري عماد الدين","2000-08-19","مغنية","ذ","م1","2أ.فل01","مصطفي",null,"قرية بوسدرة","السنة الثانية ثانوي علوم تجريبية",277,"//////"]
[278,"مزاري لبنى","1999-11-08","مغنية","أ","م2","2أ.فل01","عبد الحاكم",null,"بخاتة","السنة الثانية ثانوي علوم تجريبية",278,"//////"]
[279,"مزيان سمية","1999-09-25","مغنية","أ","خ2","2أ.فل01","ميلود",null,"تعاونية الحواس رقم28 حي الشهداء","السنة الثانية ثانوي علوم تجريبية",279,"//////"]
[280,"مشماش ياسمين","2001-07-30","مغنية","أ","خ2","2أ.فل01","عبد القادر",null,"حي الشهداء-24-","السنة الثانية ثانوي علوم تجريبية",280,"//////"]
[281,"مقبول إكرام","2000-12-25","مغنية","أ","خ2","2أ.فل01","احمد",null,"88 حي الشهداء مغنية","السنة الثانية ثانوي علوم تجريبية",281,"//////"]
[282,"مليوي عبد العزيز","2000-02-13","مغنية","ذ","خ1","2أ.فل01","",null,"","السنة الثانية ثانوي علوم تجريبية",282,"//////"]
[283,"نوضاري مريم","2001-09-18","مغنية","أ","م2","2أ.فل01","السعيد",null,"قرية العقيد عباس","السنة الثانية ثانوي علوم تجريبية",283,"//////"]
[]
[]
[]
[]
[]
[]
[]
[]
[284,"بن زروق زينب سناء","1998-05-24","مغنية","أ","خ2","2لغ أج01","امير",null,"01 حي بلال رقم المنزل 09","السنة الثانية ثانوي علوم تجريبية",284,"//////"]
[285,"بن شقرة عمرو","2000-03-26","مغنية","ذ","م1","2لغ أج01","علي",null,"قرية المصامدة","السنة الثانية ثانوي علوم تجريبية",285,"//////"]
[286,"بن عبد الله إكرام","2001-06-08","مغنية","أ","م2","2لغ أج01","جيلالي",null,"قرية المصامدة","السنة الثانية ثانوي علوم تجريبية",286,"//////"]
[287,"بوغالم بشرى","1998-11-12","مغنية","أ","خ2","2لغ أج01","بوغالم واسيني",null,"شارع27 منزل 3 حي الشهداء","السنة الثانية ثانوي علوم تجريبية",287,"//////"]
[288,"بوفارس بشرى","2001-11-05","مغنية","أ","م2","2لغ أج01","محمد",null,"راس عصفور المصامدة","السنة الثانية ثانوي علوم تجريبية",288,"//////"]
[289,"حجيوي عماد الدين","2001-08-01","مغنية","ذ","م1","2لغ أج01","رشيد",null,"قرية البخاتة","السنة الثانية ثانوي علوم تجريبية",289,"//////"]
[290,"حطاب سهام","2001-07-26","مغنية","أ","م2","2لغ أج01","محمد",null,"شارع71 الرقم16 حي العربي بن مهيدي",null,290,"//////"]
[291,"حواسة هبة","1999-08-25","مغنية","أ","خ2","2لغ أج01","حواسة احمد",null,"درب04 منزل16 حي الشهداء","السنة الثانية ثانوي علوم تجريبية",291,"//////"]
[292,"زار زكرياء","1999-07-22","مغنية","ذ","م1","2لغ أج01","عبد الله",null,"قرية اولاد الشارف ـ مغنية ","السنة الثانية ثانوي تسيير و إقتصاد",292,"//////"]
[293,"زهدور أمال","2000-01-01","مغنية","أ","م2","2لغ أج01","زهدور عبد السلام",null,"اولاد الشارف","السنة الثانية ثانوي تسيير و إقتصاد",293,"//////"]
[294,"سماش نورهان","2000-09-25","حمام بوغرارة","أ","م2","2لغ أج01","رشيد",null,"اولاد الشارف بلدية مغنية","السنة الثانية ثانوي تسيير و إقتصاد",294,"//////"]
[295,"شارف فتح الله","2000-12-14","تلمسان","ذ","م1","2لغ أج01","مجاهد",null,"اولاد الشارف","السنة الثانية ثانوي تسيير و إقتصاد",295,"//////"]
[296,"صادق الهام","2001-11-27","مغنية","أ","م2","2لغ أج01","محمد",null,"ص.ب 314 مغنية","السنة الثانية ثانوي تسيير و إقتصاد",296,"//////"]
[297,"طوالة سهيلة","2001-02-02","مغنية","أ","م2","2لغ أج01","طوالة محمد",null,"حي داري واسيني ","السنة الثانية ثانوي تسيير و إقتصاد",297,"//////"]
[298,"فركلي شيماء","1999-11-17","مغنية","أ","خ2","2لغ أج01","عبد الكريم",null,"حي الشهداء","السنة الثانية ثانوي تسيير و إقتصاد",298,"//////"]
[299,"قندسي منال","2000-11-10","مغنية","أ","خ2","2لغ أج01","حسين",null,"02 شارع حاسي بيضاء","السنة الثانية ثانوي تسيير و إقتصاد",299,"//////"]
[300,"لياني أحمد","1998-06-17","مغنية","ذ","ن1","2لغ أج01","لياني تيجاني",null,"حمام بوغرارة 13320","السنة الثانية ثانوي تسيير و إقتصاد",300,"//////"]
[301,"مزراق سارة","2001-10-14","مغنية","أ","م2","2لغ أج01","واسيني",null,"حي بوشارب مغنية","السنة الثانية ثانوي تسيير و إقتصاد",301,"//////"]
[302,"موساتي فضيلة","1999-11-29","مغنية","أ","م2","2لغ أج01","بن اعمر",null,"قرية البخاتة","السنة الثانية ثانوي تسيير و إقتصاد",302,"//////"]
[]
[]
[]
[]
[]
[]
[303,"الحامدي محمد أمين","2002-11-26","مغنية","ذ","م1","1ج م ع ت01","الحامدي ميلود",null,"64 شارع ابن رشد - مغنية ","السنة الثانية ثانوي تسيير و إقتصاد",303,"//////"]
[304,"العربي سارة","2002-11-06","مغنية","أ","م2","1ج م ع ت01","العربي محمد",null,"دوار أولاد قدور الصغار - مغنية ","السنة الثانية ثانوي تسيير و إقتصاد",304,"//////"]
[305,"برازي عمر","2001-09-30","مغنية","ذ","م1","1ج م ع ت01","برازي محمد",null,"قرية البطيم ","السنة الثانية ثانوي تسيير و إقتصاد",305,"//////"]
[306,"بن دحو سارة","2002-07-02","مغنية","أ","خ2","1ج م ع ت01","حميد بن دحو",null,"مسجد الامام البخاري - حي الشهداء مغنية ","السنة الثانية ثانوي تسيير و إقتصاد",306,"//////"]
[307,"بن زمرة سارة","2002-07-20","مغنية","أ","م2","1ج م ع ت01","بن زمرة جمال",null,"قرية المصامدة مغنية ","السنة الثانية ثانوي تسيير و إقتصاد",307,"//////"]
[308,"بن سالم يونس","2000-12-05","مغنية","ذ","ن1","1ج م ع ت01","حسين",null,"بوغرارة","السنة الثانية ثانوي تسيير و إقتصاد",308,"//////"]
[309,"بن سبع حنان","2002-08-26","مغنية","أ","خ2","1ج م ع ت01","",null,"","السنة الثانية ثانوي تسيير و إقتصاد",309,"//////"]
[310,"بن عامر وفاء","2002-03-15","مغنية","أ","م2","1ج م ع ت01","العربي الزهرة",null,"دوار أولاد قدور الصغار - مغنية ","السنة الثانية ثانوي تسيير و إقتصاد",310,"//////"]
[311,"بن عبد الله فاطمة الزهراء","2003-03-09","مغنية","أ","م2","1ج م ع ت01","بن عبد الله بلقاسم",null,"ص ب 376 13001 مغنية ","السنة الثانية ثانوي تسيير و إقتصاد",311,"//////"]
[312,"بن منصور الياس","2002-12-25","مغنية","ذ","م1","1ج م ع ت01","بن منصور مصطفى",null,"قرية البطيم - مغنية ","السنة الثانية ثانوي تسيير و إقتصاد",312,"//////"]
[313,"بورديم الياس","2002-03-10","مغنية","ذ","م1","1ج م ع ت01","بورديم عبد الرحمن",null,"قرية البطيم - مغنية ","السنة الثانية ثانوي تسيير و إقتصاد",313,"//////"]
[314,"بوزنق مصطفى","2001-03-01","مغنية","ذ","ن1","1ج م ع ت01","احمد",null,"قرية الباخاتة","السنة الثانية ثانوي تسيير و إقتصاد",314,"//////"]
[315,"بوزيان حنان","2002-11-30","مغنية","أ","خ2","1ج م ع ت01","بوزيان عبد الحغيظ",null,"حي الشهداء - مغنية ","السنة الثانية ثانوي تسيير و إقتصاد",315,"//////"]
[316,"بوزيان محمد الامين","2002-11-30","مغنية","ذ","خ1","1ج م ع ت01","عبد الحفيظ",null,"حي الشهداء - مغنية ","السنة الثانية ثانوي تسيير و إقتصاد",316,"//////"]
[317,"بوطاقة مريم","2002-07-2","مغنية","أ","م2","1ج م ع ت01","بوطاقة زوبير ",null,"قرية اولاد الشارف ـ مغنية ","السنة الثانية ثانوي تسيير و إقتصاد",317,"//////"]
[318,"حمادي أيوب","2001-11-05","مغنية","ذ","خ1","1ج م ع ت01","",null,"","السنة الثانية ثانوي تسيير و إقتصاد",318,"//////"]
[319,"ديب إسماعيل أية الله","2000-09-14","تلمسان","ذ","ن1","1ج م ع ت01","عبد القادر",null,"اولاد الشارف مغنية","السنة الثانية ثانوي تسيير و إقتصاد",319,"//////"]
[320,"رايس محمد علي","2002-12-11","مغنية","ذ","خ1","1ج م ع ت01","رايس أحمد",null,"حي الشعداء - مغنية ","السنة الثانية ثانوي تسيير و إقتصاد",320,"//////"]
[321,"رحماني دعاء","2001-05-07","مغنية","أ","ن2","1ج م ع ت01","محمد",null,"اولاد الشارف","السنة الثانية ثانوي تسيير و إقتصاد",321,"//////"]
[322,"رمضاني وصال","2002-02-10","مغنية","أ","م2","1ج م ع ت01","رمضاني محمد ",null,"قرية البطيم  - مغنية ","السنة الثانية ثانوي أداب و فلسفة",322,"//////"]
[323,"سبوح عبد الصمد","2002-06-13","الغزوات","ذ","خ1","1ج م ع ت01","سبوح مراد",null,"ثانوية الخوارزمي - مغنية ","السنة الثانية ثانوي أداب و فلسفة",323,"//////"]
[324,"سحنوني عاصم","2000-10-13","مغنية","ذ","خ1","1ج م ع ت01","سحنوي يحيى",null,"مسجد بلال بن رباح حي بلال مغنية ","السنة الثانية ثانوي أداب و فلسفة",324,"//////"]
[325,"سكاك حاج عبد الله","2000-12-20","خميس مليانة","ذ","ن1","1ج م ع ت01","محمد",null,"مزرعةالسيب الطيب","السنة الثانية ثانوي أداب و فلسفة",325,"//////"]
[326,"صباحي إبراهيم","2002-10-16","مغنية","ذ","خ1","1ج م ع ت01","صباحي كمال ",null,"شارع شعبان حمدون رقم 14 - مغنية ","السنة الثانية ثانوي أداب و فلسفة",326,"//////"]
[327,"صوفي رحمة إكرام","2002-02-10","مغنية","أ","م2","1ج م ع ت01","صوفي لخضر ",null,"مزرعة شرقاوي العيد - العقيد عباس مغنية ","السنة الثانية ثانوي أداب و فلسفة",327,"//////"]
[328,"علواني محمد ياسر","2002-03-27","وهران","ذ","م1","1ج م ع ت01","علواني الشيخ",null,"قرية أولاد الشارغ - مغنية ","السنة الثانية ثانوي أداب و فلسفة",328,"//////"]
[329,"غربي سناء","2002-10-20","مغنية","أ","م2","1ج م ع ت01","مصطفى",null,"عمارة 07  رقم 11 مسكن 200 حي عمر المختار - مغنية ","السنة الثانية ثانوي أداب و فلسفة",329,"//////"]
[330,"محلة عبد الرحمان","2003-02-14","مغنية","ذ","خ1","1ج م ع ت01","محلة محمد",null,"ثانوية الخوارزمي - مغنية ","السنة الثانية ثانوي أداب و فلسفة",330,"//////"]
[331,"معطى الله خديجة زهيرة","2002-02-12","مغنية","أ","م2","1ج م ع ت01","معطى الله مصطفى",null,"قرية البطيم - مغنية ","السنة الثانية ثانوي أداب و فلسفة",331,"//////"]
[332,"معطى الله محمد الأمين","1999-08-30","ارزيو","ذ","خ1","1ج م ع ت01","لخضر",null,"حي منقاري محمد عمارة E1رقم06","السنة الثانية ثانوي أداب و فلسفة",332,"//////"]
[333,"مفتاح أمينة منال","2002-07-09","مغنية","أ","م2","1ج م ع ت01","مفتاح محمد",null,"ص ب 64 مزرعة شعبان حمدون مغنية ","السنة الثانية ثانوي أداب و فلسفة",333,"//////"]
[334,"مقدم أيوب","2002-10-22","مغنية","ذ","م1","1ج م ع ت01","مقدم علي ",null,"مزرعة شرقاوي العيد أولاد قدور - مغنية ","السنة الثانية ثانوي أداب و فلسفة",334,"//////"]
[335,"مكاحلي قويدر","2000-01-16","مغنية","ذ","م1","1ج م ع ت01","مكاحلي موفق",null,"حي ابريقي - مغنية ","السنة الثانية ثانوي أداب و فلسفة",335,"//////"]
[336,"منصوري شيماء","2002-09-03","مغنية","أ","م2","1ج م ع ت01","منصوري عبد المجيد",null,"قرية أولاد الشارف - مغنية ","السنة الثانية ثانوي أداب و فلسفة",336,"//////"]
[337,"وازاني روميسة","2002-03-01","مغنية","أ","م2","1ج م ع ت01","عبد الاله",null,"قرية بوسدرة البخاتة - مغنية ","السنة الثانية ثانوي أداب و فلسفة",337,"//////"]
[]
[]
[]
[]
[]
[]
[]
[]
[338,"الشيخ حيزية سهام","2002-11-19","مغنية","أ","م2","1ج م ع ت02","الشيخ محمد",null,"قرية بوسدرة البخاتة - مغنية ","السنة الثانية ثانوي أداب و فلسفة",338,"//////"]
[339,"بلعباسي عماد","2000-10-31","مغنية","ذ","ن1","1ج م ع ت02","عمر",null,"قرية أولاد الشارف ـ مغنية ","السنة الثانية ثانوي أداب و فلسفة",339,"//////"]
[340,"بن عمار شيماء","2002-08-16","مغنية","أ","خ2","1ج م ع ت02","",null,"","السنة الثانية ثانوي أداب و فلسفة",340,"//////"]
[341,"بن عمارة فاطمة الزهراء","2002-08-19","مغنية","أ","م2","1ج م ع ت02","بن عمارة عبد القادر ",null,"قرية البطيم - مغنية ","السنة الثانية ثانوي أداب و فلسفة",341,"//////"]
[342,"بن منصور حليمة","2002-03-29","مغنية","أ","خ2","1ج م ع ت02","بن منصور عبد الله",null,"حي الشهداء ـ مغنية ","السنة الثانية ثانوي أداب و فلسفة",342,"//////"]
[343,"بوسكين رابح محمد","2002-08-04","مغنية","ذ","خ1","1ج م ع ت02","بوسكين عبد اللطيف",null,"درب 02 رقم 32 حي الشهداء - مغنية ","السنة الثانية ثانوي أداب و فلسفة",343,"//////"]
[344,"تومي محمد","2001-12-05","وهران","ذ","م1","1ج م ع ت02","تومي بلبشير",null,"قرية أولاد الشارف ، طريق صبرة ـ مغنية ","السنة الثانية ثانوي أداب و فلسفة",344,"//////"]
[345,"حدار فاطمة الزهراء","2002-12-20","مغنية","أ","خ2","1ج م ع ت02","حدار بومدين",null,"05 حي جابر ، حي الشهداء ـ مغنية ","السنة الثانية ثانوي أداب و فلسفة",345,"//////"]
[346,"حمادي فاطنة نجوى","2002-05-12","مغنية","أ","خ2","1ج م ع ت02","حمادي عبد الرحمن ",null,"حي الشهداء - مغنية ","السنة الثانية ثانوي أداب و فلسفة",346,"//////"]
[347,"حمزة بلال","2001-06-25","مغنية","ذ","ن1","1ج م ع ت02","قدور",null,"قرية البخاتة بوسدرة","السنة الثانية ثانوي أداب و فلسفة",347,"//////"]
[348,"حميدي صفية","2001-12-04","مغنية","أ","م2","1ج م ع ت02","",null,"","السنة الثانية ثانوي أداب و فلسفة",348,"//////"]
[349,"دحماني بلال","2002-12-22","مغنية","ذ","م1","1ج م ع ت02","دحماني محمد",null,"قرية البطيم ـ مغنية ","السنة الثانية ثانوي أداب و فلسفة",349,"//////"]
[350,"دخيسي أمال","2002-03-24","مغنية","أ","م2","1ج م ع ت02","دخيسي هاشمي",null,"قرية أولاد الشارف ـ مغنية ","السنة الثانية ثانوي أداب و فلسفة",350,"//////"]
[351,"دياب أمينة","2000-06-03","مغنية","أ","م2","1ج م ع ت02","دياب ميلود ",null,"قرية أولاد الشارف - مغنية ","السنة الثانية ثانوي أداب و فلسفة",351,"//////"]
[352,"راجعي وسام","2003-02-16","مغنية","أ","م2","1ج م ع ت02","راجعي حسيت",null,"ط و رقم 35 دوار الكفاف ـ مغنية ","السنة الثانية ثانوي أداب و فلسفة",352,"//////"]
[353,"رمضاني سكينة","2002-06-18","مغنية","أ","م2","1ج م ع ت02","رمضاني براهيم",null,"قرية المصامدة ـ مغنية ","السنة الثانية ثانوي أداب و فلسفة",353,"//////"]
[354,"زحزوح شيماء","2001-07-16","مغنية","أ","م2","1ج م ع ت02","شبورو ياقوت",null,"قرية المصامدة ـ مغنية ","السنة الثانية ثانوي أداب و فلسفة",354,"//////"]
[355,"زيني نفيسة","2003-02-17","مغنية","أ","م2","1ج م ع ت02","زيني مجاهد",null,"قرية لأولاد الشارف ـ مغنية ","السنة الثانية ثانوي أداب و فلسفة",355,"//////"]
[356,"زيني نورية","2002-03-01","مغنية","أ","م2","1ج م ع ت02","زيني عبد الحمبد",null,"قرية أولاد الشارف ـ مغنية ","السنة الثانية ثانوي أداب و فلسفة",356,"//////"]
[357,"سامري يوسف","2002-10-09","مغنية","ذ","م1","1ج م ع ت02","سامري أحمد",null,"قرية أولاد الشارف ـ مغنية ","السنة الثانية ثانوي أداب و فلسفة",357,"2017-01-12"]
[358,"ساولي بديعة","2002-06-10","مغنية","أ","م2","1ج م ع ت02","ساولي محمد",null,"قرية البطيم ـ مغنية ","السنة الثانية ثانوي أداب و فلسفة",358,"//////"]
[359,"سلطاني نادية","2001-12-15","مغنية","أ","م2","1ج م ع ت02","",null,"","السنة الثانية ثانوي أداب و فلسفة",359,"//////"]
[360,"شهبي عبد الرحمن أبو الحارث","2002-08-06","مغنية","ذ","خ1","1ج م ع ت02","شهبي عبد القادر",null,"حي الشهداء ـ مغنية ","السنة الثانية ثانوي لغات أجنبيـــة ",360,"//////"]
[361,"صوالح ياسين","2002-10-05","مغنية","ذ","م1","1ج م ع ت02","صوالح أحمد",null,"أولاد قدور الكبار ـ مغنية ","السنة الثانية ثانوي لغات أجنبيـــة ",361,"//////"]
[362,"طيبي أيوب","2001-01-09","بني وارسوس","ذ","م1","1ج م ع ت02","طيبي عبد المجيد",null,"قرية المصامدة ـ مغنية ","السنة الثانية ثانوي لغات أجنبيـــة ",362,"//////"]
[363,"عمراوي دنيا","2002-04-28","مغنية","أ","م2","1ج م ع ت02","عمراوي جمال",null,"قرية العقيد لطفي ـ مغنية ","السنة الثانية ثانوي لغات أجنبيـــة ",363,"//////"]
[364,"فريجة وسيلة","2002-03-28","مغنية","أ","م2","1ج م ع ت02","",null,"","السنة الثانية ثانوي لغات أجنبيـــة ",364,"//////"]
[365,"قطي محمد","2000-04-18","مغنية","ذ","ن1","1ج م ع ت02","واسيني",null,"العقيد عباس","السنة الثانية ثانوي لغات أجنبيـــة ",365,"//////"]
[366,"قليلة سليم","2002-03-03","مغنية","ذ","خ1","1ج م ع ت02","زور فتيحة",null,"رقم 28 حي الشهداء ـ مغنية ","السنة الثانية ثانوي لغات أجنبيـــة ",366,"//////"]
[367,"قنشي علاء الدين","2002-12-25","مغنية","ذ","خ1","1ج م ع ت02","قنشي عبد الرزاق ",null,"حي الشهداء - مغنية ","السنة الثانية ثانوي لغات أجنبيـــة ",367,"//////"]
[368,"قيرية محمد علي","2000-10-26","مغنية","ذ","ن1","1ج م ع ت02","عفاف",null,"البخاتة","السنة الثانية ثانوي لغات أجنبيـــة ",368,"//////"]
[369,"لحلاح أسامة","2002-09-01","مغنية","ذ","م1","1ج م ع ت02","لحلاح أحمد ",null,"عند التواتي - قرية البطيم مغنية ","السنة الثانية ثانوي لغات أجنبيـــة ",369,"//////"]
[370,"مخلوفي ياسين","2002-11-06","دبدابة","ذ","م1","1ج م ع ت02","جبارة عبد القادر",null,"قرية بوسدرة البخاتة - مغنية ","السنة الثانية ثانوي لغات أجنبيـــة ",370,"//////"]
[371,"وابدي حسناء","2002-10-02","مغنية","أ","م2","1ج م ع ت02","محروق نصيرة",null,"محطة بن هدي قرية البخاتة ـ مغنية ","السنة الثانية ثانوي لغات أجنبيـــة ",371,"//////"]
[372,"وابدي محمد","2002-10-02","مغنية","ذ","م1","1ج م ع ت02","محروق نصيرة",null,"محطة بن هدي البخاتة ـ مغنية ","السنة الثانية ثانوي لغات أجنبيـــة ",372,"//////"]
[]
[]
[]
[]
[]
[]
[]
[]
[373,"أوحساين إلياس","2001-10-04","مغنية","ذ","خ1","1ج م ع ت03","محمد",null,"حي الشهداء ، مغنية ","السنة الثانية ثانوي لغات أجنبيـــة ",373,"//////"]
[374,"العباس عبد العزيز","2001-04-25","الغزوات","ذ","خ1","1ج م ع ت03","العباس عبد الغاني",null,"حي الشهداء ـ مغنية ","السنة الثانية ثانوي لغات أجنبيـــة ",374,"//////"]
[375,"بريك غربي","2000-10-06","مغنية","ذ","م1","1ج م ع ت03","بريك العربي",null,"قرية العقيد عباس ـ مغنية ","السنة الثانية ثانوي لغات أجنبيـــة ",375,"//////"]
[376,"بن سالم عبد الاله","2001-02-07","مغنية","ذ","ن1","1ج م ع ت03","احمد",null,"قرية العقيد عباس","السنة الثانية ثانوي لغات أجنبيـــة ",376,"//////"]
[377,"بن سالم عبد الله","1999-11-13","مغنية","ذ","م1","1ج م ع ت03","بن سالم ميلود ",null,"قرية العقيد لطفي *- مغنية ","السنة الثانية ثانوي لغات أجنبيـــة ",377,"//////"]
[378,"بن صغير أمينة سناء","2003-01-11","مغنية","أ","م2","1ج م ع ت03","بن صغير محمد",null,"قرية أولاد الشارف ـ مغنية ","السنة الثانية ثانوي لغات أجنبيـــة ",378,"//////"]
[379,"بن عبد الله أميرة","2002-09-27","مغنية","أ","م2","1ج م ع ت03","بن عبد الله رشيد",null,"قرية المصامدة - مغنية ","السنة الثانية ثانوي لغات أجنبيـــة ",379,"//////"]
[380,"بن كوار محمد أمين","2002-05-09","مغنية","ذ","م1","1ج م ع ت03","بن كوار محمد ",null,"","السنة الثانية ثانوي لغات أجنبيـــة ",380,"//////"]
[381,"بن مغني سهيلة","2002-01-13","مغنية","أ","م2","1ج م ع ت03","بن مغني لخضر",null,"قرية العقيد لطفي ـ مغنية ","السنة الثانية ثانوي لغات أجنبيـــة ",381,"//////"]
[382,"بن هدي سيدي محمد","2002-10-31","تلمسان","ذ","خ1","1ج م ع ت03","بن هدي واسيني",null,"حي الشهداء - مغنية ","السنة الثانية ثانوي لغات أجنبيـــة ",382,"//////"]
[383,"بوطاقة عبد الاله","2000-08-18","مغنية","ذ","ن1","1ج م ع ت03","عبد الكريم",null,"اولاد الشارف","السنة الثانية ثانوي لغات أجنبيـــة ",383,"//////"]
[384,"بوعربي وصال هديل","2002-07-02","مغنية","أ","م2","1ج م ع ت03","بوعربي عبد القادر ",null,"قرية البطيم - مغنية ","السنة الثانية ثانوي لغات أجنبيـــة ",384,"//////"]
[385,"بوعزة رانية","2002-11-16","مغنية","أ","م2","1ج م ع ت03","بوعزة ميلود",null,"قرية المصامدة ـ مغنية ","السنة الأولى ثانوي جدع مشترك علوم و تكنولوجيا",385,"//////"]
[386,"بومدين أمال","2001-08-22","مغنية","أ","ن2","1ج م ع ت03","واسيني",null,"اولاد قدور","السنة الأولى ثانوي جدع مشترك علوم و تكنولوجيا",386,"//////"]
[387,"تواتي محمد تاج الدين","1999-03-04","تلمسان","ذ","م1","1ج م ع ت03","تواتي عبد الجليل",null,"قرية أولاد الشارف ـ مغنية ","السنة الأولى ثانوي جدع مشترك علوم و تكنولوجيا",387,"//////"]
[388,"جزيري دنيا","2001-01-27","مغنية","أ","م2","1ج م ع ت03","جزيري محمد",null,"قرية بوسدرة البخاتة - مغنية ","السنة الأولى ثانوي جدع مشترك علوم و تكنولوجيا",388,"//////"]
[389,"حواسة شيماء","1999-02-28","مغنية","أ","خ2","1ج م ع ت03","موس",null,"شارع04منزل16 حي الشهداء","السنة الأولى ثانوي جدع مشترك علوم و تكنولوجيا",389,"//////"]
[390,"داري زكرياء","1999-03-10","مغنية","ذ","خ1","1ج م ع ت03","عبد الحميد",null,"عمارة الاساتذة حي الشهداء رقمB","السنة الأولى ثانوي جدع مشترك علوم و تكنولوجيا",390,"//////"]
[391,"دفافني يسرى","2003-01-01","مغنية","أ","خ2","1ج م ع ت03","دفافني عمر",null,"حي الشهداء ـ مغنية ","السنة الأولى ثانوي جدع مشترك علوم و تكنولوجيا",391,"//////"]
[392,"دوجي خالد","2002-01-31","مغنية","ذ","خ1","1ج م ع ت03","دوجي عبد الكريم",null,"رقم 217 حي الشهداء ـ مغنية ","السنة الأولى ثانوي جدع مشترك علوم و تكنولوجيا",392,"//////"]
[393,"زحزوح فاطمة الزهراء","2001-03-23","مغنية","أ","م2","1ج م ع ت03","زحزوح محمد",null,"قرية المصامدة ـ مغنية ","السنة الأولى ثانوي جدع مشترك علوم و تكنولوجيا",393,"//////"]
[394,"سالم شمس الدين","2001-10-05","مغنية","ذ","خ1","1ج م ع ت03","",null,"","السنة الأولى ثانوي جدع مشترك علوم و تكنولوجيا",394,"//////"]
[395,"سبو شيماء","2001-03-21","مغنية","أ","خ2","1ج م ع ت03","سبو محمد",null,"حي الشهداء - مغنية ","السنة الأولى ثانوي جدع مشترك علوم و تكنولوجيا",395,"//////"]
[396,"عويسة شروق","2002-12-24","نغنيف","أ","خ2","1ج م ع ت03","عويسة محمد",null,"حي الشهداء ـ مغنية ","السنة الأولى ثانوي جدع مشترك علوم و تكنولوجيا",396,"//////"]
[397,"عويسي الياس","2002-11-25","مغنية","ذ","خ1","1ج م ع ت03","عويسي زوبير ",null,"منزل 20 شارع 03 حي الشهداء - مغنية ","السنة الأولى ثانوي جدع مشترك علوم و تكنولوجيا",397,"//////"]
[398,"قديم نعيمة","2002-01-12","مغنية","أ","م2","1ج م ع ت03","قديم عبد الصمد",null,"قرية أولاد الشارف ـ مغنية ","السنة الأولى ثانوي جدع مشترك علوم و تكنولوجيا",398,"//////"]
[399,"كاري مروة","2002-11-11","مغنية","أ","م2","1ج م ع ت03","كاري نصرالدين",null,"قر ية العقيد لطفي ـ مغنية ","السنة الأولى ثانوي جدع مشترك علوم و تكنولوجيا",399,"//////"]
[400,"كرد توفيق","2001-08-17","مغنية","ذ","م1","1ج م ع ت03","كرد عبد الحميد ",null,"قرية العقيد لطفي - مغنية ","السنة الأولى ثانوي جدع مشترك علوم و تكنولوجيا",400,"//////"]
[401,"كلتومي أيمن","2002-08-11","وهران","ذ","م1","1ج م ع ت03","كلتومي عبد الناصر",null,"دوار المرازفة ـ مغنية ","السنة الأولى ثانوي جدع مشترك علوم و تكنولوجيا",401,"//////"]
[402,"لعروسي سيد أحمد","2002-05-23","مغنية","ذ","م1","1ج م ع ت03","لعروسي عبد القادر",null,"قرية البطيم ـ مغنية ","السنة الأولى ثانوي جدع مشترك علوم و تكنولوجيا",402,"//////"]
[403,"مزاري سلوة","2002-06-27","تلمسان","أ","م2","1ج م ع ت03","مزاري جمال",null,"قرية بوسدرة البخاتة - مغنية ","السنة الأولى ثانوي جدع مشترك علوم و تكنولوجيا",403,"//////"]
[404,"مقدم لخضر عصام","2001-09-29","مغنية","ذ","ن1","1ج م ع ت03","الشيخ",null,"اولاد قدور لكبار","السنة الأولى ثانوي جدع مشترك علوم و تكنولوجيا",404,"//////"]
[405,"ناير مروى","2002-11-22","مغنية","أ","م2","1ج م ع ت03","ناير محمد",null,"قرية البطيم ـ مغنية ","السنة الأولى ثانوي جدع مشترك علوم و تكنولوجيا",405,"//////"]
[406,"نيار سيدي محمد ريان","2002-08-02","مستغانم","ذ","خ1","1ج م ع ت03","نيار عبد الباقي",null,"حي الشهداء ـ مغنية ","السنة الأولى ثانوي جدع مشترك علوم و تكنولوجيا",406,"//////"]
[]
[]
[]
[]
[]
[]
[]
[]
[407,"أحمودي نادية","2002-05-19","مغنية","أ","م2","1ج م ع ت04","أحمودي عكاشة",null,"قرية العقيد لطفي ـ مغنية ","السنة الأولى ثانوي جدع مشترك علوم و تكنولوجيا",407,"//////"]
[408,"العباس بومدين","2002-06-13","مغنية","ذ","م1","1ج م ع ت04","العباس بلخير ",null,"قرية أولاد الشارف - مغنية ","السنة الأولى ثانوي جدع مشترك علوم و تكنولوجيا",408,"//////"]
[409,"العربي فاطمة الزهراء","2002-03-31","تلمسان","أ","خ2","1ج م ع ت04","العربي محمد",null,"دوار أولاد قدور الصغار ـ مفنية ","السنة الأولى ثانوي جدع مشترك علوم و تكنولوجيا",409,"//////"]
[410,"بصغير مريم","2002-09-26","مغنية","أ","م2","1ج م ع ت04","بصغير أحمد",null,"قرية أولاد الشارف ـ مغنية ","السنة الأولى ثانوي جدع مشترك علوم و تكنولوجيا",410,"//////"]
[411,"بن طلحة نور الدين","2000-10-03","مغنية","ذ","م1","1ج م ع ت04","بن طلحة عبد القادر",null,"قرية سيدي يحيى ، بلدية سيدي مجاهد ـبني بوسعيد","السنة الأولى ثانوي جدع مشترك علوم و تكنولوجيا",411,"//////"]
[412,"بن عبد الله فريال","2002-09-25","مغنية","أ","م2","1ج م ع ت04","بن عبد الله سماعيل",null,"قرية بوسدرة البخاتة ـ مغنية ","السنة الأولى ثانوي جدع مشترك علوم و تكنولوجيا",412,"//////"]
[413,"بن عبد الله مصطفى","2003-07-30","مغنية","ذ","م1","1ج م ع ت04","بن عبد الله كريم",null,"قرية المصامدة ـ مغنية ","السنة الأولى ثانوي جدع مشترك علوم و تكنولوجيا",413,"//////"]
[414,"بن عراج أيوب","2002-06-12","مغنية","ذ","م1","1ج م ع ت04","بن عراج يحيى",null,"السكن الوظيفي متوسطة عقبة بن نافع - مغنية ","السنة الأولى ثانوي جدع مشترك علوم و تكنولوجيا",414,"//////"]
[415,"بن عيش ياسين","2000-03-02","وهران","ذ","م1","1ج م ع ت04","بن عيش عبد القادر",null,"قرية أولاد الشارف ـ مغنية ","السنة الأولى ثانوي جدع مشترك علوم و تكنولوجيا",415,"//////"]
[416,"بن هدي ياسين","2000-10-07","مغنية","ذ","خ1","1ج م ع ت04","يحي",null,"حي الشهداء","السنة الأولى ثانوي جدع مشترك علوم و تكنولوجيا",416,"//////"]
[417,"بن يحيى عبد الرزاق","2002-06-15","مغنية","ذ","م1","1ج م ع ت04","بن يحيى فدور ",null,"قرية البطيم - مغنية ","السنة الأولى ثانوي جدع مشترك علوم و تكنولوجيا",417,"//////"]
[418,"بوطاقة بلال","2002-03-11","مغنية","ذ","م1","1ج م ع ت04","بوطاقة لخضر",null,"قرية أولاد الشارف ـ مغنية ","السنة الأولى ثانوي جدع مشترك علوم و تكنولوجيا",418,"//////"]
[419,"بوعزة حسام","2002-02-24","مغنية","ذ","م1","1ج م ع ت04","بوعزة عبد القاتدر",null,"قرية المصامدة ـ مغنية ","السنة الأولى ثانوي جدع مشترك علوم و تكنولوجيا",419,"//////"]
[420,"بوغالية صافية أيات","2002-04-21","مغنية","أ","خ2","1ج م ع ت04","",null,"","السنة الأولى ثانوي جدع مشترك علوم و تكنولوجيا",420,"//////"]
[421,"بومدين محمد","2001-06-15","مغنية","ذ","م1","1ج م ع ت04","بومدين أحمد",null,"أولاد قدور الكبار ـ مغنية ","السنة الأولى ثانوي جدع مشترك علوم و تكنولوجيا",421,"//////"]
[422,"خضراوي أسماء","2001-07-30","مغنية","أ","م2","1ج م ع ت04","خضراوي عبد الله",null,"قرية أولاد الشارف ـ مغنية ","السنة الأولى ثانوي جدع مشترك علوم و تكنولوجيا",422,"//////"]
[423,"دار رمضان عبد الحفيظ نزيم","2002-05-19","مغنية","ذ","خ1","1ج م ع ت04","",null,"","السنة الأولى ثانوي جدع مشترك علوم و تكنولوجيا",423,"//////"]
[424,"دخيسي سيدي محمد","2002-06-06","مغنية","ذ","م1","1ج م ع ت04","دخيسي عبد الحميد ",null,"قرية أولاد الشارف - مغنية","السنة الأولى ثانوي جدع مشترك علوم و تكنولوجيا",424,"//////"]
[425,"دكالي نادية","2002-09-14","مغنية","أ","خ2","1ج م ع ت04","دكال محمد نجيم",null,"حي الشهداء ـ مغنية ","السنة الأولى ثانوي جدع مشترك علوم و تكنولوجيا",425,"//////"]
[426,"رانبي نسرين","2002-11-22","ندرومة","أ","خ2","1ج م ع ت04","رانبي محمد",null,"حي الشهداء رقم 02 ـ مغنية ","السنة الأولى ثانوي جدع مشترك علوم و تكنولوجيا",426,"//////"]
[427,"سحوي هبة","2002-08-05","مغنية","أ","خ2","1ج م ع ت04","",null,"","السنة الأولى ثانوي جدع مشترك علوم و تكنولوجيا",427,"//////"]
[428,"سلومي إسماعيل","2002-06-02","مغنية","ذ","م1","1ج م ع ت04","سلومي نورالدين",null,"قرية العقييد لطفي - مغنية ","السنة الأولى ثانوي جدع مشترك علوم و تكنولوجيا",428,"//////"]
[429,"شارف مربم العذراء","2003-02-21","مغنية","أ","م2","1ج م ع ت04","شارف حمزة",null,"قرية اولاد الشارف ـ مغنية ","السنة الأولى ثانوي جدع مشترك علوم و تكنولوجيا",429,"//////"]
[430,"صباحي صافية نصيرة","2003-01-06","مغنية","أ","خ2","1ج م ع ت04","صباحي زهير ",null,"حي الشهداء - مغنية ","السنة الأولى ثانوي جدع مشترك علوم و تكنولوجيا",430,"//////"]
[431,"طيبي محمد  رضا","2001-05-07","مغنية","ذ","ن1","1ج م ع ت04","الطاهر",null,"دوار الكفاف ، مغنية ","السنة الأولى ثانوي جدع مشترك علوم و تكنولوجيا",431,"//////"]
[432,"عبد المالك مريم","2002-01-08","مغنية","أ","خ2","1ج م ع ت04","عبد المالك عمر",null,"شارع 15 منزل رقم 06 حي الشهداء ـ مغنية ","السنة الأولى ثانوي جدع مشترك علوم و تكنولوجيا",432,"//////"]
[433,"عريشي إسماعيل","2000-12-29","مغنية","ذ","ن1","1ج م ع ت04","مكي",null,"محطة العقيد عباس","السنة الأولى ثانوي جدع مشترك علوم و تكنولوجيا",433,"//////"]
[434,"قديم سهيلة","2002-07-08","مغنية","أ","م2","1ج م ع ت04","قديم ميلود",null,"قرية أولاد الشارف ـ مغنية ","السنة الأولى ثانوي جدع مشترك علوم و تكنولوجيا",434,"//////"]
[435,"قناد ياسين","2000-09-18","مغنية","ذ","خ1","1ج م ع ت04","عبد الرزاق",null,"حي الشهداء","السنة الأولى ثانوي جدع مشترك علوم و تكنولوجيا",435,"//////"]
[436,"قنطاري حمزة","2003-01-07","سبدو","ذ","خ1","1ج م ع ت04","قنطاري بوفلجة",null,"حي الشهداء ـ مغنية ","السنة الأولى ثانوي جدع مشترك علوم و تكنولوجيا",436,"//////"]
[437,"كبيب حليمة","2002-11-20","مغنية","أ","م2","1ج م ع ت04","كبيب محمد",null,"قرية أولاد الشارف ـ مغنية ","السنة الأولى ثانوي جدع مشترك علوم و تكنولوجيا",437,"//////"]
[438,"كريم وسام","2002-11-20","مغنية","أ","م2","1ج م ع ت04","كريم التاج",null,"دوار العثامنة ـ الشيبكية ـ مغنية ","السنة الأولى ثانوي جدع مشترك علوم و تكنولوجيا",438,"//////"]
[439,"مزاري فاطنة","2000-04-10","مغنية","أ","ن2","1ج م ع ت04","عبد العزيز",null,"الطريق الوطني رقم 35 الكفاف ـ مغنية ","السنة الأولى ثانوي جدع مشترك علوم و تكنولوجيا",439,"//////"]
[440,"مقداد وئيل","2002-02-20","مغنية","أ","م2","1ج م ع ت04","",null,"","السنة الأولى ثانوي جدع مشترك علوم و تكنولوجيا",440,"//////"]
[441,"مكسالي عبد الرحيم","2000-09-23","مغنية","ذ","ن1","1ج م ع ت04","احمد",null,"قرية العقيد عباس مغنية","السنة الأولى ثانوي جدع مشترك علوم و تكنولوجيا",441,"//////"]
[]
[]
[]
[]
[]
[]
[]
[]
[442,"أمبارك شيماء","2002-07-31","مغنية","أ","م2","1ج م ع ت05","",null,"","السنة الأولى ثانوي جدع مشترك علوم و تكنولوجيا",442,"//////"]
[443,"العياطي سيدي محمد","1999-06-19","مغنية","ذ","ن1","1ج م ع ت05","عبد القادر",null,"سيدي مجاهد","السنة الأولى ثانوي جدع مشترك علوم و تكنولوجيا",443,"//////"]
[444,"بلحسين أمين","2002-06-01","مغنية","ذ","م1","1ج م ع ت05","بلحسين واسيني",null,"قرية البطيم - مغنية ","السنة الأولى ثانوي جدع مشترك علوم و تكنولوجيا",444,"//////"]
[445,"بلخير زينب رحمة","2002-11-25","مغنية","أ","خ2","1ج م ع ت05","بلخير  محمد",null,"55 حي الشهداء ـ مغنية ","السنة الأولى ثانوي جدع مشترك علوم و تكنولوجيا",445,"//////"]
[446,"بلعباسي بلال","2002-03-09","مغنية","ذ","م1","1ج م ع ت05","بلعباسي محمد",null,"قرية أولاد الشار ف - مغنية ","السنة الأولى ثانوي جدع مشترك علوم و تكنولوجيا",446,"//////"]
[447,"بلعجل محمد","2002-03-09","مغنية","ذ","م1","1ج م ع ت05","بلعجل منصور ",null,"مكتبة خالدي طارق - العقيد عباس - مغنية ","السنة الأولى ثانوي جدع مشترك علوم و تكنولوجيا",447,"//////"]
[448,"بن عبد الواحد عتيقة","2002-08-06","مغنية","أ","م2","1ج م ع ت05","بورديم نادية",null,"قرية البطيم - مغنية ","السنة الأولى ثانوي جدع مشترك علوم و تكنولوجيا",448,"//////"]
[449,"بن علي هاجر","2001-01-03","مغنية","أ","ن2","1ج م ع ت05","نور الدين",null,"بخاتة في الشهداء","السنة الأولى ثانوي جدع مشترك علوم و تكنولوجيا",449,"//////"]
[450,"بن يوبي بلال","2000-09-29","سبدو","ذ","ن1","1ج م ع ت05","محمد",null,"اولاد الشارف","السنة الأولى ثانوي جدع مشترك علوم و تكنولوجيا",450,"//////"]
[451,"تاجوري محمد","2001-09-19","مغنية","ذ","م1","1ج م ع ت05","تاجوري الشيخ",null,"مومني الواسيني ، قرية البطيم - مغنية ","السنة الأولى ثانوي جدع مشترك علوم و تكنولوجيا",451,"//////"]
[452,"حاج محمد إسماعيل","2002-10-15","مغنية","ذ","خ1","1ج م ع ت05","",null,"","السنة الأولى ثانوي جدع مشترك علوم و تكنولوجيا",452,"//////"]
[453,"حداج سيدي محمد","2002-06-25","مغنية","ذ","م1","1ج م ع ت05","حداج عمر",null,"قرية العقيد لطفي ـ مغنية ","السنة الأولى ثانوي جدع مشترك علوم و تكنولوجيا",453,"//////"]
[454,"حقاوي إكرام","2002-08-10","تلمسان","أ","م2","1ج م ع ت05","حقاوي محمد",null,"قرية بوسدرة البخاتة - مغنية ","السنة الأولى ثانوي جدع مشترك علوم و تكنولوجيا",454,"//////"]
["644","حمادي فاطمة","2002-06-01","مغنية","أ","م2","1ج م ع ت05","حمادي مروان",null,"قرية العقيد عباس ـ مغنية ",null,455,"//////"]
[456,"حمادي محمد جليل","2001-07-08","مغنية","ذ","م1","1ج م ع ت05","حمادي بن اعمر",null,"محطة العقيد عباس - مغنية ","السنة الأولى ثانوي جدع مشترك علوم و تكنولوجيا",456,"//////"]
[457,"حمادي هاجر","2002-06-01","مغنية","أ","م2","1ج م ع ت05","حمادي مروان",null,"قرية العقيد عباس  ـ مغنية ","السنة الأولى ثانوي جدع مشترك علوم و تكنولوجيا",457,"//////"]
[458,"حمدي حسام الدين","2001-02-13","تغنيف","ذ","م1","1ج م ع ت05","حمدي بن زرام ",null,"قرية أولاد الشارف - مغنية ","السنة الأولى ثانوي جدع مشترك علوم و تكنولوجيا",458,"//////"]
[459,"حود أسماء","2002-04-25","مغنية","أ","خ2","1ج م ع ت05","حود جيلالي ",null,"حي الشهداء - مغنية ","السنة الأولى ثانوي جدع مشترك علوم و تكنولوجيا",459,"//////"]
[460,"رحال عزالدين","2002-06-11","مغنية","ذ","م1","1ج م ع ت05","رحال هبري",null,"قر ية البطيم - مغنية ","السنة الأولى ثانوي جدع مشترك علوم و تكنولوجيا",460,"//////"]
[461,"زجاوي مريم","2002-11-06","مغنية","أ","خ2","1ج م ع ت05","زجاوي عبد اللطيف",null,"حي الباطاور - مغنية ","السنة الأولى ثانوي جدع مشترك علوم و تكنولوجيا",461,"//////"]
[462,"زوهيري يوسف","2002-08-11","مغنية","ذ","خ1","1ج م ع ت05","زوهيري عبد القلادر",null,"حي الشهداء قرب مقر الشرطة - مغنية ","السنة الأولى ثانوي جدع مشترك علوم و تكنولوجيا",462,"//////"]
[463,"زياني الأول بشرى","2002-03-13","مغنية","أ","م2","1ج م ع ت05","زياني الأول عبد القادر ",null,"ولاد زيان العقيد لطفي - مغنية ","السنة الأولى ثانوي جدع مشترك علوم و تكنولوجيا",463,"//////"]
[464,"زيني محمد الأمين","2001-12-02","مغنية","ذ","ن1","1ج م ع ت05","محمد",null,"درب17 رقم 15 حي المقراني","السنة الأولى ثانوي جدع مشترك علوم و تكنولوجيا",464,"//////"]
[465,"زيني مغنية","2002-04-26","مغنية","أ","م2","1ج م ع ت05","زيني عمر",null,"قرية أولاد الشارف - مغنية ","السنة الأولى ثانوي جدع مشترك علوم و تكنولوجيا",465,"//////"]
[466,"ستاوتي جواد","2000-08-18","مغنية","ذ","م1","1ج م ع ت05","ستاوي لخضر",null,"قرية المصامدة - مغنية ","السنة الأولى ثانوي جدع مشترك علوم و تكنولوجيا",466,"//////"]
[467,"سنوسي سهام","2000-09-03","مغنية","أ","م2","1ج م ع ت05","سنوسي محمد",null,"قرية العقيد عباس - مغنية ","السنة الأولى ثانوي جدع مشترك علوم و تكنولوجيا",467,"//////"]
[468,"طالب أنيس شرف الدين","2002-05-06","مغنية","ذ","خ1","1ج م ع ت05","طالب عبد السيد",null,"حي الشهداء - مغنية ","السنة الأولى ثانوي جدع مشترك علوم و تكنولوجيا",468,"//////"]
[469,"عثماني أسماء","2002-07-25","مغنية","أ","م2","1ج م ع ت05","عثماني محمد",null,"قرية أولاد الشارف ـ مغنية ","السنة الأولى ثانوي جدع مشترك علوم و تكنولوجيا",469,"//////"]
[470,"قعاد فاطمة الزهرة","1999-11-26","مغنية","أ","ن2","1ج م ع ت05","رابح",null,"المصامدة","السنة الأولى ثانوي جدع مشترك علوم و تكنولوجيا",470,"//////"]
[471,"مداني زكرياء","2001-08-15","مغنية","ذ","ن1","1ج م ع ت05","كمال",null,"قرية أولاد الشارف ، مغنية ","السنة الأولى ثانوي جدع مشترك علوم و تكنولوجيا",471,"//////"]
[472,"مستاري نذير","2002-06-15","وهران","ذ","م1","1ج م ع ت05","مستاري بغداد",null,"قرية المصامدة ـ مغنية ","السنة الأولى ثانوي جدع مشترك علوم و تكنولوجيا",472,"//////"]
[473,"معمر إكرام","2000-05-13","مغنية","أ","م2","1ج م ع ت05","هامل زوليخة",null,"قرية بوسدرة البخاتة - مغنية ","السنة الأولى ثانوي جدع مشترك علوم و تكنولوجيا",473,"//////"]
[474,"مقدم شيماء","2001-12-31","مغنية","أ","م2","1ج م ع ت05","مقدم طيب ",null,"أولاد قدور ـ مغنية ","السنة الأولى ثانوي جدع مشترك علوم و تكنولوجيا",474,"//////"]
[475,"هواري محمد صلاح الدين","2001-06-20","مغنية","ذ","ن1","1ج م ع ت05","احمد",null,"حي المدرجات مغنية","السنة الأولى ثانوي جدع مشترك علوم و تكنولوجيا",475,"//////"]
[476,"وادفل مروة","2002-04-28","مغنية","أ","خ2","1ج م ع ت05","وادفل بن يونس",null,"درب 06 رقم 10 حي الشهداء ـ مغنية ","السنة الأولى ثانوي جدع مشترك علوم و تكنولوجيا",476,"//////"]
[]
[]
[]
[]
[]
[]
[477,"الحاجي عماد الدين","2001-06-30","مغنية","ذ","م1","1ج م آ01","الحاجي فوزي",null,"ط و رقم 35 الكفاف - مغنية ","السنة الأولى ثانوي جدع مشترك علوم و تكنولوجيا",477,"//////"]
[478,"العابد أحلام","2001-02-22","مغنية","أ","م2","1ج م آ01","العابد أحمد ",null,"قرية البطيم - مغنية ","السنة الأولى ثانوي جدع مشترك علوم و تكنولوجيا",478,"//////"]
[479,"العابد سيدي محمد","2000-05-13","مغنية","ذ","خ1","1ج م آ01","بن عمر",null,"حي بلال بن رباح ","السنة الأولى ثانوي جدع مشترك علوم و تكنولوجيا",479,"//////"]
[480,"العابد محمد كمال","2000-07-01","مغنية","ذ","م1","1ج م آ01","العابد واسيني",null,"قرية البطيم - مغنية ","السنة الأولى ثانوي جدع مشترك علوم و تكنولوجيا",480,"//////"]
[481,"الهلالي جمال","2001-11-20","مغنية","ذ","م1","1ج م آ01","الهلالي نور الدين ",null,"قرية أولاد الشارف - مغنية ","السنة الأولى ثانوي جدع مشترك علوم و تكنولوجيا",481,"//////"]
[482,"برياح أحمد","2002-11-18","مغنية","ذ","م1","1ج م آ01","برياح محمد ",null,"قرية أولاد الشارف ـ مغنية ","السنة الأولى ثانوي جدع مشترك علوم و تكنولوجيا",482,"//////"]
[483,"بن عراج الياس","2001-02-04","مغنية","ذ","م1","1ج م آ01","بن عراج قويدر ",null,"قرية بوسدرة البخاتة - مغنية ","السنة الأولى ثانوي جدع مشترك علوم و تكنولوجيا",483,"//////"]
[484,"بن عمارة أيوب محمد","2001-09-17","مغنية","ذ","م1","1ج م آ01","بن عمارة محمد",null,"قرية البطيم - مغنية ","السنة الأولى ثانوي جدع مشترك علوم و تكنولوجيا",484,"//////"]
[485,"بن هدي جمال الدين","2001-01-16","مغنية","ذ","م1","1ج م آ01","بن هدي أحمد ",null,"قرية بوسدرة البخاتة - مغنية ","السنة الأولى ثانوي جدع مشترك علوم و تكنولوجيا",485,"//////"]
[486,"بورجي فاطمة","2002-07-28","مغنية","أ","م2","1ج م آ01","بورجي عبد القادر",null,"ثانوية الخوارزمي ـ مغنية ","السنة الأولى ثانوي جدع مشترك علوم و تكنولوجيا",486,"//////"]
[487,"بومدين حورية","2002-05-27","مغنية","أ","م2","1ج م آ01","بومدين محمد ",null,"منزل 10 قرية العقيد لكفي - مغنية ","السنة الأولى ثانوي جدع مشترك علوم و تكنولوجيا",487,"//////"]
[488,"تابتي شمس الدين","2000-04-17","مغنية","ذ","م1","1ج م آ01","تابتي لحسن ",null,"ط و رقم 35 قرية الكفاف - مغنية ","السنة الأولى ثانوي جدع مشترك علوم و تكنولوجيا",488,"//////"]
[489,"تيسوراسي عبد الله","2002-07-02","مغنية","ذ","خ1","1ج م آ01","تيسوراسي محمد",null,"رقم 03 حي بن عيسى محطة القطار - مغنية ","السنة الأولى ثانوي جدع مشترك علوم و تكنولوجيا",489,"//////"]
[490,"جزيري أسماء جهان","2001-11-22","مغنية","أ","م2","1ج م آ01","جزيري واسيني ",null,"قؤية بوسدرة البخاتة - مغنية ","السنة الأولى ثانوي جدع مشترك علوم و تكنولوجيا",490,"//////"]
[491,"جغدي فاطمة الزهراء","2003-04-08","مغنية","أ","م2","1ج م آ01","جغدي سعيد ",null,"قرية المصامدة - مغنية ","السنة الأولى ثانوي جدع مشترك علوم و تكنولوجيا",491,"//////"]
[492,"ختيري أسامة","2000-01-16","مغنية","ذ","م1","1ج م آ01","ختيري بوعزة",null,"قرية البطيم - مغنية ","السنة الأولى ثانوي جدع مشترك علوم و تكنولوجيا",492,"//////"]
[493,"دحماني دنيا","2002-09-29","ندرومة","أ","م2","1ج م آ01","دحماني عبد الغاني ",null,"قرية أولاد الشارف  - مغنية ","السنة الأولى ثانوي جدع مشترك علوم و تكنولوجيا",493,"//////"]
[494,"رحو إبمان","2002-07-05","الحراش","أ","م2","1ج م آ01","رحو ابن عمر",null,"حي الشهداء - مغنية ","السنة الأولى ثانوي جدع مشترك علوم و تكنولوجيا",494,"//////"]
[495,"رحو فاطمة الزهراء","1999-02-10","مغنية","أ","م2","1ج م آ01","رحو محمد",null,"","السنة الأولى ثانوي جدع مشترك علوم و تكنولوجيا",495,"//////"]
[496,"زروالي فريال","1999-06-01","مغنية","أ","م2","1ج م آ01","زروالي مختار ",null,"قرية المصامدة - مغنية ","السنة الأولى ثانوي جدع مشترك علوم و تكنولوجيا",496,"//////"]
[497,"زروالي يامنة","2002-06-10","مغنية","أ","م2","1ج م آ01","زروالي مختار ",null,"قرية المصامدة - مغنية ","السنة الأولى ثانوي جدع مشترك علوم و تكنولوجيا",497,"//////"]
[498,"زواري أنيسة","2000-07-10","مغنية","أ","خ2","1ج م آ01","الميلود",null,"حي الشهداء محطة القطار رقم22","السنة الأولى ثانوي جدع مشترك علوم و تكنولوجيا",498,"//////"]
[499,"زيتوني رحيمة","1999-10-30","مغنية","أ","ن2","1ج م آ01","زيتوني محمد",null,"حي بلال ـ مغنية ","السنة الأولى ثانوي جدع مشترك علوم و تكنولوجيا",499,"//////"]
[500,"سلهامي فاطمة الزهراء","2002-10-05","مغنية","أ","م2","1ج م آ01","سلهامي لخضر ",null,"محل موني الواسينب ـ قرية البطيم - مغنية ","السنة الأولى ثانوي جدع مشترك علوم و تكنولوجيا",500,"//////"]
[501,"عبد المالك حسام الدين أحمد","2002-06-06","مغنية","ذ","م1","1ج م آ01","عبد المالك مصطفى",null,"حي الشهداء - مغنية ","السنة الأولى ثانوي جدع مشترك علوم و تكنولوجيا",501,"//////"]
[502,"عبد المالك غنية","2002-01-07","مغنية","أ","م2","1ج م آ01","عبد المالك محمد",null,"قرية أولاد الشارف - مغنية ","السنة الأولى ثانوي جدع مشترك علوم و تكنولوجيا",502,"//////"]
[503,"عدون هاجر","2000-01-16","مغنية","أ","م2","1ج م آ01","عدون محمد ",null,"قرية البطيم - مغنية ","السنة الأولى ثانوي جدع مشترك علوم و تكنولوجيا",503,"//////"]
[504,"عيساني إبراهيم","2002-06-04","مغنية","ذ","م1","1ج م آ01","عيساني محمد ",null,"قرية البخاتة - مغنية ","السنة الأولى ثانوي جدع مشترك علوم و تكنولوجيا",504,"//////"]
[505,"فتوحي سهيلة","2001-10-17","تلمسان","أ","م2","1ج م آ01","فتوحي واسيني ",null,"قرية البطيم - مغنية ","السنة الأولى ثانوي جدع مشترك علوم و تكنولوجيا",505,"//////"]
[506,"فلكاي شانز","2000-02-09","أوقاس","أ","م2","1ج م آ01","فروج رياض",null,"قصيلة الدرك الوطني الطريق السيار ش-غ البطيم - مغنية","السنة الأولى ثانوي جدع مشترك علوم و تكنولوجيا",506,"//////"]
[507,"قبلي محمد يوسف","2000-01-24","مغنية","ذ","م1","1ج م آ01","قبلي محمد ",null,"قرية بوسدرة البخاتة - مغنية ",null,507,"//////"]
[508,"لكحل ميمونة","2002-05-17","مغنية","أ","م2","1ج م آ01","لكحل بلخير ",null,"قرية أولاد قدور - مغنية ","السنة الأولى ثانوي جدع مشترك علوم و تكنولوجيا",508,"//////"]
[509,"مقدم أمنة","2002-02-11","مغنية","أ","م2","1ج م آ01","مقدم ميلود ",null,"قرية أولاد قدور - مغنية ","السنة الأولى ثانوي جدع مشترك علوم و تكنولوجيا",509,"//////"]
[510,"هشماوي صبرينة","2000-11-04","مغنية","أ","خ2","1ج م آ01","هشماوي عبد الرحمان",null,"قرية بوسدرة البخاتة - مغنية ","السنة الأولى ثانوي جدع مشترك علوم و تكنولوجيا",510,"//////"]
[511,"هواري رانيا","1999-06-22","مغنية","أ","م2","1ج م آ01","هواري يحيى",null,"حي الباطوار - درب 24 المنزل 04","السنة الأولى ثانوي جدع مشترك علوم و تكنولوجيا",511,"//////"]
[]
[]
[]
[]
[]
[]
[]
[]
[512,"الحمليلي أنفال","2002-06-03","مغنية","أ","م2","1ج م آ02","الحمليلي العربي",null,"دوار المرازقة ـ مغنية ","السنة الأولى ثانوي جدع مشترك علوم و تكنولوجيا",512,"//////"]
[513,"الشيخ أحلام","2002-06-06","مغنية","أ","م2","1ج م آ02","الشيخ علي ",null,"قرية أولاد قدور - مغنية ","السنة الأولى ثانوي جدع مشترك علوم و تكنولوجيا",513,"//////"]
[514,"الشيخ فاطمة الزهراء","2000-10-18","مغنية","أ","م2","1ج م آ02","الشيخ عبد القادر",null,"قرية أولاد الشارف - مغنية ","السنة الأولى ثانوي جدع مشترك علوم و تكنولوجيا",514,"//////"]
[515,"امحمدي فاطنة","2000-01-26","مغنية","أ","م2","1ج م آ02","امحمدي حميد ",null,"أولاد قدور الكبار - مغنية ","السنة الأولى ثانوي جدع مشترك علوم و تكنولوجيا",515,"//////"]
[516,"برودي عفاف","2001-03-05","مغنية","أ","م2","1ج م آ02","برودي نور الدين ",null,"قرية بوسدرة البخاتة - مغنية ","السنة الأولى ثانوي جدع مشترك علوم و تكنولوجيا",516,"//////"]
[517,"بلهادي مروة","2002-05-25","مغنبة","أ","خ2","1ج م آ02","بلهادي فؤاد ",null,"حي الشهداء - مغنية ","السنة الأولى ثانوي جدع مشترك علوم و تكنولوجيا",517,"//////"]
[518,"بن فريد يمينة","2001-09-07","مغنية","أ","م2","1ج م آ02","بن فريد جمال ",null,"قرية البطيم - مغنية ","السنة الأولى ثانوي جدع مشترك علوم و تكنولوجيا",518,"//////"]
[519,"بوحسون حياة","2000-07-21","مغنية","أ","م2","1ج م آ02","بوحسون عبد القادر ",null,"قرية العقيد لطفي - مغنية ","السنة الأولى ثانوي جدع مشترك علوم و تكنولوجيا",519,"//////"]
[520,"بوشيبة بارودي","2002-04-21","مغنية","ذ","م1","1ج م آ02","بوشيبة قويدر ",null,"قرية المصامدة - مغنية ","السنة الأولى ثانوي جدع مشترك علوم و تكنولوجيا",520,"//////"]
[521,"بومدين محمد","2000-07-13","مغنية","ذ","م1","1ج م آ02","بومدين نور الدين ",null,"أولاد قدور الصغار - مغنية ","السنة الأولى ثانوي جدع مشترك علوم و تكنولوجيا",521,"//////"]
[522,"تادلي سناء","2002-02-23","مغنية","أ","م2","1ج م آ02","تادلي محمد",null,"مزرعة شرقاوي العيد - العفيد عباس-مغنية ","السنة الأولى ثانوي جدع مشترك علوم و تكنولوجيا",522,"//////"]
[523,"جزيري وليد","2000-12-20","مغنية","ذ","م1","1ج م آ02","جزيري يوسف ",null,"قرية بوسدرة البخاتة - مغنية ","السنة الأولى ثانوي جدع مشترك علوم و تكنولوجيا",523,"//////"]
[524,"جملي أسية خولة","2002-09-01","مغنية","أ","م2","1ج م آ02","جملي عبد القادر ",null,"قرية المصامدة - مغنية ","السنة الأولى ثانوي جدع مشترك علوم و تكنولوجيا",524,"//////"]
[525,"حواسة يوسف","2002-01-27","مغنية","ذ","م1","1ج م آ02","حواسة عبد الله ",null,"قرية بوسدرة البخاتة - مغنية ","السنة الأولى ثانوي جدع مشترك علوم و تكنولوجيا",525,"//////"]
[526,"دفو عبد الجليل","2002-06-16","مغنية","ذ","م1","1ج م آ02","دفو جمال",null,"مزرعة جابر - مغنية ","السنة الأولى ثانوي جدع مشترك علوم و تكنولوجيا",526,"//////"]
[527,"رابلي هشام أمين","2002-02-04","مغنية","ذ","م1","1ج م آ02","حواسة كريمة",null,"حي المطمر - مغنية ","السنة الأولى ثانوي جدع مشترك علوم و تكنولوجيا",527,"//////"]
[528,"راس الواد زينب","2002-06-02","مغنية","أ","م2","1ج م آ02","راس الواد بوبكر ",null,"قرية بوسدرة البخاتة - مغنية ","السنة الأولى ثانوي جدع مشترك علوم و تكنولوجيا",528,"//////"]
[529,"رقيق رانية","2000-10-08","مغنية","أ","م2","1ج م آ02","رقيق واسيني ",null,"قرية البطيم - مغنية ","السنة الأولى ثانوي جدع مشترك علوم و تكنولوجيا",529,"//////"]
[530,"زروالي محمد رضا","2002-09-14","مغنية","ذ","م1","1ج م آ02","زروالي عبد القادر ",null,"قرية البطيم - مغنية ","السنة الأولى ثانوي جدع مشترك علوم و تكنولوجيا",530,"//////"]
[531,"شارف نور الهدى","2002-12-30","مغنية","أ","م2","1ج م آ02","شارف مصطفى ",null,"قرية أولاد الشارف ـ مغنية ","السنة الأولى ثانوي جدع مشترك علوم و تكنولوجيا",531,"//////"]
[532,"عاون نسرين ليلى","2000-10-21","مغنية","أ","م2","1ج م آ02","عاون محمد ",null,"قرية أولاد الشارف - مغنية ","السنة الأولى ثانوي جدع مشترك علوم و تكنولوجيا",532,"//////"]
[533,"عبد المالك واسيني","1998-05-09","مغنية","ذ","م1","1ج م آ02","عبد المالك لخضر ",null,"قرية بوسدرة البخاتة - مغنية ","السنة الأولى ثانوي جدع مشترك علوم و تكنولوجيا",533,"//////"]
[534,"عثمان شربف عمارة","2001-12-18","مغنية","أ","م2","1ج م آ02","عثمان شريف أحمد ",null,"قرية العقيد لطفي - مغنية ","السنة الأولى ثانوي جدع مشترك علوم و تكنولوجيا",534,"//////"]
[535,"غريب يونس","2000-04-10","مغنية","ذ","م1","1ج م آ02","فاطمة حجاجي",null,"قرية العقيد لطفي - مغنية ","السنة الأولى ثانوي جدع مشترك علوم و تكنولوجيا",535,"//////"]
[536,"قيطوني عبد الحق","2001-10-16","مغنية","ذ","م1","1ج م آ02","قبطوني حمدون ",null,"قرية البطيم - مغنية ","السنة الأولى ثانوي جدع مشترك علوم و تكنولوجيا",536,"//////"]
[537,"كروم فريال أمال","2001-10-10","مغنية","أ","م2","1ج م آ02","كروم موسى ",null,"قرية العقيد عباس - مغنية ","السنة الأولى ثانوي جدع مشترك علوم و تكنولوجيا",537,"//////"]
[538,"مرغاد رابحة شيماء","2001-01-21","مغنية","أ","خ2","1ج م آ02","عبد الرزاق",null,"حي الشهداء مغنية","السنة الأولى ثانوي جدع مشترك علوم و تكنولوجيا",538,"//////"]
[539,"مقداد مريم","2002-10-30","مغنية","أ","م2","1ج م آ02","مقداد علي ",null,"قرية المصامدة - مغنية ","السنة الأولى ثانوي جدع مشترك علوم و تكنولوجيا",539,"//////"]
[540,"مقدم فاطمة الزهراء","2001-03-17","مغنية","أ","ن2","1ج م آ02","بن اعمر",null,"قرية عقيد عباس","السنة الأولى ثانوي جدع مشترك علوم و تكنولوجيا",540,"//////"]
[541,"مقدم محمد أمين","2001-06-25","مغنية","ذ","م1","1ج م آ02","مقدم أحمد ",null,"أولاد قدور 121 - مغنية ","السنة الأولى ثانوي جدع مشترك علوم و تكنولوجيا",541,"//////"]
[542,"مكاحلي عماد الدين","2002-10-27","مغنية","ذ","م1","1ج م آ02","مكاحلي أحمد",null,"قرية البطيم - مغنية ","السنة الأولى ثانوي جدع مشترك علوم و تكنولوجيا",542,"//////"]
[543,"منور هشام","2000-07-29","مغنية","ذ","م1","1ج م آ02","منور امحمد الواسيني ",null,"قرية العقيد لطفي - مغنية ","السنة الأولى ثانوي جدع مشترك علوم و تكنولوجيا",543,"//////"]
[544,"مهديد خليل بشير","2002-06-28","مغنية","ذ","م1","1ج م آ02","براك حورية ",null,"قرية العقيد لطفي - مغنية ","السنة الأولى ثانوي جدع مشترك علوم و تكنولوجيا",544,"//////"]
[545,"وزاني شيماء","2000-03-18","مرسى بن مهيدي","أ","م2","1ج م آ02","وزاني نور الدين ",null,"قرية العقيد لطفي - مغنية ","السنة الأولى ثانوي جدع مشترك علوم و تكنولوجيا",545,"//////"]
[546,"يبدري بلخير","2000-08-28","مغنية","ذ","خ1","1ج م آ02","يبدري محمد ",null,"قرية العقيد عباس - مغنية ","السنة الأولى ثانوي جدع مشترك علوم و تكنولوجيا",546,"//////"]
[547]
[548]
[549]
[550]
[551]
[552]
[553]
[554]
[555]

{"sheet":"التقرير اليومي","index":2,"n_rows":152,"n_cols":19,"rows_kept":152,"cut":false,"hidden":false,"merged":[[105,4,105,11],[102,2,102,3],[102,11,102,12],[90,10,90,13],[19,2,20,3],[19,5,20,7],[19,9,19,12],[1,12,2,12],[1,6,2,11],[2,1,2,5],[4,12,4,13],[4,4,4,9],[11,4,11,9],[5,12,6,13],[12,9,12,13],[3,6,3,8],[1,1,1,5],[7,1,7,2],[3,9,3,11],[3,12,3,13],[5,1,6,2],[5,3,5,5],[5,6,5,8],[5,11,6,11],[5,9,6,9],[5,10,6,10],[8,1,8,2],[9,1,9,2],[10,1,10,2],[20,9,20,10],[20,11,20,12],[14,1,14,2],[15,1,15,2],[12,1,13,2],[12,3,12,5],[12,6,12,8],[17,9,17,11],[16,1,16,2],[17,1,17,2],[19,1,20,1],[13,9,16,13],[52,10,52,11],[22,5,22,7],[51,12,51,13],[51,10,51,11],[51,2,51,3],[58,8,58,13],[52,2,52,3],[53,2,53,3],[54,2,54,3],[52,4,52,6],[53,4,53,6],[54,4,54,6],[52,7,52,9],[53,7,53,9],[54,7,54,9],[52,12,52,13],[53,12,53,13],[54,12,54,13],[53,10,53,11],[54,10,54,11],[56,4,56,5],[56,6,56,7],[56,8,56,13],[21,2,21,3],[21,5,21,7],[21,9,21,10],[21,11,21,12],[23,2,23,3],[23,5,23,7],[23,9,23,10],[23,11,23,12],[51,4,51,6],[51,7,51,9],[65,10,65,13],[66,10,66,13],[67,10,67,13],[62,10,62,13],[63,10,63,13],[64,10,64,13],[57,4,57,5],[57,6,57,7],[57,8,57,13],[58,4,58,5],[58,6,58,7],[69,4,69,5],[70,4,70,5],[68,7,68,8],[69,7,69,8],[70,7,70,8],[68,10,68,13],[69,10,69,13],[70,10,70,13],[67,7,67,8],[77,7,77,8],[78,7,78,8],[79,7,79,8],[80,7,80,8],[81,7,81,8],[71,4,71,5],[72,4,72,5],[71,7,71,8],[72,7,72,8],[73,7,73,8],[73,4,73,5],[74,4,74,5],[75,4,75,5],[76,4,76,5],[77,4,77,5],[78,4,78,5],[79,4,79,5],[80,4,80,5],[81,4,81,5],[72,10,72,13],[73,10,73,13],[74,10,74,13],[75,10,75,13],[76,10,76,13],[74,7,74,8],[75,7,75,8],[76,7,76,8],[61,4,61,5],[62,4,62,5],[63,4,63,5],[64,4,64,5],[65,4,65,5],[66,4,66,5],[67,4,67,5],[68,4,68,5],[61,7,61,8],[61,10,61,13],[62,7,62,8],[63,7,63,8],[64,7,64,8],[65,7,65,8],[66,7,66,8],[71,10,71,13],[82,4,82,5],[82,7,82,8],[83,4,83,5],[83,7,83,8],[84,4,84,5],[84,7,84,8],[85,4,85,5],[85,7,85,8],[86,4,86,5],[86,7,86,8],[87,4,87,5],[87,7,87,8],[88,4,88,5],[88,7,88,8],[89,4,89,5],[89,7,89,8],[90,4,90,5],[90,7,90,8],[91,4,91,5],[91,7,91,8],[92,4,92,5],[92,7,92,8],[93,4,93,5],[93,7,93,8],[97,4,97,5],[97,7,97,8],[98,4,98,5],[98,7,98,8],[99,4,99,5],[99,7,99,8],[101,4,101,5],[101,7,101,8],[60,12,60,13],[60,10,60,11],[60,1,60,9],[94,4,94,5],[94,7,94,8],[95,4,95,5],[95,7,95,8],[96,4,96,5],[96,7,96,8],[100,4,100,5],[100,7,100,8],[98,10,98,13],[88,10,88,13],[81,10,81,13],[77,10,77,13],[78,10,78,13],[79,10,79,13],[80,10,80,13],[82,10,82,13],[83,10,83,13],[84,10,84,13],[85,10,85,13],[86,10,86,13],[87,10,87,13],[89,10,89,13],[91,10,91,13],[92,10,92,13],[93,10,93,13],[94,10,94,13],[99,10,101,13],[95,10,95,11]]}
[null,"الجمهورية الجزائرية الديمقراطية الشعبية ",null,null,null,null,null,null,null,null,null,null,null,null,null,null,null,"مكان الحغظ","اسم الملف"]
[null,"وزارة التربية الوطنية ",null,null,null,null,"التقرير اليومي للاستشارة  ",null,null,null,null,null,124,null,null,null,null,"D:\\Sep","dim01"]
[null,"مديرية التربية لولاية تلمسان "]
[null,null,null,null,null,null,"الثلاثاء",null,null,"2018-04-01",null,null,"ثانوية الخوارزمي"]
[null,-1,"مواظبة التلاميذ : ",null,"الغيـــــــاب عن الدروس",null,null,null,null,null,null,null,"مغنية "]
[null,"التعـداد",null,"التسجيلات",null,null,"الغائبـون",null,null,"ح س اليومي","ح س الكلي","عدد س الغياب","نسبة غياب التلاميذ"]
[null,null,null,"ذكور","إناث","المجموع","ذكور","إناث","المجموع"]
[null,"السنة الأولى ثانوي",null,112,121,{"$f":"SUM(D8:E8)","v":233},{"$f":"COUNTIF(P63:P94,1)","v":0},{"$f":"COUNTIF(P63:P94,2)","v":0},{"$f":"SUM(G8:H8)","v":0},52,{"$f":"J8*F8","v":12116},26,{"$f":"(L8/K8)*100","v":0.21459227467811159},"%"]
[null,"السنة الثانية ثانوي",null,39,86,{"$f":"SUM(D9:E9)","v":125},{"$f":"COUNTIF(Q63:Q94,1)","v":0},{"$f":"COUNTIF(Q63:Q94,2)","v":0},{"$f":"SUM(G9:H9)","v":0},40,{"$f":"J9*F9","v":5000},38,{"$f":"(L9/K9)*100","v":0.76},"%"]
[null,"السنة الثالثة ثانوي",null,71,104,175,{"$f":"COUNTIF(S63:S115,1)","v":0},{"$f":"COUNTIF(R63:R117,2)","v":0},{"$f":"SUM(G10:H10)","v":0},46,{"$f":"J10*F10","v":8050},107,1.329192546583851,"%"]
[null,"المجموع",null,{"$f":"SUM(D8:D10)","v":222},{"$f":"SUM(E8:E10)","v":311},533,{"$f":"SUM(G8:G10)","v":0},{"$f":"SUM(H8:H10)","v":0},{"$f":"SUM(G11:H11)","v":0},{"$f":"SUM(J8:J10)","v":138},{"$f":"SUM(K8:K10)","v":25166},{"$f":"L8+L9+L10","v":171},0.67948819836287055,"%"]
[null,null,null,null,"الغيـــــــاب في النظـام  النصف داخلي "]
[null,"التعـداد",null,"المسجلون",null,null,"الغائبـون",null,null,"ملاحظـــــــــات "]
[null,null,null,"ذكور","إناث","المجموع","ذكور","إناث","المجموع"]
[null,"السنة الأولى ثانوي",null,85,95,{"$f":"SUM(D15:E15)","v":180},3,1,{"$f":"SUM(G15:H15)","v":4}]
[null,"السنة الثانية ثانوي",null,28,66,{"$f":"SUM(D16:E16)","v":94},3,1,{"$f":"SUM(G16:H16)","v":4}]
[null,"السنة الثالثة ثانوي",null,53,71,124,2,4,{"$f":"SUM(G17:H17)","v":6}]
[null,"المجموع",null,{"$f":"SUM(D15:D17)","v":166},{"$f":"SUM(E15:E17)","v":232},398,{"$f":"SUM(G15:G17)","v":8},{"$f":"SUM(H15:H17)","v":6},{"$f":"SUM(G18:H18)","v":14},"نسبة غياب التلاميذ",null,null,{"$f":"(I18/F18)*100","v":3.5175879396984926},"%"]
[null,-2,"حــــركة   التلاميـــــذ"]
[null,"الرقم","الدخـــــــــــول",null,"رقم ","الخـــــــــــــــــــــروج",null,null,"رقم","تغييـــــــــــــــــر الصـــــفة",null,null,null,"رقم ",null,null,null,56]
[null,null,null,null,"البطاقة",null,null,null,"البطاقة","ن د ــــــ  خ",null,"خ ـــــــ ن د",null,"البطاقة"]
[null,1,null,null,null,null,null,null,null,null,null,null,null,null,null,null,null,{"$f":"SUM(R6:R21)","v":56}]
[null,2]
[null,3]
[null,-3,"مواظبـــة الأساتذة :"]
[null,"الرقم","اللقب و الإسم ","المادة","08ـ09","09ـ10","10ـ11","11ـ12","14½-13½","15½-14½","16½-15½","17½-16½","سبب الغياب","ملاحظات "]
[1,1,{"$f":"VLOOKUP(A27,tem,2,0)","v":"أ.ناسي"},{"$f":"VLOOKUP(A27,tem,3,0)","v":"أ.الرياضيات"},{"$f":"VLOOKUP(A27,tem,4,0)","v":0},{"$f":"VLOOKUP(A27,tem,5,0)","v":0},{"$f":"VLOOKUP(A27,tem,6,0)","v":"3ت ر"},{"$f":"VLOOKUP(A27,tem,7,0)","v":0},{"$f":"VLOOKUP(A27,tem,8,0)","v":0},{"$f":"VLOOKUP(A27,tem,9,0)","v":0},{"$f":"VLOOKUP(A27,tem,10,0)","v":0},{"$f":"VLOOKUP(A27,tem,11,0)","v":"1ع1"}]
[3,1,"أ.بوعريشة ","أ.الرياضيات",0,0,0,0,0,0,0,0]
[null,1,{"$error":"#N/A"},{"$error":"#N/A"},{"$error":"#N/A"},{"$error":"#N/A"},{"$error":"#N/A"},{"$error":"#N/A"},{"$error":"#N/A"},{"$error":"#N/A"},{"$error":"#N/A"},{"$error":"#N/A"}]
[44,1,"أ.تربش","أ.الرياضة",0,0,0,0,0,0,0,0]
[null,1,{"$error":"#N/A"},{"$error":"#N/A"},{"$error":"#N/A"},{"$error":"#N/A"},{"$error":"#N/A"},{"$error":"#N/A"},{"$error":"#N/A"},{"$error":"#N/A"},{"$error":"#N/A"},{"$error":"#N/A"}]
[5,1,"أ.ديب","أ.الرياضيات",0,0,0,0,0,0,0,0]
[null,1,{"$error":"#N/A"},{"$error":"#N/A"},{"$error":"#N/A"},{"$error":"#N/A"},{"$error":"#N/A"},{"$error":"#N/A"},{"$error":"#N/A"},{"$error":"#N/A"},{"$error":"#N/A"},{"$error":"#N/A"}]
[null,1,{"$error":"#N/A"},{"$error":"#N/A"},{"$error":"#N/A"},{"$error":"#N/A"},{"$error":"#N/A"},{"$error":"#N/A"},{"$error":"#N/A"},{"$error":"#N/A"},{"$error":"#N/A"},{"$error":"#N/A"}]
[null,1,{"$error":"#N/A"},{"$error":"#N/A"},{"$error":"#N/A"},{"$error":"#N/A"},{"$error":"#N/A"},{"$error":"#N/A"},{"$error":"#N/A"},{"$error":"#N/A"},{"$error":"#N/A"},{"$error":"#N/A"}]
[null,1,{"$error":"#N/A"},{"$error":"#N/A"},{"$error":"#N/A"},{"$error":"#N/A"},{"$error":"#N/A"},{"$error":"#N/A"},{"$error":"#N/A"},{"$error":"#N/A"},{"$error":"#N/A"},{"$error":"#N/A"}]
[null,1,{"$error":"#N/A"},{"$error":"#N/A"},{"$error":"#N/A"},{"$error":"#N/A"},{"$error":"#N/A"},{"$error":"#N/A"},{"$error":"#N/A"},{"$error":"#N/A"},{"$error":"#N/A"},{"$error":"#N/A"}]
[null,1,{"$error":"#N/A"},{"$error":"#N/A"},{"$error":"#N/A"},{"$error":"#N/A"},{"$error":"#N/A"},{"$error":"#N/A"},{"$error":"#N/A"},{"$error":"#N/A"},{"$error":"#N/A"},{"$error":"#N/A"}]
[null,1,{"$error":"#N/A"},{"$error":"#N/A"},{"$error":"#N/A"},{"$error":"#N/A"},{"$error":"#N/A"},{"$error":"#N/A"},{"$error":"#N/A"},{"$error":"#N/A"},{"$error":"#N/A"},{"$error":"#N/A"}]
[null,1,{"$error":"#N/A"},{"$error":"#N/A"},{"$error":"#N/A"},{"$error":"#N/A"},{"$error":"#N/A"},{"$error":"#N/A"},{"$error":"#N/A"},{"$error":"#N/A"},{"$error":"#N/A"},{"$error":"#N/A"}]
[null,1,{"$error":"#N/A"},{"$error":"#N/A"},{"$error":"#N/A"},{"$error":"#N/A"},{"$error":"#N/A"},{"$error":"#N/A"},{"$error":"#N/A"},{"$error":"#N/A"},{"$error":"#N/A"},{"$error":"#N/A"}]
[null,1,{"$error":"#N/A"},{"$error":"#N/A"},{"$error":"#N/A"},{"$error":"#N/A"},{"$error":"#N/A"},{"$error":"#N/A"},{"$error":"#N/A"},{"$error":"#N/A"},{"$error":"#N/A"},{"$error":"#N/A"}]
[null,1,{"$error":"#N/A"},{"$error":"#N/A"},{"$error":"#N/A"},{"$error":"#N/A"},{"$error":"#N/A"},{"$error":"#N/A"},{"$error":"#N/A"},{"$error":"#N/A"},{"$error":"#N/A"},{"$error":"#N/A"}]
[null,1,{"$error":"#N/A"},{"$error":"#N/A"},{"$error":"#N/A"},{"$error":"#N/A"},{"$error":"#N/A"},{"$error":"#N/A"},{"$error":"#N/A"},{"$error":"#N/A"},{"$error":"#N/A"},{"$error":"#N/A"}]
[null,1,{"$error":"#N/A"},{"$error":"#N/A"},{"$error":"#N/A"},{"$error":"#N/A"},{"$error":"#N/A"},{"$error":"#N/A"},{"$error":"#N/A"},{"$error":"#N/A"},{"$error":"#N/A"},{"$error":"#N/A"}]
[null,1,{"$error":"#N/A"},{"$error":"#N/A"},{"$error":"#N/A"},{"$error":"#N/A"},{"$error":"#N/A"},{"$error":"#N/A"},{"$error":"#N/A"},{"$error":"#N/A"},{"$error":"#N/A"},{"$error":"#N/A"}]
[null,1,{"$error":"#N/A"},{"$error":"#N/A"},{"$error":"#N/A"},{"$error":"#N/A"},{"$error":"#N/A"},{"$error":"#N/A"},{"$error":"#N/A"},{"$error":"#N/A"},{"$error":"#N/A"},{"$error":"#N/A"}]
[null,1,{"$error":"#N/A"},{"$error":"#N/A"},{"$error":"#N/A"},{"$error":"#N/A"},{"$error":"#N/A"},{"$error":"#N/A"},{"$error":"#N/A"},{"$error":"#N/A"},{"$error":"#N/A"},{"$error":"#N/A"}]
[null,1,{"$error":"#N/A"},{"$error":"#N/A"},{"$error":"#N/A"},{"$error":"#N/A"},{"$error":"#N/A"},{"$error":"#N/A"},{"$error":"#N/A"},{"$error":"#N/A"},{"$error":"#N/A"},{"$error":"#N/A"}]
[null,1,{"$error":"#N/A"},{"$error":"#N/A"},{"$error":"#N/A"},{"$error":"#N/A"},{"$error":"#N/A"},{"$error":"#N/A"},{"$error":"#N/A"},{"$error":"#N/A"},{"$error":"#N/A"},{"$error":"#N/A"}]
[null,-4,"غيابات و تأخرات مساعدي التربية  و موطفي عقود  ما قبل التشغيل "]
[null,"الرقم","اللقب و الإسم ",null,"الفترة الصباحية ",null,null,"الفترة المسائية ",null,null,"ملاحظات ",null,"سبب الغياب"]
[null,1]
[null,2]
[null,3]
[null,-5,"تعويــض الدروس الضـــــائعــة "]
[null,"الرقم","اللقب و الإسم ","المادة","القسم",null,"التوقيت",null,"ملاحظـــــــــــــــــات"]
[null,1]
[null,2]
[]
[null,"الغيــــــــابات اليومية",null,null,null,null,null,null,null,null,{"$f":"G4","v":"الثلاثاء"},null,{"$f":"J4","v":"2018-04-01"}]
[null,"الرقم","السنة الأول","القسم","السنة الثانية ",null,"القسم","السنة الثالثة ",null,"القسم","قضايا سلــوكية "]
[null,1]
[null,2]
[null,3]
[null,4]
[null,5]
[null,6]
[null,7]
[null,8,null,null,null,null,null,null,null,null,"الحوادث المدرسية :"]
[null,9]
[null,10]
[null,11]
[null,12,null,null,null,null,null,null,null,null,"الصحة المدرسية :"]
[null,13]
[null,14]
[null,15]
[null,16]
[null,17]
[null,18]
[null,19]
[null,20,null,null,null,null,null,null,null,null,"ملاحظات مختلفة : "]
[null,21]
[null,22]
[null,23]
[null,24]
[null,25]
[null,26]
[null,27,null,null,null,null,null,null,null,null,"ندوات - مجالس - زيارات"]
[null,28]
[null,29]
[null,30]
[null,31]
[null,32]
[null,33]
[null,34,null,null,null,null,null,null,null,null,"شهادة مدرسية",null,"العدد :"]
[null,35,null,null,null,null,null,null,null,null,"من",null,"الــى "]
[null,36]
[null,37,null,null,null,null,null,null,null,null,"ملاحظات السيد الناظــر"]
[null,38]
[null,39]
[null,40]
[null,null,"مستشار التربية",null,null,null,null,null,null,null,null,"الناظر"]
[]
[]
[null,null,null,null,"الثلاثاء"]
[null,null,null,null,"08ـ09","09ـ10","10ـ11","11ـ12","14½-13½","15½-14½","16½-15½","17½-16½"]
[null,1,"أ.ناسي","أ.الرياضيات",null,null,"3ت ر",null,null,null,null,"1ع1"]
[null,2,"أ.بوطوبة ","أ.الرياضيات"]
[null,3,"أ.بوعريشة ","أ.الرياضيات"]
[null,4,"أ.قبلي","أ.الرياضيات"]
[null,5,"أ.ديب","أ.الرياضيات"]
[null,6,"أ.عشماوي","أ.الفيزياء"]
[null,7,"أ.حاجب","أ.الفيزياء"]
[null,8,"قوراري","أ.الفيزياء"]
[null,9,"أ.ناضور","أ.الفيزياء"]
[null,10,"أ.زرار","أ.الفيزياء"]
[null,11,"أ.براهمي","أ.ع الطبيعية"]
[null,12,"أ.لعشب","أ.ع الطبيعية"]
[null,13,"أ.درني","أ.ع الطبيعية"]
[null,14,"أ.فراج","أ.ع الطبيعية"]
[null,15,"أ.كريب ","أ,الأدب العربي"]
[null,16,"أ.صبيان","أ,الأدب العربي"]
[null,17,"أ.قادري","أ,الأدب العربي"]
[null,18,"أ.أعطا الله","أ,الأدب العربي"]
[null,19,"أ.قعاد","أ,الأدب العربي"]
[null,20,"أ.قان ","أ.الاجتماعيات"]
[null,21,"أ.سواريت ","أ.الاجتماعيات"]
[null,22,"أ.صفراوي","أ.الاجتماعيات"]
[null,23,"أ.أجد","أ.الاجتماعيات"]
[null,24,"أ.بوحاجب/و","أ.ع الإسلامية"]
[null,25,"أ.بوزياني","أ.ع الإسلامية"]
[null,26,"أ.عزيز","أ.الفلسفة"]
[null,27,"أ.زقاي","أ.الفلسفة"]
[null,28,"أ.رابحي","أ.الفرنسية "]
[null,29,"أ.كوليلي","أ.الفرنسية "]
[null,30,"أ.بومانة ","أ.الفرنسية "]
[null,31,"أ.عباد","أ.الفرنسية "]
[null,32,"أ.العرباوي","أ.الانجليزية"]
[null,33,"أ.معزوز","أ.الانجليزية"]
[null,34,"أ.مزاري","أ.الانجليزية"]
[null,35,"أ.شنتوف","أ.الانجليزية"]
[null,36,"أ.سيفاني","أ.الاسبانية"]
[null,37,"أ.زغودي","أ.التكنولوجيا"]
[null,38,"أ.موس","أ.التكنولوجيا"]
[null,39,"أ.بوهنة","أ.التكنولوجيا"]
[null,40,"أ.نوار","أ.المعلوماتية"]
[null,41,"أ.بوشيخي","أ.الاقتصاد"]
[null,42,"أ.فارس","أ.الاقتصاد"]
[null,43,"أ.لقبوري","أ.الرياضة"]
[null,44,"أ.تربش","أ.الرياضة"]
[null,45,"أ.كحلون","أ.الرياضة"]